Dept/Family,Entity,Expense Type,Expense Area,Supplier,Description,Payment Date, Amount ,SME,UNSPCC code,UNSPCC Description
Communities and Local Government,Homes and Communities Agency,Economic Assets S&Sw Prog,South West,HEWITSONS SOLICITORS,Coldeast Hosp - Contribution,06/06/2017,3000,S,80121600,Business law services
Communities and Local Government,Homes and Communities Agency,Capital Grant to Local Authorities,North East And Yorkshire,BARNSLEY METROPOLITAN BOROUGH COUNCIL,Daily IMS payment,01/06/2017,6000,G,N/A,Grant
Communities and Local Government,Homes and Communities Agency,Capital Grant to Local Authorities,North East And Yorkshire,BARNSLEY METROPOLITAN BOROUGH COUNCIL,Daily IMS payment,15/06/2017,6000,G,N/A,Grant
Communities and Local Government,Homes and Communities Agency,Capital Grant to Local Authorities,North East And Yorkshire,BARNSLEY METROPOLITAN BOROUGH COUNCIL,Daily IMS payment,22/06/2017,6000,G,N/A,Grant
Communities and Local Government,Homes and Communities Agency,Capital Grant to Local Authorities,North East And Yorkshire,SHEFFIELD CITY COUNCIL,Daily IMS payment,16/06/2017,10000,G,N/A,Grant
Communities and Local Government,Homes and Communities Agency,Capital Grant to Local Authorities,North East And Yorkshire,NEWCASTLE CITY COUNCIL,Daily IMS payment,29/06/2017,236500,G,N/A,Grant
Communities and Local Government,Homes and Communities Agency,Capital Grant to Local Authorities,North East And Yorkshire,NORTH TYNESIDE COUNCIL,Daily IMS payment,22/06/2017,2443,G,N/A,Grant
Communities and Local Government,Homes and Communities Agency,Capital Grant to Local Authorities,North East And Yorkshire,LEEDS CITY COUNCIL,Daily IMS payment,29/06/2017,13901,G,N/A,Grant
Communities and Local Government,Homes and Communities Agency,Capital Grant to Local Authorities,North East And Yorkshire,LEEDS CITY COUNCIL,Daily IMS payment,30/06/2017,13901,G,N/A,Grant
Communities and Local Government,Homes and Communities Agency,Capital Grant to Local Authorities,North East And Yorkshire,LEEDS CITY COUNCIL,Daily IMS payment,30/06/2017,13901,G,N/A,Grant
Communities and Local Government,Homes and Communities Agency,Capital Grant to Local Authorities,North East And Yorkshire,LEEDS CITY COUNCIL,Daily IMS payment,30/06/2017,13901,G,N/A,Grant
Communities and Local Government,Homes and Communities Agency,Capital Grant to Local Authorities,North East And Yorkshire,LEEDS CITY COUNCIL,Daily IMS payment,30/06/2017,13901,G,N/A,Grant
Communities and Local Government,Homes and Communities Agency,Capital Grant to Local Authorities,North East And Yorkshire,LEEDS CITY COUNCIL,Daily IMS payment,30/06/2017,13901,G,N/A,Grant
Communities and Local Government,Homes and Communities Agency,Capital Grant to Local Authorities,North East And Yorkshire,HARTLEPOOL BOROUGH COUNCIL,Daily IMS payment,20/06/2017,9250,G,N/A,Grant
Communities and Local Government,Homes and Communities Agency,Capital Grant to Local Authorities,North East And Yorkshire,HARTLEPOOL BOROUGH COUNCIL,Daily IMS payment,20/06/2017,9250,G,N/A,Grant
Communities and Local Government,Homes and Communities Agency,Capital Grant to Local Authorities,North East And Yorkshire,MIDDLEBROUGH COUNCIL,Daily IMS payment,23/06/2017,8800,G,N/A,Grant
Communities and Local Government,Homes and Communities Agency,Capital Grant to Local Authorities,North East And Yorkshire,DARLINGTON BOROUGH COUNCIL,Daily IMS payment,30/06/2017,100000,G,N/A,Grant
Communities and Local Government,Homes and Communities Agency,Capital Grant to Local Authorities,North East And Yorkshire,DARLINGTON BOROUGH COUNCIL,Daily IMS payment,30/06/2017,180000,G,N/A,Grant
Communities and Local Government,Homes and Communities Agency,Capital Grant to Local Authorities,North East And Yorkshire,KINGSTON UPON HULL CITY COUNCIL,Daily IMS payment,06/06/2017,8500,G,N/A,Grant
Communities and Local Government,Homes and Communities Agency,Capital Grant to Local Authorities,North East And Yorkshire,KINGSTON UPON HULL CITY COUNCIL,Daily IMS payment,06/06/2017,5000,G,N/A,Grant
Communities and Local Government,Homes and Communities Agency,Capital Grant to Local Authorities,North East And Yorkshire,KINGSTON UPON HULL CITY COUNCIL,Daily IMS payment,30/06/2017,8500,G,N/A,Grant
Communities and Local Government,Homes and Communities Agency,Capital Grant to Local Authorities,North East And Yorkshire,KINGSTON UPON HULL CITY COUNCIL,Daily IMS payment,30/06/2017,5000,G,N/A,Grant
Communities and Local Government,Homes and Communities Agency,Capital Grant to Local Authorities,North East And Yorkshire,KINGSTON UPON HULL CITY COUNCIL,Daily IMS payment,30/06/2017,8500,G,N/A,Grant
Communities and Local Government,Homes and Communities Agency,Capital Grant to Local Authorities,North East And Yorkshire,EAST RIDING OF YORKSHIRE COUNCIL,Daily IMS payment,19/06/2017,12500,G,N/A,Grant
Communities and Local Government,Homes and Communities Agency,Capital Grant to Local Authorities,North East And Yorkshire,EAST RIDING OF YORKSHIRE COUNCIL,Daily IMS payment,19/06/2017,12500,G,N/A,Grant
Communities and Local Government,Homes and Communities Agency,Capital Grant to Local Authorities,North East And Yorkshire,EAST RIDING OF YORKSHIRE COUNCIL,Daily IMS payment,19/06/2017,12500,G,N/A,Grant
Communities and Local Government,Homes and Communities Agency,Capital Grant to Local Authorities,North East And Yorkshire,EAST RIDING OF YORKSHIRE COUNCIL,Daily IMS payment,29/06/2017,12500,G,N/A,Grant
Communities and Local Government,Homes and Communities Agency,Capital Grant to Local Authorities,Midlands,DERBY CITY COUNCIL,Daily IMS payment,28/06/2017,45500,G,N/A,Grant
Communities and Local Government,Homes and Communities Agency,Capital Grant to Local Authorities,Midlands,NOTTINGHAM CITY COUNCIL,Daily IMS payment,19/06/2017,27000,G,N/A,Grant
Communities and Local Government,Homes and Communities Agency,Capital Grant to Local Authorities,Midlands,NOTTINGHAM CITY COUNCIL,Daily IMS payment,27/06/2017,34000,G,N/A,Grant
Communities and Local Government,Homes and Communities Agency,Capital Grant to Local Authorities,South West,SWINDON BOROUGH COUNCIL,Daily IMS payment,30/06/2017,191250,G,N/A,Grant
Communities and Local Government,Homes and Communities Agency,Capital Grant to Local Authorities,South West,WILTSHIRE COUNCIL,Daily IMS payment,30/06/2017,15000,G,N/A,Grant
Communities and Local Government,Homes and Communities Agency,Capital Grant to Local Authorities,South West,WILTSHIRE COUNCIL,Daily IMS payment,30/06/2017,30000,G,N/A,Grant
Communities and Local Government,Homes and Communities Agency,Estate Management Yorks,North West,ASDA STORES LTD,"DAM3547-SERVICE-WESTBROOK LIBRARY, WESTBROOK, WARRINGTON",24/06/2017,436.1,L,80131500,Lease and rental of property or building
Communities and Local Government,Homes and Communities Agency,Estate Management Yorks,North West,ASDA STORES LTD,DAM3548-SERVICE-WESTBROOK YOUTH CENTRE     Annual service cha,24/06/2017,825.77,L,80131500,Lease and rental of property or building
Communities and Local Government,Homes and Communities Agency,Public Land and Regeneration,Programmes,R D LANDSCAPES LTD,"DAP0773-SERVICE-Wrest Park - To remove 1 x bouncy castle, all",18/05/2017,280,S,72101500,Building maintenance and repair services
Communities and Local Government,Homes and Communities Agency,Estate Management Yorks,North West,R D LANDSCAPES LTD,DAP1079-SERVICE-Corby Train Station Sites - Emergency works o,31/05/2017,320,S,72101500,Building maintenance and repair services
Communities and Local Government,Homes and Communities Agency,Estate Management Yorks,North West,R D LANDSCAPES LTD,DAP1153-SERVICE-Brackmills Park - to install stock proof fenc,13/06/2017,550,S,72101500,Building maintenance and repair services
Communities and Local Government,Homes and Communities Agency,Budget 2013 - Midlands Wm,Midlands,R D LANDSCAPES LTD,DAP1249-SERVICE-Tattenhoe Park S38 Work,22/06/2017,750,S,72101500,Building maintenance and repair services
Communities and Local Government,Homes and Communities Agency,Economic Assets Nw Prog,North West,CBRE LTD,DNW0028-SERVICE-ESTUARY SERVICE CHARGES,13/05/2017,9900,M,80131800,Real estate management services
Communities and Local Government,Homes and Communities Agency,Budget 2013 - Midlands Wm,Midlands,SIMON TRANTER LANDSCAPE CONTRACTORS,"DAP1018-SERVICE-Clearance of traveller site, 7 lorry loads of",06/06/2017,4842,S,72101500,Building maintenance and repair services
Communities and Local Government,Homes and Communities Agency,Budget 2013 - Midlands Wm,Midlands,SIMON TRANTER LANDSCAPE CONTRACTORS,"DAP1215-SERVICE-Assist drilling team to access sites, take do",17/06/2017,680,S,72101500,Building maintenance and repair services
Communities and Local Government,Homes and Communities Agency,Area Dir Mids Worcs-Shrop-Here,Midlands,SIMON TRANTER LANDSCAPE CONTRACTORS,DAP1213-SERVICE-Lea Castle - Assist bat survey by opening and,17/06/2017,3807,S,72101500,Building maintenance and repair services
Communities and Local Government,Homes and Communities Agency,East And Se Cambs Herts And Bu,East And South East,CROWN ESTATE COMMISSIONERS,DEE0044-SERVICE-Payment of consultants for planning app.,16/06/2017,12035.61,L,80131500,Lease and rental of property or building
Communities and Local Government,Homes and Communities Agency,Comms Transition Budget,Finance & Corporate Services,ENVIRONMENT AGENCY,DAP1125-SERVICE-CRC annual subsistence fee,19/05/2017,1290,G,72101500,Building maintenance and repair services
Communities and Local Government,Homes and Communities Agency,Capital Grant to Local Authorities,East And South East,STROUD DISTRICT COUNCIL,Daily IMS payment,30/06/2017,121000,G,N/A,Grant
Communities and Local Government,Homes and Communities Agency,Capital Grant to Local Authorities,East And South East,STROUD DISTRICT COUNCIL,Daily IMS payment,30/06/2017,11000,G,N/A,Grant
Communities and Local Government,Homes and Communities Agency,Comms Transition Budget,Finance & Corporate Services,KNIGHT FRANK LLP,DAP0162-SERVICE-Service charge relating to Building 5,25/05/2017,2410.83,L,80131500,Lease and rental of property or building
Communities and Local Government,Homes and Communities Agency,Company Secretary Mh,Finance & Corporate Services,IRON MOUNTAIN (UK) LTD,DBP0391-SERVICE-Iron Mountain Storage,31/05/2017,6411.49,L,78131800,Specialized warehousing and storage
Communities and Local Government,Homes and Communities Agency,Comms Transition Budget,Finance & Corporate Services,MK LONDON LINK,DOF0424-SERVICE-Courier service for HCA Bedford,31/05/2017,376.14,S,78102200,Postal and small parcel and courier services
Communities and Local Government,Homes and Communities Agency,Comms Transition Budget,Finance & Corporate Services,BAGNALL & MORRIS WASTE SERVICES LTD,"DAP0095-SERVICE-Collection, processing and disposal of waste",31/05/2017,350.45,M,76121500,Refuse collection and disposal
Communities and Local Government,Homes and Communities Agency,Ne-Y North East Washington,North East And Yorkshire,MGL DEMOLITION LTD,DAP0234-SERVICE-Staithes House demolition,06/06/2017,10082.66,M,72141500,Land preparation services
Communities and Local Government,Homes and Communities Agency,Public Land and Regeneration,Programmes,MGL DEMOLITION LTD,"DNE0547-SERVICE-Mowden Hall, Demolition and site clearance in",06/06/2017,39900.24,M,72141500,Land preparation services
Communities and Local Government,Homes and Communities Agency,Economic Assets Ne-Y Prog,North East And Yorkshire,CAMBRIDGESHIRE COUNTY COUNCIL,DAP0672-SERVICE-To hold and arrange a design review by Cambri,08/06/2017,1885,G,80131800,Real estate management services
Communities and Local Government,Homes and Communities Agency,Capital Grant to Local Authorities,North West,CANNOCK CHASE DISTRICT COUNCIL,Daily IMS payment,06/06/2017,32000,G,N/A,Grant
Communities and Local Government,Homes and Communities Agency,Capital Grant to Local Authorities,North West,CANNOCK CHASE DISTRICT COUNCIL,Daily IMS payment,06/06/2017,48000,G,N/A,Grant
Communities and Local Government,Homes and Communities Agency,Ad Manchester Trafford,North West,THE LAND TRUST,DAP0723-SERVICE-Contribution towards estate management/legal,26/05/2017,17687.11,M,77101500,Environmental auditing
Communities and Local Government,Homes and Communities Agency,Capital Grant to RPs,North West,SIX TOWN HOUSING LIMITED,Daily IMS payment,29/06/2017,12500,G,N/A,Grant
Communities and Local Government,Homes and Communities Agency,Capital Grant to RPs,East And South East,YMCA DOWNSLINK GROUP,Daily IMS payment,16/06/2017,30500,,N/A,Grant
Communities and Local Government,Homes and Communities Agency,Capital Grant to RPs,East And South East,YMCA DOWNSLINK GROUP,Daily IMS payment,21/06/2017,30500,,N/A,Grant
Communities and Local Government,Homes and Communities Agency,Capital Grant to RPs,North East And Yorkshire,KARBON HOMES -ISOS HOUSING LIMITED,Daily IMS payment,12/06/2017,30000,,N/A,Grant
Communities and Local Government,Homes and Communities Agency,Capital Grant to RPs,North East And Yorkshire,KARBON HOMES -ISOS HOUSING LIMITED,Daily IMS payment,12/06/2017,200000,,N/A,Grant
Communities and Local Government,Homes and Communities Agency,Capital Grant to RPs,North East And Yorkshire,KARBON HOMES -ISOS HOUSING LIMITED,Daily IMS payment,15/06/2017,92000,,N/A,Grant
Communities and Local Government,Homes and Communities Agency,Capital Grant to RPs,North East And Yorkshire,KEELMAN HOMES,Daily IMS payment,02/06/2017,10000,,N/A,Grant
Communities and Local Government,Homes and Communities Agency,Capital Grant to RPs,North East And Yorkshire,KEELMAN HOMES,Daily IMS payment,09/06/2017,10000,,N/A,Grant
Communities and Local Government,Homes and Communities Agency,Capital Grant to RPs,North East And Yorkshire,KEELMAN HOMES,Daily IMS payment,19/06/2017,14000,,N/A,Grant
Communities and Local Government,Homes and Communities Agency,Capital Grant to RPs,North East And Yorkshire,KEELMAN HOMES,Daily IMS payment,20/06/2017,10000,,N/A,Grant
Communities and Local Government,Homes and Communities Agency,Capital Grant to RPs,North East And Yorkshire,KEELMAN HOMES,Daily IMS payment,26/06/2017,7500,,N/A,Grant
Communities and Local Government,Homes and Communities Agency,Capital Grant to RPs,North West,REGENDA LIMITED,Daily IMS payment,01/06/2017,12500,,N/A,Grant
Communities and Local Government,Homes and Communities Agency,Capital Grant to RPs,North East And Yorkshire,ACTION HOUSING AND SUPPORT,Daily IMS payment,06/06/2017,9000,,N/A,Grant
Communities and Local Government,Homes and Communities Agency,Capital Grant to RPs,North East And Yorkshire,ACTION HOUSING AND SUPPORT,Daily IMS payment,09/06/2017,18000,,N/A,Grant
Communities and Local Government,Homes and Communities Agency,Capital Grant to RPs,North East And Yorkshire,ACTION HOUSING AND SUPPORT,Daily IMS payment,30/06/2017,18000,,N/A,Grant
Communities and Local Government,Homes and Communities Agency,Capital Grant to RPs,Midlands,THE EXTRACARE CHARITABLE TRUST,Daily IMS payment,22/06/2017,377000,,N/A,Grant
Communities and Local Government,Homes and Communities Agency,Capital Grant to RPs,Programmes,THE GUINNESS PARTNERSHIP LIMITED,Daily IMS payment,14/06/2017,30000,,N/A,Grant
Communities and Local Government,Homes and Communities Agency,Capital Grant to RPs,North West,J & M RESIDENTIAL LETTINGS LIMITED,Daily IMS payment,19/06/2017,5000,,N/A,Grant
Communities and Local Government,Homes and Communities Agency,Capital Grant to RPs,North East And Yorkshire,SOUTH TYNESIDE HOUSING VENTURE TRUST LTD,Daily IMS payment,09/06/2017,8950,,N/A,Grant
Communities and Local Government,Homes and Communities Agency,Capital Grant to RPs,North East And Yorkshire,SOUTH TYNESIDE HOUSING VENTURE TRUST LTD,Daily IMS payment,30/06/2017,8950,,N/A,Grant
Communities and Local Government,Homes and Communities Agency,Economic Assets S&Sw Prog,South West,MARINA PROJECTS LIMITED,DAP1116-SERVICE-Liaising with Council over consenting require,05/06/2017,3989.25,M,80131800,Real estate management services
Communities and Local Government,Homes and Communities Agency,Economic Assets S&Sw Prog,South West,MARINA PROJECTS LIMITED,DSW1066-SERVICE-East Cowes-Eelgrass surveys,21/06/2017,298.4,M,80131800,Real estate management services
Communities and Local Government,Homes and Communities Agency,Economic Assets S&Sw Prog,South West,MARINA PROJECTS LIMITED,DSW1066-SERVICE-Disbursements,21/06/2017,896.17,M,80131800,Real estate management services
Communities and Local Government,Homes and Communities Agency,Area Dir Mids Worcs-Shrop-Here,Midlands,SSE POWER DISTRIBUTION,DWM0821-SERVICE-Landlord Elec at 5%,26/04/2017,283.45,L,83101807,Municipal electric power distribution
Communities and Local Government,Homes and Communities Agency,Economic Assets S&Sw Prog,South West,PT CONTRACTORS LTD,DSW0989-SERVICE-Island Tech Park - Foul Water pumping stn,05/06/2017,2414.9,M,72141500,Land preparation services
Communities and Local Government,Homes and Communities Agency,Economic Assets Ne-Y Prog,North East And Yorkshire,AIRCON REFRIGERATION LTD,DAP0780-SERVICE-Aircon decommission Wakefield Court,31/05/2017,1315,S,72102900,Facility maintenance and repair services
Communities and Local Government,Homes and Communities Agency,Economic Assets Ne-Y Prog,North East And Yorkshire,AIRCON REFRIGERATION LTD,DAP0698-SERVICE-Reclaim refrigerant from all A/C plant at Don,18/05/2017,1474,S,72102900,Facility maintenance and repair services
Communities and Local Government,Homes and Communities Agency,Liverpool Cheshire Warrington,North West,ATKINS LTD,IT70894-SERVICE-HCA Land at Grappenhall Heys,19/05/2017,7530,L,80131800,Real estate management services
Communities and Local Government,Homes and Communities Agency,Liverpool Cheshire Warrington,North West,ATKINS LTD,IT70890-SERVICE-HCA Land at Appleton Cross,19/05/2017,7530,L,80131800,Real estate management services
Communities and Local Government,Homes and Communities Agency,Ftbi South East,East And South East,ATKINS LTD,IT71327-SERVICE-Northstowe Phase 2 Cost Consultancy,19/05/2017,8330,L,80131800,Real estate management services
Communities and Local Government,Homes and Communities Agency,Ftbi South East,East And South East,ATKINS LTD,IT71327-SERVICE-Northstowe Phase 2 Cost Consultancy,19/06/2017,2500,L,80131800,Real estate management services
Communities and Local Government,Homes and Communities Agency,Facilities Allerton Bywater,Finance & Corporate Services,EDENRED,CCV SCHG JUN 17,01/06/2017,1191.48,L,n/a,Unclassifed
Communities and Local Government,Homes and Communities Agency,It - Rda Transition,Finance & Corporate Services,ACADEMIA LTD,DAP0732-SERVICE-Softerra Adaxes Annual Maintenance,20/06/2017,1200,M,43231500,Business function specific software
Communities and Local Government,Homes and Communities Agency,It - Rda Transition,Finance & Corporate Services,ACADEMIA LTD,DAP0732-SERVICE-Softerra Adaxes ver.2016 Perpetual License x,20/06/2017,4350,M,43231500,Business function specific software
Communities and Local Government,Homes and Communities Agency,Economic Assets Ne-Y Prog,North East And Yorkshire,ALPHA HEATING (CHESTERFIELD) LTD,DAP0681-SERVICE-Isolate the electrical supply to the building,17/05/2017,380,S,72101500,Building maintenance and repair services
Communities and Local Government,Homes and Communities Agency,Economic Assets Ne-Y Prog,North East And Yorkshire,ALPHA HEATING (CHESTERFIELD) LTD,DAP0681-SERVICE-Disconnect and purge main gas supply for the,17/05/2017,989.75,S,72101500,Building maintenance and repair services
Communities and Local Government,Homes and Communities Agency,Economic Assets Ne-Y Prog,North East And Yorkshire,ALPHA HEATING (CHESTERFIELD) LTD,DAP0681-SERVICE-Decommission the boiler system draining down,17/05/2017,1979,S,72101500,Building maintenance and repair services
Communities and Local Government,Homes and Communities Agency,East And Se And Surr And Suss,East And South East,AUTOMOTIVE LEASING,DGC1604-SERVICE-termination charge for NL64UVR,17/05/2017,762.45,L,25101500,Passenger motor vehicles
Communities and Local Government,Homes and Communities Agency,Economic Assets Ne-Y Prog,North East And Yorkshire,ALPHABET (GB) LTD,Misc recharges,01/04/2016,300.49,L,25101500,Passenger motor vehicles
Communities and Local Government,Homes and Communities Agency,East And Se Essex And Kent,East And South East,ALPHABET (GB) LTD,DGC1368-SERVICE-NG12RYH 6 MONTHS INFORMAL SERVICE COST,31/05/2017,263.5,L,25101500,Passenger motor vehicles
Communities and Local Government,Homes and Communities Agency,Economic Assets Hub Transition,Economic Assets Hub,ABERFELDY NEW VILLAGE LLP,LTF-Aberfeldy New Village-June17,14/06/2017,517546.79,,N/A,Loans
Communities and Local Government,Homes and Communities Agency,Economic Assets Ne-Y Prog,North East And Yorkshire,ALTITUDE SERVICES,DAP0682-SERVICE-Repairs and replacement of lamps at Seacroft,31/05/2017,6852.65,M,72101500,Building maintenance and repair services
Communities and Local Government,Homes and Communities Agency,Land And Regeneration National,Programmes,ACS CONVEYANCING SEARCHES,DBP0551-SERVICE-Various Land Searches,05/04/2017,1092.42,S,80131800,Real estate management services
Communities and Local Government,Homes and Communities Agency,Land And Regeneration National,Programmes,ACS CONVEYANCING SEARCHES,DBP0551-SERVICE-Various Land Searches,05/04/2017,903.38,S,80131800,Real estate management services
Communities and Local Government,Homes and Communities Agency,Land And Regeneration National,Programmes,ACS CONVEYANCING SEARCHES,DBP0551-SERVICE-Various Land Searches,10/04/2017,1113.68,S,80131800,Real estate management services
Communities and Local Government,Homes and Communities Agency,Land And Regeneration National,Programmes,ACS CONVEYANCING SEARCHES,DBP0551-SERVICE-Various Land Searches,10/04/2017,1154.68,S,80131800,Real estate management services
Communities and Local Government,Homes and Communities Agency,Land And Regeneration National,Programmes,ACS CONVEYANCING SEARCHES,DBP0551-SERVICE-Various Land Searches,10/04/2017,1185.19,S,80131800,Real estate management services
Communities and Local Government,Homes and Communities Agency,Land And Regeneration National,Programmes,ACS CONVEYANCING SEARCHES,DBP0551-SERVICE-Various Land Searches,12/04/2017,1288.84,S,80131800,Real estate management services
Communities and Local Government,Homes and Communities Agency,Land And Regeneration National,Programmes,ACS CONVEYANCING SEARCHES,DBP0551-SERVICE-Various Land Searches,18/04/2017,1180.83,S,80131800,Real estate management services
Communities and Local Government,Homes and Communities Agency,Land And Regeneration National,Programmes,ACS CONVEYANCING SEARCHES,DBP0551-SERVICE-Various Land Searches,03/05/2017,947.67,S,80131800,Real estate management services
Communities and Local Government,Homes and Communities Agency,Land And Regeneration National,Programmes,ACS CONVEYANCING SEARCHES,DBP0551-SERVICE-Various Land Searches,06/05/2017,1129.11,S,80131800,Real estate management services
Communities and Local Government,Homes and Communities Agency,Land And Regeneration National,Programmes,ACS CONVEYANCING SEARCHES,DBP0551-SERVICE-Various Land Searches,06/05/2017,1179.68,S,80131800,Real estate management services
Communities and Local Government,Homes and Communities Agency,Land And Regeneration National,Programmes,ACS CONVEYANCING SEARCHES,DBP0551-SERVICE-Various Land Searches,06/05/2017,1106.77,S,80131800,Real estate management services
Communities and Local Government,Homes and Communities Agency,Land And Regeneration National,Programmes,ACS CONVEYANCING SEARCHES,DBP0551-SERVICE-Various Land Searches,10/05/2017,1159.87,S,80131800,Real estate management services
Communities and Local Government,Homes and Communities Agency,Land And Regeneration National,Programmes,ACS CONVEYANCING SEARCHES,DBP0551-SERVICE-Various Land Searches,16/05/2017,1203.17,S,80131800,Real estate management services
Communities and Local Government,Homes and Communities Agency,Land And Regeneration National,Programmes,ACS CONVEYANCING SEARCHES,DBP0551-SERVICE-Various Land Searches,16/05/2017,1203.17,S,80131800,Real estate management services
Communities and Local Government,Homes and Communities Agency,Land And Regeneration National,Programmes,ACS CONVEYANCING SEARCHES,DBP0551-SERVICE-Various Land Searches,16/05/2017,1203.17,S,80131800,Real estate management services
Communities and Local Government,Homes and Communities Agency,Economic Assets Hub Transition,Economic Assets Hub,ASH GREEN (HOLDINGS) LTD,STF-397 Cheadle Road-June17,23/06/2017,43909,,N/A ,Loans
Communities and Local Government,Homes and Communities Agency,Ne-Y North East Washington,North East And Yorkshire,AIREDALE FORESTRY,DAP0435-SERVICE-Landscape maintenance at St Georges for one y,26/05/2017,635.5,S,72101500,Building maintenance and repair services
Communities and Local Government,Homes and Communities Agency,Ne-Y North East Washington,North East And Yorkshire,AIREDALE FORESTRY,DAP0189-SERVICE-Events Car Park (North Shore & Tees),26/05/2017,438.95,S,72101500,Building maintenance and repair services
Communities and Local Government,Homes and Communities Agency,Public Land and Regeneration,Programmes,AIREDALE FORESTRY,DAP0879-SERVICE-Landscape Maintenance works at Deerbolt for o,26/05/2017,568.7,S,72101500,Building maintenance and repair services
Communities and Local Government,Homes and Communities Agency,Investment & Renewal Maple Hse,Programmes,ABBEY COMMUNITY ASSOCIATION LTD,DAP1134-SERVICE-REFRESHMENTS,17/05/2017,503,S,90111600,Meeting facilities
Communities and Local Government,Homes and Communities Agency,Investment & Renewal Maple Hse,Programmes,ABBEY COMMUNITY ASSOCIATION LTD,DAP1134-SERVICE-ROOM HIRE,17/05/2017,750,S,90111600,Meeting facilities
Communities and Local Government,Homes and Communities Agency,Capital Grant to RPs,South West,ALPHA FIRE AND SECURITY SOLUTIONS LTD,DAP1225-SERVICE-North Avon Magistrates Court - works to repai,09/06/2017,1562.25,S,72102900,Facility maintenance and repair services
Communities and Local Government,Homes and Communities Agency,Budget 2013 - Midlands Wm,Midlands,AYLESBURY MAINS LTD,DAP1268-SERVICE-Upton - Lacing Lane - 1 x initial visit to si,21/06/2017,438,S,72101500,Building maintenance and repair services
Communities and Local Government,Homes and Communities Agency,Land And Regeneration Mh,Programmes,CAPITA PROPERTY & INFRASTRUCTURE,IT69762-SERVICE-BFF project,31/05/2017,1067,L,80131800,Real estate management services
Communities and Local Government,Homes and Communities Agency,East And Se And Surr And Suss,East And South East,BERWIN LEIGHTON PAISNER,IS10340-SERVICE-Land south of Graylingwell Drive,28/02/2017,4800,L,80121600,Business law services
Communities and Local Government,Homes and Communities Agency,East And Se And Surr And Suss,East And South East,BERWIN LEIGHTON PAISNER,IS10340-SERVICE-Land south of Graylingwell Drive,31/03/2017,21848,L,80121600,Business law services
Communities and Local Government,Homes and Communities Agency,Area Dir Mids South East Midla,Midlands,BERWIN LEIGHTON PAISNER,IS12106-SERVICE-advice releated to developer breach,24/05/2017,1500,L,80121600,Business law services
Communities and Local Government,Homes and Communities Agency,LIF LS Loans Private additions,Programmes,BERWIN LEIGHTON PAISNER,IS12551-SERVICE-Chilmington Green,30/04/2017,16000,L,80121600,Business law services
Communities and Local Government,Homes and Communities Agency,Investment South East,East And South East,BERWIN LEIGHTON PAISNER,IS12629-SERVICE-Report on Title for Land at Europa Way,31/03/2017,1200,L,80121600,Business law services
Communities and Local Government,Homes and Communities Agency,East And Se Essex And Kent,East And South East,BERWIN LEIGHTON PAISNER,IS12530-SERVICE-To provide a legal definition of 'demised pre,25/04/2017,1800,L,80121600,Business law services
Communities and Local Government,Homes and Communities Agency,Investment South East,East And South East,BERWIN LEIGHTON PAISNER,IS12629-SERVICE-Report on Title for Land at Europa Way,27/04/2017,608.92,L,80121600,Business law services
Communities and Local Government,Homes and Communities Agency,Investment South East,East And South East,BERWIN LEIGHTON PAISNER,IS12629-SERVICE-Report on Title for Land at Europa Way,27/04/2017,1015.81,L,80121600,Business law services
Communities and Local Government,Homes and Communities Agency,It - Rda Transition,Finance & Corporate Services,BUSINESS IT,DAP1299-SERVICE-10 x HP Elitebook 820G3 T9X42ET,21/06/2017,8955,S,81112300,Computer hardware maintenance and support
Communities and Local Government,Homes and Communities Agency,It - Rda Transition,Finance & Corporate Services,BUSINESS IT,DAP1302-SERVICE-10 x HP Elitebook 820G3 T9X42ET,21/06/2017,8955,S,81112300,Computer hardware maintenance and support
Communities and Local Government,Homes and Communities Agency,Economic Assets Hub Transition,Economic Assets Hub,BLOSSOM IRON DEVELOPMENTS LIMITED,BTR - Blossom Iron - Ln Draw - June17,29/06/2017,917626.03,,N/A ,Loans
Communities and Local Government,Homes and Communities Agency,Economic Assets Ne-Y Prog,North East And Yorkshire,DEPARTMENT FOR BUSINESS INNOVATION & SKILLS,SETTLEMENT OF CORE ASSETS 16/17,23/06/2017,74300.65,G,N/A,Grant
Communities and Local Government,Homes and Communities Agency,Budget 2013 - Midlands Wm,Midlands,DEPARTMENT FOR BUSINESS INNOVATION & SKILLS,SETTLEMENT OF CORE ASSETS 16/17,23/06/2017,153242.14,G,N/A,Grant
Communities and Local Government,Homes and Communities Agency,Economic Assets Ne-Y Prog,North East And Yorkshire,DEPARTMENT FOR BUSINESS INNOVATION & SKILLS,SETTLEMENT OF CORE ASSETS 16/17,23/06/2017,253864.35,G,N/A,Grant
Communities and Local Government,Homes and Communities Agency,Economic Assets S&Sw Prog,South West,DEPARTMENT FOR BUSINESS INNOVATION & SKILLS,SETTLEMENT OF CORE ASSETS 16/17,23/06/2017,714541.51,G,N/A,Grant
Communities and Local Government,Homes and Communities Agency,Area Dir Mids Worcs-Shrop-Here,Midlands,BROWNE JACOBSON LLP,IS12789-SERVICE-Land at Halesfield 2 Telford - Disbursements,18/05/2017,264,L,80121600,Business law services
Communities and Local Government,Homes and Communities Agency,Area Dir Mids Worcs-Shrop-Here,Midlands,BROWNE JACOBSON LLP,IS12789-SERVICE-Land at Halesfield 2 Telford,18/05/2017,2391,L,80121600,Business law services
Communities and Local Government,Homes and Communities Agency,Land And Regeneration Mh,Programmes,BROWNE JACOBSON LLP,IS12772-SERVICE-bourton mills,10/05/2017,500,L,80121600,Business law services
Communities and Local Government,Homes and Communities Agency,South West Of Eng-Glouc-Oxford,South West,BROWNE JACOBSON LLP,IS11395-SERVICE-Cedar House,27/04/2017,356,L,80121600,Business law services
Communities and Local Government,Homes and Communities Agency,Land And Regeneration Mh,Programmes,BROWNE JACOBSON LLP,IS12487-SERVICE-,18/05/2017,750,L,80121600,Business law services
Communities and Local Government,Homes and Communities Agency,Public Land and Regeneration,Programmes,BROWNE JACOBSON LLP,IS12337-SERVICE-Land at Wootton Bassett Road,31/05/2017,2000,L,80121600,Business law services
Communities and Local Government,Homes and Communities Agency,Area Dir Mids Worcs-Shrop-Here,Midlands,BROWNE JACOBSON LLP,IS10886-SERVICE-Plot 2 (East) Donnington Wood Business Park -,27/04/2017,1831.5,L,80121600,Business law services
Communities and Local Government,Homes and Communities Agency,Public Land and Regeneration,Programmes,BROWNE JACOBSON LLP,IS12148-SERVICE-Building Agreement Ancillary Documents Variat,28/04/2017,2000,L,80121600,Business law services
Communities and Local Government,Homes and Communities Agency,Area Dir Mids Worcs-Shrop-Here,Midlands,BROWNE JACOBSON LLP,IS10886-SERVICE-Plot 2 (East) Donnington Wood Business Park -,26/05/2017,3668.5,L,80121600,Business law services
Communities and Local Government,Homes and Communities Agency,Land And Regeneration Mh,Programmes,BROWNE JACOBSON LLP,IS12327-SERVICE-Regents Park,24/03/2017,5000,L,80121600,Business law services
Communities and Local Government,Homes and Communities Agency,Economic Assets S&Sw Prog,South West,BROWNE JACOBSON LLP,IS12773-SERVICE-Locking Parklands,02/12/2016,2066.5,L,80121600,Business law services
Communities and Local Government,Homes and Communities Agency,Economic Assets S&Sw Prog,South West,BROWNE JACOBSON LLP,IS12806-SERVICE-Northern United former Colliery,30/05/2017,358,L,80121600,Business law services
Communities and Local Government,Homes and Communities Agency,Economic Assets S&Sw Prog,South West,BROWNE JACOBSON LLP,IS12806-SERVICE-Northern United former Colliery,30/05/2017,8938.5,L,80121600,Business law services
Communities and Local Government,Homes and Communities Agency,Liverpool Cheshire Warrington,North West,BROWNE JACOBSON LLP,IS12495-SERVICE-Former Baxi site,30/05/2017,2850,L,80121600,Business law services
Communities and Local Government,Homes and Communities Agency,South West Of Eng-Glouc-Oxford,South West,BROWNE JACOBSON LLP,IS12825-SERVICE-Dilapidations advice for Building 11 Newfound,09/06/2017,2009,L,80121600,Business law services
Communities and Local Government,Homes and Communities Agency,South West Of Eng-Glouc-Oxford,South West,BROWNE JACOBSON LLP,IS12824-SERVICE-Advice in relation to on going Dilapidations ,09/06/2017,1213,L,80121600,Business law services
Communities and Local Government,Homes and Communities Agency,Budget 2013 - Midlands Wm,Midlands,BROWNE JACOBSON LLP,IS11343-SERVICE-Disbursements 0% VAT,15/06/2017,412.33,L,80121600,Business law services
Communities and Local Government,Homes and Communities Agency,Budget 2013 - Midlands Wm,Midlands,BROWNE JACOBSON LLP,IS12758-SERVICE-Park Road,20/06/2017,1000,L,80121600,Business law services
Communities and Local Government,Homes and Communities Agency,Area Dir Mids Worcs-Shrop-Here,Midlands,BROWNE JACOBSON LLP,IS12154-SERVICE-Lightmoor,16/12/2016,2800,L,80121600,Business law services
Communities and Local Government,Homes and Communities Agency,Public Land and Regeneration,Programmes,BROWNE JACOBSON LLP,IS12337-SERVICE-Land at Wootton Bassett Road,23/06/2017,4000,L,80121600,Business law services
Communities and Local Government,Homes and Communities Agency,Economic Assets S&Sw Prog,South West,BROWNE JACOBSON LLP,IS12801-SERVICE-Barters Nursery,26/06/2017,2701.87,L,80121600,Business law services
Communities and Local Government,Homes and Communities Agency,Budget 2013 - Midlands Wm,Midlands,BROWNE JACOBSON LLP,IS11912-SERVICE-HCA Washwood Heath (former LDV) - Disbursemen,30/01/2017,1500,L,80121600,Business law services
Communities and Local Government,Homes and Communities Agency,Liverpool Cheshire Warrington,North West,BUILDING DESIGN PARTNERSHIP,IT72153-SERVICE-Cheshire HS2 Growth Study,21/06/2017,4069,L,80131800,Real estate management services
Communities and Local Government,Homes and Communities Agency,Liverpool Cheshire Warrington,North West,BUILDING DESIGN PARTNERSHIP,IT71772-SERVICE-Multidisciplinary Services for Outline Planni,26/06/2017,2134,L,80131800,Real estate management services
Communities and Local Government,Homes and Communities Agency,Economic Assets Hub Transition,Economic Assets Hub,BEWE MANOR LTD,STF - Manor Road - Drawdown - June 17,20/06/2017,371772.08,,N/A ,Loans
Communities and Local Government,Homes and Communities Agency,South West Somerset-Dev-Plym-T,South West,PETER BRETT ASSOCIATES LLP,IT72231-SERVICE-Collapsed Wall at Trinity Pier,26/05/2017,5000,L,80131800,Real estate management services
Communities and Local Government,Homes and Communities Agency,Economic Assets S&Sw Prog,South West,PETER BRETT ASSOCIATES LLP,IT73384-SERVICE-Flax Bourton - Desktop Site Review,26/05/2017,2650,L,80131800,Real estate management services
Communities and Local Government,Homes and Communities Agency,Land And Regeneration Mh,Programmes,PETER BRETT ASSOCIATES LLP,IT69727-SERVICE-28085 - Spinney Hill MS Appointment,30/05/2017,1350,L,80131800,Real estate management services
Communities and Local Government,Homes and Communities Agency,Economic Assets S&Sw Prog,South West,PETER BRETT ASSOCIATES LLP,IT73675-SERVICE-Additional pre-purchase due diligence Blandfo,22/06/2017,8250,L,80131800,Real estate management services
Communities and Local Government,Homes and Communities Agency,South West Somerset-Dev-Plym-T,South West,PETER BRETT ASSOCIATES LLP,IT72231-SERVICE-Collapsed Wall at Trinity Pier,22/06/2017,4500,L,80131800,Real estate management services
Communities and Local Government,Homes and Communities Agency,Economic Assets Ne-Y Prog,North East And Yorkshire,BIFFA WASTE SERVICE LTD,"DAP0852-SERVICE-Burt Street, Blyth - Biffa Contract Number 14",23/06/2017,496.1,L,76121500,Refuse collection and disposal
Communities and Local Government,Homes and Communities Agency,It - Rda Transition,Finance & Corporate Services,BRITISH TELECOMMUNICATIONS PLC,"DGC0056-SERVICE-General nationwide BT phone svcs: voice,VC,fa",23/05/2017,342.45,L,83111500,Local and long distance telephone communications
Communities and Local Government,Homes and Communities Agency,Economic Assets S&Sw Prog,South West,BRITISH TELECOMMUNICATIONS PLC,DAP1117-SERVICE-Telemetry connection for Foul Pumping Station,29/05/2017,414.74,L,83111500,Local and long distance telephone communications
Communities and Local Government,Homes and Communities Agency,It - Rda Transition,Finance & Corporate Services,BRITISH TELECOMMUNICATIONS PLC,DAP1356-SERVICE-VP50329470AC - Homeworker Broadband quarterly,29/03/2017,1556.31,L,83111500,Local and long distance telephone communications
Communities and Local Government,Homes and Communities Agency,Ne-Yh Sheffield And Humb Ne-Y,North East And Yorkshire,JACOBS UK LTD,DYH0221-SERVICE-Reed Bed Fees,27/04/2017,6453.67,L,80131800,Real estate management services
Communities and Local Government,Homes and Communities Agency,Ne-Yh Sheffield And Humb Ne-Y,North East And Yorkshire,JACOBS UK LTD,DYH0221-SERVICE-Reed Bed Fees,27/04/2017,6330,L,80131800,Real estate management services
Communities and Local Government,Homes and Communities Agency,Ne-Yh Sheffield And Humb Ne-Y,North East And Yorkshire,JACOBS UK LTD,DYH0251-SERVICE-Replaces PO YH00093 - Prof Consultancy,25/05/2017,12686.62,L,80131800,Real estate management services
Communities and Local Government,Homes and Communities Agency,Ne-Yh Sheffield And Humb Ne-Y,North East And Yorkshire,JACOBS UK LTD,DYH0251-SERVICE-Replaces PO YH00093 - Prof Consultancy,25/05/2017,10855.6,L,80131800,Real estate management services
Communities and Local Government,Homes and Communities Agency,Ne-Yh Sheffield And Humb Ne-Y,North East And Yorkshire,JACOBS UK LTD,DYH0251-SERVICE-MATERIALS,25/05/2017,15641.86,L,80131800,Real estate management services
Communities and Local Government,Homes and Communities Agency,Ne-Yh Sheffield And Humb Ne-Y,North East And Yorkshire,JACOBS UK LTD,DYH0251-SERVICE-Replaces PO YH00093 - Prof Consultancy,25/05/2017,2163.02,L,80131800,Real estate management services
Communities and Local Government,Homes and Communities Agency,Public Land and Regeneration,Programmes,BRITISH GAS BUSINESS,DAM3165-SERVICE-Electricity supply - The former Halifax Magis,02/06/2017,928.03,L,83101800,Electric utilities
Communities and Local Government,Homes and Communities Agency,Public Land and Regeneration,Programmes,BRITISH GAS BUSINESS,DAM3487-SERVICE-DARTFORD MAGISTRATES COURT     Call off order,08/06/2017,591.29,L,83101800,Electric utilities
Communities and Local Government,Homes and Communities Agency,Mk Development Control Mk,Midlands,BETTS ECOLOGY,DAP0962-SERVICE-Ransome Road - Invertebrae Scoping Survey and,31/05/2017,1000,S,77101500,Environmental auditing
Communities and Local Government,Homes and Communities Agency,Mk Development Control Mk,Midlands,BETTS ECOLOGY,DAM3552-SERVICE-Reptile survey,31/05/2017,2000,S,77101500,Environmental auditing
Communities and Local Government,Homes and Communities Agency,Economic Assets Hub Transition,Economic Assets Hub,BROADACRES SERVICES LIMITED,STF-Richmond House-June 17,09/06/2017,40516,,N/A ,Loans
Communities and Local Government,Homes and Communities Agency,Programme Management Mh,Finance & Corporate Services,BC LEGAL,DGC1626-SERVICE-N WARD Vs HCA DISBURSEMENT,18/05/2017,2014.25,S,80121600,Business law services
Communities and Local Government,Homes and Communities Agency,Programme Management Mh,Finance & Corporate Services,BC LEGAL,DGC1625-SERVICE-F MATHER Vs HCA DISBURSEMENT,18/05/2017,330,S,80121600,Business law services
Communities and Local Government,Homes and Communities Agency,Programme Management Mh,Finance & Corporate Services,BC LEGAL,DGC1627-SERVICE-J WARBURTON Vs HCA DISBURSEMENT,18/05/2017,810,S,80121600,Business law services
Communities and Local Government,Homes and Communities Agency,Economic Assets Hub Transition,Economic Assets Hub,BLAST PROPERTIES LTD,short term - form Narracott - Draw June,06/06/2017,417476.01,,N/A ,Loans
Communities and Local Government,Homes and Communities Agency,Comms Transition Budget,Finance & Corporate Services,BRITISH GAS BUSINESS,DOF0401-SERVICE-BIS %,26/05/2017,1660.96,L,83101800,Electric utilities
Communities and Local Government,Homes and Communities Agency,Comms Transition Budget,Finance & Corporate Services,BRITISH GAS BUSINESS,DOF0401-SERVICE-afegd 1106 01,26/05/2017,3600.25,L,83101800,Electric utilities
Communities and Local Government,Homes and Communities Agency,Comms Transition Budget,Finance & Corporate Services,BRITISH GAS BUSINESS,DOF0378-SERVICE-tenant,02/06/2017,473.22,L,83101800,Electric utilities
Communities and Local Government,Homes and Communities Agency,Comms Transition Budget,Finance & Corporate Services,BRITISH GAS BUSINESS,DOF0378-SERVICE-Electricity Tenanats supply Warrington,02/06/2017,1147.96,L,83101800,Electric utilities
Communities and Local Government,Homes and Communities Agency,Comms Transition Budget,Finance & Corporate Services,BRITISH GAS BUSINESS,DOF0401-SERVICE-BIS %,02/06/2017,1648.91,L,83101800,Electric utilities
Communities and Local Government,Homes and Communities Agency,Comms Transition Budget,Finance & Corporate Services,BRITISH GAS BUSINESS,DOF0401-SERVICE-afegd 1106 01,02/06/2017,3574.11,L,83101800,Electric utilities
Communities and Local Government,Homes and Communities Agency,Economic Assets S&Sw Prog,South West,BRUTON KNOWLES PROPERTY CONSULTANTS,DAP1248-SERVICE-Service Charge payment to management company,06/04/2017,2317.92,M,80131500,Lease and rental of property or building
Communities and Local Government,Homes and Communities Agency,Economic Assets S&Sw Prog,South West,BRUTON KNOWLES PROPERTY CONSULTANTS,DAP1248-SERVICE-Service Charge payment to management company,06/04/2017,3120.38,M,80131500,Lease and rental of property or building
Communities and Local Government,Homes and Communities Agency,Economic Assets S&Sw Prog,South West,BRUTON KNOWLES PROPERTY CONSULTANTS,DAP1248-SERVICE-Service Charge payment to management company,06/04/2017,815.94,M,80131500,Lease and rental of property or building
Communities and Local Government,Homes and Communities Agency,Economic Assets S&Sw Prog,South West,BRUTON KNOWLES PROPERTY CONSULTANTS,DAP1248-SERVICE-Service Charge payment to management company,06/04/2017,897.04,M,80131500,Lease and rental of property or building
Communities and Local Government,Homes and Communities Agency,Budget 2013 - Midlands Wm,Midlands,BIRMINGHAM CITY COUNCIL,DWM0807-SERVICE-Removal of waste and cleansing following occu,20/02/2017,8960,G,72153501,Building exterior cleaning service  
Communities and Local Government,Homes and Communities Agency,Budget 2013 - Midlands Wm,Midlands,BIRMINGHAM CITY COUNCIL,DWM0399-SERVICE-Meadway - Balance of HCA contribution.Birming,14/06/2017,107087.44,G,N/A ,Grant
Communities and Local Government,Homes and Communities Agency,Economic Assets Hub Transition,Economic Assets Hub,BOVIS HOMES LTD,LTF-Stanton Cross-June17,16/06/2017,1858913.54,L,N/A ,Loans
Communities and Local Government,Homes and Communities Agency,Land And Regeneration Mh,Programmes,BNP PARIBAS REAL ESTATE,IT70828-SERVICE-Monitoring Surveyor - Hockley Homes Ltd,31/01/2017,450,L,80131800,Real estate management services
Communities and Local Government,Homes and Communities Agency,Land And Regeneration Mh,Programmes,BNP PARIBAS REAL ESTATE,IT70828-SERVICE-Monitoring Surveyor - Hockley Homes Ltd,28/02/2017,450,L,80131800,Real estate management services
Communities and Local Government,Homes and Communities Agency,Land And Regeneration Mh,Programmes,BNP PARIBAS REAL ESTATE,IT70740-SERVICE-Earl Marshal,30/04/2017,600,L,80131800,Real estate management services
Communities and Local Government,Homes and Communities Agency,Land And Regeneration Mh,Programmes,BNP PARIBAS REAL ESTATE,IT70741-SERVICE-Falstaff 2,30/04/2017,600,L,80131800,Real estate management services
Communities and Local Government,Homes and Communities Agency,Land And Regeneration Mh,Programmes,BNP PARIBAS REAL ESTATE,IT70743-SERVICE-Norfolk Park 4 & Bluestones,30/04/2017,600,L,80131800,Real estate management services
Communities and Local Government,Homes and Communities Agency,Land And Regeneration Mh,Programmes,BNP PARIBAS REAL ESTATE,IT70729-SERVICE-Bucknall Hospital Site,30/04/2017,600,L,80131800,Real estate management services
Communities and Local Government,Homes and Communities Agency,Land And Regeneration Mh,Programmes,BNP PARIBAS REAL ESTATE,IT70314-SERVICE-Monitoring Surveyor Services as per the HCA S,30/04/2017,450,L,80131800,Real estate management services
Communities and Local Government,Homes and Communities Agency,Land And Regeneration Mh,Programmes,BNP PARIBAS REAL ESTATE,IT70959-SERVICE-BFF Project Monitoring Instruction - Risby Ho,30/04/2017,450,L,80131800,Real estate management services
Communities and Local Government,Homes and Communities Agency,Land And Regeneration Mh,Programmes,BNP PARIBAS REAL ESTATE,IT70724-SERVICE-Phase 4 Central Park,28/04/2017,600,L,80131800,Real estate management services
Communities and Local Government,Homes and Communities Agency,Land And Regeneration Mh,Programmes,BNP PARIBAS REAL ESTATE,IT70730-SERVICE-City Waterside,30/04/2017,600,L,80131800,Real estate management services
Communities and Local Government,Homes and Communities Agency,Estate Management Yorks,North West,G BURLEY & SONS LTD,DAM2873-SERVICE-Maintenane of 10 sites in Peterborough during,28/04/2017,420.15,S,72101500,Building maintenance and repair services
Communities and Local Government,Homes and Communities Agency,Estate Management Yorks,North West,G BURLEY & SONS LTD,DAM3101-SERVICE-LC156     Northampton Town and Brackmills Lan,31/05/2017,2056.29,S,72101500,Building maintenance and repair services
Communities and Local Government,Homes and Communities Agency,Capital Grant to RPs,South West,BERRYS,"DAP1026-SERVICE-Fee for letting number 15 Wrest Park, carryin",26/05/2017,935,S,80131800,Real estate management services
Communities and Local Government,Homes and Communities Agency,East And Se Cambs Herts And Bu,East And South East,BERRYS,IT71930-SERVICE-Northstowe Farmland Birds Rural Land Serach,31/05/2017,7500,S,80131800,Real estate management services
Communities and Local Government,Homes and Communities Agency,Ftbi South East,East And South East,BERRYS,IT72607-SERVICE-Northstowe - FLB - FBT Negotiation,31/05/2017,6000,S,80131800,Real estate management services
Communities and Local Government,Homes and Communities Agency,Estate Management Yorks,North West,BERRYS,IT72794-SERVICE-Telford General - Additional Work,31/03/2017,700,S,80131800,Real estate management services
Communities and Local Government,Homes and Communities Agency,Public Land and Regeneration,Programmes,BERRYS,IT72482-SERVICE-Residential Management FOR 2017-18,28/06/2017,2087,S,80131800,Real estate management services
Communities and Local Government,Homes and Communities Agency,It - Rda Transition,Finance & Corporate Services,CARETOWER LTD,DAP1123-SERVICE-50 x Active ID - Mini0tokens with clock,10/06/2017,862.5,L,81112300,Computer hardware maintenance and support
Communities and Local Government,Homes and Communities Agency,Economic Assets S&Sw Prog,South West,CAMPBELL REITH,IT71701-SERVICE-BBSP Bat activity surveys,31/05/2017,972.38,S,77101500,Environmental auditing
Communities and Local Government,Homes and Communities Agency,Economic Assets S&Sw Prog,South West,CAMPBELL REITH,IT71703-SERVICE-BBSP otter and water vole surveys,31/05/2017,577.9,S,77101500,Environmental auditing
Communities and Local Government,Homes and Communities Agency,Public Land and Regeneration,Programmes,CAMPBELL REITH,IT70191-SERVICE-Wealstun Demolition,31/05/2017,1000,S,77101500,Environmental auditing
Communities and Local Government,Homes and Communities Agency,Public Land and Regeneration,Programmes,CAMPBELL REITH,IT72497-SERVICE-Instruction for TEP in relation to building o,06/06/2017,1655.46,S,77101500,Environmental auditing
Communities and Local Government,Homes and Communities Agency,Economic Assets S&Sw Prog,South West,CAMPBELL REITH,IT72500-SERVICE-BBSP Bristol - GCN surveys Mid Mar 2017 to Mi,06/06/2017,1273.2,S,77101500,Environmental auditing
Communities and Local Government,Homes and Communities Agency,East And South East,East And South East,CAMPBELL REITH,IT72201-SERVICE-Site Supervision and Contract Administration,31/05/2017,1927.9,S,77101500,Environmental auditing
Communities and Local Government,Homes and Communities Agency,Economic Assets S&Sw Prog,South West,CAMPBELL REITH,IT73273-SERVICE-To oversee snagging works on site,31/05/2017,1050,S,77101500,Environmental auditing
Communities and Local Government,Homes and Communities Agency,East And Se Cambs Herts And Bu,East And South East,CAMPBELL REITH,IT72891-SERVICE-Northstowe Phase 2 Healthy Living and Youth a,08/06/2017,8351.01,S,77101500,Environmental auditing
Communities and Local Government,Homes and Communities Agency,Public Land and Regeneration,Programmes,CAMPBELL REITH,IT70584-SERVICE-Property and Planning consultancy Wealstun Le,20/06/2017,660,S,77101500,Environmental auditing
Communities and Local Government,Homes and Communities Agency,Land And Regeneration Mh,Programmes,CARTER JONAS,IT73151-SERVICE-Valuation for land at Glasshouses Mill - Glas,30/05/2017,2000,L,80131800,Real estate management services
Communities and Local Government,Homes and Communities Agency,Public Land and Regeneration,Programmes,CARTER JONAS,IT73674-SERVICE-Valuation advice - Hampshire site,31/05/2017,6500,L,80131800,Real estate management services
Communities and Local Government,Homes and Communities Agency,East And Se Essex And Kent,East And South East,CARTER JONAS,IT73444-SERVICE-Nick Brammar quoted1,22/06/2017,1500,L,80131800,Real estate management services
Communities and Local Government,Homes and Communities Agency,Public Land and Regeneration,Programmes,CORONA ENERGY,DAM3460-SERVICE-ST JAMES HOSPITAL     Gas bills.,09/06/2017,664.12,L,83101600,Oil and gas utilities
Communities and Local Government,Homes and Communities Agency,Public Land and Regeneration,Programmes,CORONA ENERGY,DAM3460-SERVICE-ST JAMES HOSPITAL     Gas bills.,09/06/2017,524.35,L,83101600,Oil and gas utilities
Communities and Local Government,Homes and Communities Agency,Public Land and Regeneration,Programmes,CORONA ENERGY,DAM3460-SERVICE-ST JAMES HOSPITAL     Gas bills.,09/06/2017,466.7,L,83101600,Oil and gas utilities
Communities and Local Government,Homes and Communities Agency,Spatial Intelligence Telford,Programmes,CORONA ENERGY,"DAP1261-SERVICE-Gas Supply, Skegness Magistrates Court, Park",11/05/2017,1093.97,L,83101600,Oil and gas utilities
Communities and Local Government,Homes and Communities Agency,Spatial Intelligence Telford,Programmes,CORONA ENERGY,"DAP1261-SERVICE-Gas Supply, Skegness Magistrates Court, Park",09/06/2017,809.53,L,83101600,Oil and gas utilities
Communities and Local Government,Homes and Communities Agency,Ne-Y North East Washington,North East And Yorkshire,C A STAMP FARM & GARDEN SERVICES,DAP0822-SERVICE-Remediation of works arising from RSK report,17/06/2017,750,S,72153501,Building exterior cleaning service  
Communities and Local Government,Homes and Communities Agency,Comms Transition Budget,Finance & Corporate Services,CLAYTON HOTELS,"DAP1223-SERVICE-14 car parking permits at Clayton Hotel, Leed",13/06/2017,4550,L,80131500,Lease and rental of property or building
Communities and Local Government,Homes and Communities Agency,Corporate Marketing Bpr,Programmes,LANDMARK ANALYTICS LTD,DCB0063-SERVICE-Calnea Landmark Data 01/06/2017-31/05/2018,31/05/2017,52366,M,94101600,Professional associations
Communities and Local Government,Homes and Communities Agency,Economic Assets S&Sw Prog,South West,CLARKE WILLMOTT LLP,DAP0100-SERVICE-Legal fees for the disposal of BBSP,28/04/2017,3892.32,M,80121600,Business law services
Communities and Local Government,Homes and Communities Agency,Economic Assets S&Sw Prog,South West,CLARKE WILLMOTT LLP,DAP0100-SERVICE-Legal fees for the disposal of BBSP,31/05/2017,2995.42,M,80121600,Business law services
Communities and Local Government,Homes and Communities Agency,Economic Assets Hub Transition,Economic Assets Hub,CLUBLIGHT DEVELOPMENTS LTD.,BFF - Bourton Mills - Drawdown June 2017,06/06/2017,6950.1,,N/A ,Loans
Communities and Local Government,Homes and Communities Agency,Economic Assets S&Sw Prog,South West,C.M.A. (NEMESIS) LTD,DAP0649-SERVICE-Plot 6 Temple Quarter - rodent control 2017-2,19/05/2017,390,S,72102100,Pest control
Communities and Local Government,Homes and Communities Agency,Economic Assets S&Sw Prog,South West,C.M.A. (NEMESIS) LTD,DAP0649-SERVICE-Plot 6 Temple Quarter - rodent control 2017-2,02/06/2017,294,S,72102100,Pest control
Communities and Local Government,Homes and Communities Agency,Economic Assets Hub Transition,Economic Assets Hub,CAPTIVA HOMES,STF-Castle Street-June17,01/06/2017,296627.76,,N/A ,Loans
Communities and Local Government,Homes and Communities Agency,Economic Assets Hub Transition,Economic Assets Hub,CLEE MEADOWS LTD,STF - Ladysmith Road - Drawdown June 17,29/06/2017,73360.53,,N/A ,Loans
Communities and Local Government,Homes and Communities Agency,Economic Assets Hub Transition,Economic Assets Hub,CLEE MEADOWS LTD,STF - Ladysmith Rd - Drawdn - June17,30/06/2017,187411,,N/A ,Loans
Communities and Local Government,Homes and Communities Agency,Facilities Allerton Bywater,Finance & Corporate Services,CIVIL SERVICE RESOURCING,DGC1459-SERVICE-Civil Service Jobs 17/18,06/06/2017,4508,G,80141600,Sales and business promotion activities
Communities and Local Government,Homes and Communities Agency,Economic Assets S&Sw Prog,South West,CLAPHAMS LANDSCAPE SERVICES LTD,DAP1288-SERVICE-Landscaping March 2017 - Hengrove Fliwood Lan,18/03/2017,2004.44,S,72101500,Building maintenance and repair services
Communities and Local Government,Homes and Communities Agency,Economic Assets S&Sw Prog,South West,CLAPHAMS LANDSCAPE SERVICES LTD,"DAP1088-SERVICE-Gateway North Swindon, landscape maintenance",18/06/2017,875,S,72101500,Building maintenance and repair services
Communities and Local Government,Homes and Communities Agency,Economic Assets S&Sw Prog,South West,CELTIC TECHNOLOGIES LTD,DSW1205-SERVICE-Daedalus - Groundwater Plume Remediation,21/06/2017,70889.95,M,72141500,Land preparation services
Communities and Local Government,Homes and Communities Agency,Public Land and Regeneration,Programmes,CONCEPT BUILDING SERVICES  (SOUTHERN) LTD,"DSW0637-SERVICE-Broxhead House, Louisburg Barracks, Bordon, H",23/06/2017,230958,M,72101500,Building maintenance and repair services
Communities and Local Government,Homes and Communities Agency,Spatial Intelligence Telford,Programmes,CAST CONSULT LTD,DAP1144-SERVICE-MMC consultancy support - AC Programme,30/05/2017,9550,L,80131800,Real estate management services
Communities and Local Government,Homes and Communities Agency,East And South East,East And South East,C-ELECT ASSOCIATES LIMITED,DAP0736-SERVICE-Queenborough and Rushenden. Isolate power/wat,07/06/2017,3500,S,72101500,Building maintenance and repair services
Communities and Local Government,Homes and Communities Agency,South East,East And South East,C-ELECT ASSOCIATES LIMITED,DAM3099-SERVICE-DOVER CONNAUGHT BARRACKS     Call off order,21/06/2017,1933.25,S,72101500,Building maintenance and repair services
Communities and Local Government,Homes and Communities Agency,Economic Assets S&Sw Prog,South West,C-ELECT ASSOCIATES LIMITED,DAP1102-SERVICE-Electrical decommissioning works following pu,14/06/2017,5000,S,72101500,Building maintenance and repair services
Communities and Local Government,Homes and Communities Agency,East And South East,East And South East,C-ELECT ASSOCIATES LIMITED,DAP1333-SERVICE-Cherry Picker Work - Northfleet Embankment,22/06/2017,420,S,72101500,Building maintenance and repair services
Communities and Local Government,Homes and Communities Agency,Capital Grant to RPs,South West,C-ELECT ASSOCIATES LIMITED,"DAP1334-SERVICE-Call off order for Compton, Berkshire",22/06/2017,1567.66,S,72101500,Building maintenance and repair services
Communities and Local Government,Homes and Communities Agency,Economic Assets S&Sw Prog,South West,CASTLE WATER LTD,"DAP1219-SERVICE-St James Hospital, water bill.",12/06/2017,3495.09,M,77101500,Environmental auditing
Communities and Local Government,Homes and Communities Agency,Economic Assets S&Sw Prog,South West,CASTLE WATER LTD,DSW1089-SERVICE-Daedalus - Water,09/06/2017,515.72,M,77101500,Environmental auditing
Communities and Local Government,Homes and Communities Agency,Economic Assets S&Sw Prog,South West,CASTLE WATER LTD,DSW1089-SERVICE-Daedalus - Water,09/06/2017,1000,M,77101500,Environmental auditing
Communities and Local Government,Homes and Communities Agency,Economic Assets S&Sw Prog,South West,CASTLE WATER LTD,DSW1089-SERVICE-Daedalus - Water,05/05/2017,1219.59,M,77101500,Environmental auditing
Communities and Local Government,Homes and Communities Agency,Capital Grant to RPs,South West,CHESTER & NEWMAN PLUMBING & HEATING SERVICES,DAP1162-SERVICE-To remove existing cold water storage tank an,15/06/2017,360,S,72101500,Building maintenance and repair services
Communities and Local Government,Homes and Communities Agency,Estate Management Yorks,North West,CONTINENTAL LANDSCAPES - GREENHAND,DAM3279-SERVICE-WARRINGTON     Warrington landscape maintenan,31/05/2017,786.55,L,72101500,Building maintenance and repair services
Communities and Local Government,Homes and Communities Agency,Economic Assets Nw Prog,North West,CONTINENTAL LANDSCAPES - GREENHAND,DNW0615-SERVICE-Year 1 of the EAP.NW.012 contract - Wavertree,31/05/2017,277.73,L,72101500,Building maintenance and repair services
Communities and Local Government,Homes and Communities Agency,Economic Assets Nw Prog,North West,CONTINENTAL LANDSCAPES - GREENHAND,DNW0615-SERVICE-Year 1 of the EAP.NW.012 contract - Hooton,31/05/2017,360.08,L,72101500,Building maintenance and repair services
Communities and Local Government,Homes and Communities Agency,Ad Manchester Trafford,North West,CONTINENTAL LANDSCAPES - GREENHAND,DNW0615-SERVICE-Year 1 EAP.NW.012 contract - Innovation Park,31/05/2017,360.96,L,72101500,Building maintenance and repair services
Communities and Local Government,Homes and Communities Agency,Economic Assets Nw Prog,North West,CONTINENTAL LANDSCAPES - GREENHAND,DNW0615-SERVICE-Year 1 of the EAP.NW.012 contract - Croft,31/05/2017,390.96,L,72101500,Building maintenance and repair services
Communities and Local Government,Homes and Communities Agency,Economic Assets Nw Prog,North West,CONTINENTAL LANDSCAPES - GREENHAND,DNW0615-SERVICE-Year 1 of the EAP.NW.012 contract - Boulevard,31/05/2017,685.34,L,72101500,Building maintenance and repair services
Communities and Local Government,Homes and Communities Agency,Estate Management Yorks,North West,CONTINENTAL LANDSCAPES - GREENHAND,DAM2990-SERVICE-MERSEYSIDE     To carry out works as per Land,24/05/2017,275.07,L,72101500,Building maintenance and repair services
Communities and Local Government,Homes and Communities Agency,Area Dir Mids Worcs-Shrop-Here,Midlands,CONTINENTAL LANDSCAPES - GREENHAND,DWM0823-SERVICE-Year 3 extension of NL430-2015-2018,24/05/2017,550.77,L,72101500,Building maintenance and repair services
Communities and Local Government,Homes and Communities Agency,Economic Assets S&Sw Prog,South West,CORNWALL COUNCIL,DAP0170-SERVICE-NNDR for Apr 2017 pre completion of the sale,08/03/2017,3752,G,80131500,Lease and rental of property or building
Communities and Local Government,Homes and Communities Agency,Economic Assets S&Sw Prog,South West,CORNWALL COUNCIL,DAP0170-SERVICE-NNDR for Apr 2017 pre completion of the sale,08/03/2017,108855,G,80131500,Lease and rental of property or building
Communities and Local Government,Homes and Communities Agency,Economic Assets S&Sw Prog,South West,CB RICHARD ELLIS,IT73481-SERVICE-Franking Valuation Unit 2,26/05/2017,750,L,80131800,Real estate management services
Communities and Local Government,Homes and Communities Agency,Economic Assets Nw Prog,North West,CB RICHARD ELLIS,IT71467-SERVICE-Liverpool Innovation Park : disposal related,05/06/2017,3336,L,80131800,Real estate management services
Communities and Local Government,Homes and Communities Agency,Ad Manchester Trafford,North West,CB RICHARD ELLIS,IT73271-SERVICE-Schedule of Dilapidations,27/04/2017,2750,L,80131800,Real estate management services
Communities and Local Government,Homes and Communities Agency,Economic Assets S&Sw Prog,South West,CB RICHARD ELLIS,IT72543-SERVICE-BBSP Review of drawings for GO tenants fit ou,31/05/2017,500,L,80131800,Real estate management services
Communities and Local Government,Homes and Communities Agency,Economic Assets S&Sw Prog,South West,CB RICHARD ELLIS,IT73555-SERVICE-Chapel AStreer Redruth rates Appeal,02/06/2017,8152,L,80131800,Real estate management services
Communities and Local Government,Homes and Communities Agency,South West Hants-Iow-Dorset-Bu,South West,CB RICHARD ELLIS,IT72162-SERVICE-Lease negotaitions for Nuvia C301 - Ultimatel,28/10/2016,500,L,80131800,Real estate management services
Communities and Local Government,Homes and Communities Agency,South West Hants-Iow-Dorset-Bu,South West,CB RICHARD ELLIS,IT72145-SERVICE-Nuvia Chesil House lease fee 1,28/10/2016,250,L,80131800,Real estate management services
Communities and Local Government,Homes and Communities Agency,Land And Regeneration Mh,Programmes,CB RICHARD ELLIS,IT72104-SERVICE-Fairbridge Way Monitoring Surveyor,31/05/2017,7000,L,80131800,Real estate management services
Communities and Local Government,Homes and Communities Agency,Economic Assets Ne-Y Prog,North East And Yorkshire,J W CROWTHER & SON LTD,"DAP1003-SERVICE-Carr Lodge Farm, surface water gully clearanc",09/05/2017,640,S,72101500,Building maintenance and repair services
Communities and Local Government,Homes and Communities Agency,Area Dir Mids Worcs-Shrop-Here,Midlands,COLEMAN & COMPANY LIMITED,DWM0842-SERVICE-Asbestos removal and demolition works of the,17/05/2017,2482.49,M,72141500,Land preparation services
Communities and Local Government,Homes and Communities Agency,Economic Assets Hub Transition,Economic Assets Hub,CITU (KELHAM ISLAND) LLP,GBB - Kelham Isl Z Carbon Draw June 17,30/06/2017,570000,,N/A ,Loans
Communities and Local Government,Homes and Communities Agency,East And Se Essex And Kent,East And South East,CHANNEL ENGINEERING LTD,"DAP0648-SERVICE-Former Mill Site, Isle of Sheppey - call off",27/05/2017,4114,S,72101500,Building maintenance and repair services
Communities and Local Government,Homes and Communities Agency,East And South East,East And South East,CHANNEL ENGINEERING LTD,DAP0686-SERVICE-Chatham Maritime - Pontoon works - excludes w,23/05/2017,4820,S,72101500,Building maintenance and repair services
Communities and Local Government,Homes and Communities Agency,East And Se Essex And Kent,East And South East,CHANNEL ENGINEERING LTD,"DAP0733-SERVICE-Dartford Magistrates Court, welding works to",27/05/2017,1359,S,72101500,Building maintenance and repair services
Communities and Local Government,Homes and Communities Agency,East And South East,East And South East,CHANNEL ENGINEERING LTD,DAP1070-SERVICE-Roof Works - Northfleet Embankment,06/04/2017,496,S,72101500,Building maintenance and repair services
Communities and Local Government,Homes and Communities Agency,East And South East,East And South East,CHANNEL ENGINEERING LTD,DAM3002-SERVICE-NORTHFLEET EMBANKMENT     Call off order for,07/06/2017,1708,S,72101500,Building maintenance and repair services
Communities and Local Government,Homes and Communities Agency,East And South East,East And South East,CHANNEL ENGINEERING LTD,"DAP1177-SERVICE-Queenborough and Rushenden, call off order.",08/06/2017,250,S,72101500,Building maintenance and repair services
Communities and Local Government,Homes and Communities Agency,Capital Grant to RPs,South West,CHANNEL ENGINEERING LTD,DAP1239-SERVICE-call off order,13/06/2017,510,S,72101500,Building maintenance and repair services
Communities and Local Government,Homes and Communities Agency,East And South East,East And South East,CHANNEL ENGINEERING LTD,"DAP1203-SERVICE-Northfleet Embankment, remove metal staircase",09/06/2017,508,S,72101500,Building maintenance and repair services
Communities and Local Government,Homes and Communities Agency,East And Se Essex And Kent,East And South East,CHANNEL ENGINEERING LTD,DAP0898-SERVICE-Materials,14/06/2017,989,S,72101500,Building maintenance and repair services
Communities and Local Government,Homes and Communities Agency,East And Se Essex And Kent,East And South East,CHANNEL ENGINEERING LTD,DAP0898-SERVICE-Fabrication works at Dartford Magistrates Cou,14/06/2017,1711,S,72101500,Building maintenance and repair services
Communities and Local Government,Homes and Communities Agency,East And South East,East And South East,CHANNEL ENGINEERING LTD,DAP1172-SERVICE-Rochester Riverside - secure arches,14/06/2017,3020,S,72101500,Building maintenance and repair services
Communities and Local Government,Homes and Communities Agency,Comms Transition Budget,Finance & Corporate Services,CAM-TEC SYSTEMS LIMITED,DAP0454-SERVICE-BIS/SFA allocation,31/05/2017,309.07,S,72102900,Facility maintenance and repair services
Communities and Local Government,Homes and Communities Agency,Comms Transition Budget,Finance & Corporate Services,CAM-TEC SYSTEMS LIMITED,DAP0454-SERVICE-12 month Kantech access control service agree,31/05/2017,669.93,S,72102900,Facility maintenance and repair services
Communities and Local Government,Homes and Communities Agency,Comms Transition Budget,Finance & Corporate Services,CAM-TEC SYSTEMS LIMITED,DAP0454-SERVICE-12 month Kantech access control service agree,31/05/2017,979,S,72102900,Facility maintenance and repair services
Communities and Local Government,Homes and Communities Agency,Ne-Yh Sheffield And Humb Ne-Y,North East And Yorkshire,COMMISSION AIR,DYH0250-SERVICE-replaces PO YH00101 - Aerial Photography,14/03/2017,369,S,82131600,Photographers and cinematographers
Communities and Local Government,Homes and Communities Agency,Ne-Yh Sheffield And Humb Ne-Y,North East And Yorkshire,COMMISSION AIR,DYH0250-SERVICE-replaces PO YH00101 - Aerial Photography,07/06/2017,369,S,82131600,Photographers and cinematographers
Communities and Local Government,Homes and Communities Agency,Public Land and Regeneration,Programmes,CARTWRIGHT LANDSCAPES,DAP0448-SERVICE-Wrest Park - LM&C Works 2017-2018 as per Cont,01/06/2017,557.42,S,72101500,Building maintenance and repair services
Communities and Local Government,Homes and Communities Agency,Comms Transition Budget,Finance & Corporate Services,ENGIE FM LIMITED,DAP0338-SERVICE-Tenant proportion,22/03/2017,404.08,L,72102900,Facility maintenance and repair services
Communities and Local Government,Homes and Communities Agency,Comms Transition Budget,Finance & Corporate Services,ENGIE FM LIMITED,"DAP0338-SERVICE-Electrical, Mechanical and Public Health",22/03/2017,980.22,L,72102900,Facility maintenance and repair services
Communities and Local Government,Homes and Communities Agency,Comms Transition Budget,Finance & Corporate Services,ENGIE FM LIMITED,DAP0338-SERVICE-Tenant proportion,22/05/2017,950.86,L,72102900,Facility maintenance and repair services
Communities and Local Government,Homes and Communities Agency,Comms Transition Budget,Finance & Corporate Services,ENGIE FM LIMITED,"DAP0338-SERVICE-Electrical, Mechanical and Public Health",22/05/2017,2306.6,L,72102900,Facility maintenance and repair services
Communities and Local Government,Homes and Communities Agency,Comms Transition Budget,Finance & Corporate Services,ENGIE FM LIMITED,DAP0338-SERVICE-Tenant proportion,22/05/2017,950.86,L,72102900,Facility maintenance and repair services
Communities and Local Government,Homes and Communities Agency,Comms Transition Budget,Finance & Corporate Services,ENGIE FM LIMITED,"DAP0338-SERVICE-Electrical, Mechanical and Public Health",22/05/2017,2306.6,L,72102900,Facility maintenance and repair services
Communities and Local Government,Homes and Communities Agency,Capital Grant to RPs,South West,OASIS UK NORTH LIMITED,DGC1157-SERVICE-Media transportaion services and secure stora,31/05/2017,1177.45,L,81111200,Data services
Communities and Local Government,Homes and Communities Agency,LIF LS Loans Private additions,Programmes,DRIVERS JONAS DELOITTE,DLO0078-SERVICE-Deloitte Secondment Staff,31/05/2017,40232,L,80131800,Real estate management services
Communities and Local Government,Homes and Communities Agency,LIF LS Loans Private additions,Programmes,DRIVERS JONAS DELOITTE,DLO0078-SERVICE-Deloitte Secondment Staff,31/05/2017,39300,L,80131800,Real estate management services
Communities and Local Government,Homes and Communities Agency,LIF LS Loans Private additions,Programmes,DRIVERS JONAS DELOITTE,DLO0078-SERVICE-Deloitte Secondment Staff,31/05/2017,48692,L,80131800,Real estate management services
Communities and Local Government,Homes and Communities Agency,Economic Assets S&Sw Prog,South West,DRIVERS JONAS DELOITTE,IT73278-SERVICE-Trumpet Junction planning advice,18/05/2017,7338.1,L,80131800,Real estate management services
Communities and Local Government,Homes and Communities Agency,LIF LS Loans Private additions,Programmes,DRIVERS JONAS DELOITTE,IT71932-SERVICE-East Kettering Contingency Planning & Review,07/06/2017,51425.39,L,80131800,Real estate management services
Communities and Local Government,Homes and Communities Agency,Communications Allerton,Executive Office,GORKANA GROUP LTD,DBP0543-SERVICE-Gorkana press cuttings 2017/18,31/05/2017,692.05,L,82101500,Print advertising
Communities and Local Government,Homes and Communities Agency,Ne-Y North East Washington,North East And Yorkshire,CUSHMAN & WAKEFIELD DEBENHAM TIE LEUNG,IT67304-SERVICE-Valuation advice,29/05/2017,1980,L,80131800,Real estate management services
Communities and Local Government,Homes and Communities Agency,Land And Regeneration Mh,Programmes,CUSHMAN & WAKEFIELD DEBENHAM TIE LEUNG,IT73279-SERVICE-McIver Homes Ltd,31/05/2017,1500,L,80131800,Real estate management services
Communities and Local Government,Homes and Communities Agency,East And Se And Surr And Suss,East And South East,CUSHMAN & WAKEFIELD DEBENHAM TIE LEUNG,IT68550-SERVICE-Ifiled Court Farm,29/05/2017,2500,L,80131800,Real estate management services
Communities and Local Government,Homes and Communities Agency,Land And Regeneration Mh,Programmes,CUSHMAN & WAKEFIELD DEBENHAM TIE LEUNG,IT72179-SERVICE-Project Monitoring Surveyor Services - The Or,31/05/2017,700,L,80131800,Real estate management services
Communities and Local Government,Homes and Communities Agency,Land And Regeneration Mh,Programmes,CUSHMAN & WAKEFIELD DEBENHAM TIE LEUNG,IT72307-SERVICE-MS Reporting Services for THBF,31/01/2017,2250,L,80131800,Real estate management services
Communities and Local Government,Homes and Communities Agency,Land And Regeneration Mh,Programmes,CUSHMAN & WAKEFIELD DEBENHAM TIE LEUNG,IT72306-SERVICE-MS Reporting Services for THBF,31/03/2017,2250,L,80131800,Real estate management services
Communities and Local Government,Homes and Communities Agency,Public Land and Regeneration,Programmes,CUSHMAN & WAKEFIELD DEBENHAM TIE LEUNG,IT72491-SERVICE-Joint red book market valuation on behalf of ,31/05/2017,2500,L,80131800,Real estate management services
Communities and Local Government,Homes and Communities Agency,Area Dir Mids Worcs-Shrop-Here,Midlands,CUSHMAN & WAKEFIELD DEBENHAM TIE LEUNG,IT72758-SERVICE-The Croppings Phase 2,05/06/2017,7000,L,80131800,Real estate management services
Communities and Local Government,Homes and Communities Agency,Ne-Yh Nrth - West Yorks Ne-Y,North East And Yorkshire,CUSHMAN & WAKEFIELD DEBENHAM TIE LEUNG,IT71959-SERVICE-Tower Works Procurement Advice,28/04/2017,1606.67,L,80131800,Real estate management services
Communities and Local Government,Homes and Communities Agency,East And Se And Surr And Suss,East And South East,CUSHMAN & WAKEFIELD DEBENHAM TIE LEUNG,IT73152-SERVICE-Red Book Valuation - Tinsley Lane,29/05/2017,7500,L,80131800,Real estate management services
Communities and Local Government,Homes and Communities Agency,East And Se And Surr And Suss,East And South East,CUSHMAN & WAKEFIELD DEBENHAM TIE LEUNG,IT73153-SERVICE-Tinsley Lane,31/05/2017,3500,L,80131800,Real estate management services
Communities and Local Government,Homes and Communities Agency,Budget 2013 - Midlands Wm,Midlands,CUSHMAN & WAKEFIELD DEBENHAM TIE LEUNG,IT72957-SERVICE-Whitchurch Mile Bank Road - Pre App Advice,30/05/2017,6250,L,80131800,Real estate management services
Communities and Local Government,Homes and Communities Agency,East And Se Essex And Kent,East And South East,CUSHMAN & WAKEFIELD DEBENHAM TIE LEUNG,IT73174-SERVICE-Dartford Mag Court managing Agent,11/05/2017,1000,L,80131800,Real estate management services
Communities and Local Government,Homes and Communities Agency,Budget 2013 - Midlands Wm,Midlands,CUSHMAN & WAKEFIELD DEBENHAM TIE LEUNG,IT72725-SERVICE-Midlands - Local Allocation Review ,20/02/2017,7500,L,80131800,Real estate management services
Communities and Local Government,Homes and Communities Agency,Budget 2013 - Midlands Wm,Midlands,CUSHMAN & WAKEFIELD DEBENHAM TIE LEUNG,IT73171-SERVICE-Planning Support,21/06/2017,9500,L,80131800,Real estate management services
Communities and Local Government,Homes and Communities Agency,Land And Regeneration Mh,Programmes,CUSHMAN & WAKEFIELD DEBENHAM TIE LEUNG,IT72660-SERVICE-Petersfield,31/03/2017,2250,L,80131800,Real estate management services
Communities and Local Government,Homes and Communities Agency,Ne-Y North East Washington,North East And Yorkshire,CUSHMAN & WAKEFIELD DEBENHAM TIE LEUNG,IT73093-SERVICE-BAE Systems Birtley,29/06/2017,2500,L,80131800,Real estate management services
Communities and Local Government,Homes and Communities Agency,Economic Assets Hub Transition,Economic Assets Hub,DANDARA LIVING BIRMINGHAM LP,Project Bourbon Loan Drawdown June 17,14/06/2017,843076.12,,N/A ,Loans
Communities and Local Government,Homes and Communities Agency,Economic Assets Hub Transition,Economic Assets Hub,DANDARA LIVING LEEDS (A) LP,Project Bourbon Loan Drawdown June 2017,14/06/2017,584998.09,,N/A ,Loans
Communities and Local Government,Homes and Communities Agency,Economic Assets Hub Transition,Economic Assets Hub,DANDARA LIVING LEEDS (B) LP,Project Bourbon Loan Drawdown June 2017,14/06/2017,1145436.68,,N/A ,Loans
Communities and Local Government,Homes and Communities Agency,Economic Assets Hub Transition,Economic Assets Hub,DANDARA LIVING MANCHESTER (A) LP,STF-Dandara Manchester A-June17,14/06/2017,1786052.75,,N/A ,Loans
Communities and Local Government,Homes and Communities Agency,Economic Assets Hub Transition,Economic Assets Hub,DANDARA LIVING MANCHESTER (B) LP,STF-Dandara Manchester B-June17,14/06/2017,1053198.89,,N/A ,Loans
Communities and Local Government,Homes and Communities Agency,Economic Assets Hub Transition,Economic Assets Hub,DANDARA LIVING MANCHESTER (C) LP,STF-Dandara Manchester C-June17,14/06/2017,17002.7,,N/A ,Loans
Communities and Local Government,Homes and Communities Agency,Economic Assets Hub Transition,Economic Assets Hub,DEEBLE VENTURES TWO LIMITED,Smethwick Loan Drawdown June 2017,05/06/2017,484162,,N/A ,Loans
Communities and Local Government,Homes and Communities Agency,Economic Assets Hub Transition,Economic Assets Hub,DEEBLE VENTURES TWO LIMITED,STF-Smethwick-June17,22/06/2017,368052.79,,N/A ,Loans
Communities and Local Government,Homes and Communities Agency,Economic Assets Ne-Y Prog,North East And Yorkshire,DEPARTMENT FOR COMMUNITIES & LOCAL GOVERNMENT,ERDF grant payment re Goole 36,05/06/2017,292822,,N/A ,Grant
Communities and Local Government,Homes and Communities Agency,Public Land and Regeneration,Programmes,DUNELM GEOTECHNICAL & ENVIRONMENTAL LTD,"DNE0523-SERVICE-Mowden Hall, Ground Investigations",01/03/2017,4104,S,72101500,Building maintenance and repair services
Communities and Local Government,Homes and Communities Agency,Public Land and Regeneration,Programmes,DUNELM GEOTECHNICAL & ENVIRONMENTAL LTD,"DNE0523-SERVICE-Mowden Hall, Ground Investigations",14/06/2017,1937,S,72101500,Building maintenance and repair services
Communities and Local Government,Homes and Communities Agency,Economic Assets Ne-Y Prog,North East And Yorkshire,DWF LLP,Legal Fees to Solictor,05/06/2017,900,L,80121600,Business law services
Communities and Local Government,Homes and Communities Agency,Budget 2013 - Midlands Wm,Midlands,DWF LLP,IS12571-SERVICE-Former Melton Mowbury Hospital  - Disbursemen,07/05/2017,302,L,80121600,Business law services
Communities and Local Government,Homes and Communities Agency,Budget 2013 - Midlands Wm,Midlands,DWF LLP,IS12571-SERVICE-Former Melton Mowbury Hospital,07/05/2017,6618.86,L,80121600,Business law services
Communities and Local Government,Homes and Communities Agency,Land And Regeneration Mh,Programmes,DWF LLP,IS12355-SERVICE-Site of a former Day Care Centre at Virginia ,31/03/2017,1500,L,80121600,Business law services
Communities and Local Government,Homes and Communities Agency,Economic Assets Ne-Y Prog,North East And Yorkshire,DWF LLP,IS12822-SERVICE-Maiden Law Hospital ,31/05/2017,950,L,80121600,Business law services
Communities and Local Government,Homes and Communities Agency,Ne-Y North East Washington,North East And Yorkshire,DWF LLP,IS12657-SERVICE-Plot 1,31/05/2017,1154,L,80121600,Business law services
Communities and Local Government,Homes and Communities Agency,Ne-Y North East Washington,North East And Yorkshire,DWF LLP,IS12059-SERVICE-St Georges Hospital Morpeth Phase 2,31/05/2017,1850,L,80121600,Business law services
Communities and Local Government,Homes and Communities Agency,Ne-Y North East Washington,North East And Yorkshire,DWF LLP,IS11984-SERVICE-North Shore - Proposed New Hotel,31/05/2017,500,L,80121600,Business law services
Communities and Local Government,Homes and Communities Agency,Ne-Y North East Washington,North East And Yorkshire,DWF LLP,IS12708-SERVICE-Goole 36,31/05/2017,651,L,80121600,Business law services
Communities and Local Government,Homes and Communities Agency,Ad Manchester Trafford,North West,DWF LLP,IS11644-SERVICE-Weir Pumps,14/06/2017,550,L,80121600,Business law services
Communities and Local Government,Homes and Communities Agency,Economic Assets Nw Prog,North West,DWF LLP,Network access agreement at Bickershaw,16/06/2017,990,L,80121600,Business law services
Communities and Local Government,Homes and Communities Agency,Budget 2013 - Midlands Wm,Midlands,DWF LLP,IS12796-SERVICE-Legal advice on existing development agreemen,19/06/2017,646,L,80121600,Business law services
Communities and Local Government,Homes and Communities Agency,Land And Regeneration Mh,Programmes,DWF LLP,IS12690-SERVICE-BFF Virginia Drive (Reservation of Rights Let,18/04/2017,500,L,80121600,Business law services
Communities and Local Government,Homes and Communities Agency,Budget 2013 - Midlands Wm,Midlands,DWF LLP,"LAND DEPOSIT - GOSCOTE LANE, WALSALL",28/06/2017,2200000,L,80121600,Business law services
Communities and Local Government,Homes and Communities Agency,Economic Assets S&Sw Prog,South West,DWF LLP,"ACQUISITION - OLD BREWERY, BLANDFORD",27/06/2017,455,L,80121600,Business law services
Communities and Local Government,Homes and Communities Agency,Economic Assets S&Sw Prog,South West,DWF LLP,"ACQUISITION - OLD BREWERY, BLANDFORD",27/06/2017,364500,L,N/A ,Acquisiton of land and property
Communities and Local Government,Homes and Communities Agency,Economic Assets S&Sw Prog,South West,DWF LLP,"ACQUISITION - OLD BREWERY, BLANDFORD",27/06/2017,6250000,L,N/A ,Acquisiton of land and property
Communities and Local Government,Homes and Communities Agency,Economic Assets Nw Prog,North West,DWF LLP,Acquisition of Croston Road (Bretherton),27/06/2017,23000,L,N/A ,Acquisiton of land and property
Communities and Local Government,Homes and Communities Agency,Economic Assets Nw Prog,North West,DWF LLP,Acquisition of Croston Road (Bretherton),27/06/2017,670000,L,N/A ,Acquisiton of land and property
Communities and Local Government,Homes and Communities Agency,Spatial Intelligence Telford,Programmes,DAIMLER FLEET MANAGEMENT,DGC1263-SERVICE-LEASE COSTS,31/05/2017,1844.82,M,25101500,Passenger motor vehicles
Communities and Local Government,Homes and Communities Agency,Spatial Intelligence Telford,Programmes,DAIMLER FLEET MANAGEMENT,DGC1263-SERVICE-SERVICE COSTS,31/05/2017,2523.71,M,25101500,Passenger motor vehicles
Communities and Local Government,Homes and Communities Agency,Comms Transition Budget,Finance & Corporate Services,DEAN TAXI LIMITED,DOF0409-SERVICE-AFEGD 1836 01,06/06/2017,259.2,S,78111800,Passenger road transportation
Communities and Local Government,Homes and Communities Agency,It - Rda Transition,Finance & Corporate Services,THUS LTD,DGC0538-SERVICE-Broadband & bridge link Gat/War,19/05/2017,300,L,81112100,Internet services
Communities and Local Government,Homes and Communities Agency,Economic Assets Ne-Y Prog,North East And Yorkshire,DURHAM COUNTY COUNCIL,"DAP1160-SERVICE-NE Industrial Estate, Peterlee.",21/04/2017,4621.7,G,80131500,Lease and rental of property or building
Communities and Local Government,Homes and Communities Agency,It - Rda Transition,Finance & Corporate Services,DEPOEL MANAGED SERVICES LTD,DAP0452-SERVICE-Flexible Development Resource - 38 days start,28/05/2017,2417.9,L,80111600,Temporary personnel services
Communities and Local Government,Homes and Communities Agency,It - Rda Transition,Finance & Corporate Services,DEPOEL MANAGED SERVICES LTD,DAP0378-SERVICE-Dinesh Upreti - TMS Net Developer,28/05/2017,2743.3,L,80111600,Temporary personnel services
Communities and Local Government,Homes and Communities Agency,It - Rda Transition,Finance & Corporate Services,DEPOEL MANAGED SERVICES LTD,"DAP0387-SERVICE-William Warby, TMS Technical Architect",28/05/2017,1707,L,80111600,Temporary personnel services
Communities and Local Government,Homes and Communities Agency,It - Rda Transition,Finance & Corporate Services,DEPOEL MANAGED SERVICES LTD,"DAP0382-SERVICE-Shaun Fay, IMS Business Analyst",28/05/2017,2524.6,L,80111600,Temporary personnel services
Communities and Local Government,Homes and Communities Agency,It - Rda Transition,Finance & Corporate Services,DEPOEL MANAGED SERVICES LTD,DAP0374-SERVICE-Andrew Hutchinson - TMS .Net Developer,28/05/2017,1818.28,L,80111600,Temporary personnel services
Communities and Local Government,Homes and Communities Agency,It - Rda Transition,Finance & Corporate Services,DEPOEL MANAGED SERVICES LTD,DAP0385-SERVICE-Shalak Deshpande - IMS Test Analyst,28/05/2017,1955.05,L,80111600,Temporary personnel services
Communities and Local Government,Homes and Communities Agency,It - Rda Transition,Finance & Corporate Services,DEPOEL MANAGED SERVICES LTD,"DAP0386-SERVICE-Vijay Maisuria, TMS Test Analyst",28/05/2017,1173.03,L,80111600,Temporary personnel services
Communities and Local Government,Homes and Communities Agency,It - Rda Transition,Finance & Corporate Services,DEPOEL MANAGED SERVICES LTD,DAP0383-SERVICE-Sajad Sayani - TMS .Net Developer,28/05/2017,2743.3,L,80111600,Temporary personnel services
Communities and Local Government,Homes and Communities Agency,It - Rda Transition,Finance & Corporate Services,DEPOEL MANAGED SERVICES LTD,"DAP0380-SERVICE-Gaurav Verma, IMS Net Developer",28/05/2017,2514.4,L,80111600,Temporary personnel services
Communities and Local Government,Homes and Communities Agency,It - Rda Transition,Finance & Corporate Services,DEPOEL MANAGED SERVICES LTD,DAP0995-SERVICE-Barry Stephenson Contract until 30/06/17,28/05/2017,625.13,L,80111600,Temporary personnel services
Communities and Local Government,Homes and Communities Agency,It - Rda Transition,Finance & Corporate Services,DEPOEL MANAGED SERVICES LTD,DAP0995-SERVICE-Barry Stephenson Contract until 30/06/17,04/06/2017,500.1,L,80111600,Temporary personnel services
Communities and Local Government,Homes and Communities Agency,It - Rda Transition,Finance & Corporate Services,DEPOEL MANAGED SERVICES LTD,"DAP0382-SERVICE-Shaun Fay, IMS Business Analyst",04/06/2017,2019.68,L,80111600,Temporary personnel services
Communities and Local Government,Homes and Communities Agency,It - Rda Transition,Finance & Corporate Services,DEPOEL MANAGED SERVICES LTD,DAP0385-SERVICE-Shalak Deshpande - IMS Test Analyst,04/06/2017,1564.04,L,80111600,Temporary personnel services
Communities and Local Government,Homes and Communities Agency,It - Rda Transition,Finance & Corporate Services,DEPOEL MANAGED SERVICES LTD,"DAP0386-SERVICE-Vijay Maisuria, TMS Test Analyst",04/06/2017,1564.04,L,80111600,Temporary personnel services
Communities and Local Government,Homes and Communities Agency,It - Rda Transition,Finance & Corporate Services,DEPOEL MANAGED SERVICES LTD,DAP0383-SERVICE-Sajad Sayani - TMS .Net Developer,04/06/2017,2194.64,L,80111600,Temporary personnel services
Communities and Local Government,Homes and Communities Agency,It - Rda Transition,Finance & Corporate Services,DEPOEL MANAGED SERVICES LTD,"DAP0380-SERVICE-Gaurav Verma, IMS Net Developer",04/06/2017,2011.52,L,80111600,Temporary personnel services
Communities and Local Government,Homes and Communities Agency,It - Rda Transition,Finance & Corporate Services,DEPOEL MANAGED SERVICES LTD,DAP0378-SERVICE-Dinesh Upreti - TMS Net Developer,04/06/2017,2194.64,L,80111600,Temporary personnel services
Communities and Local Government,Homes and Communities Agency,It - Rda Transition,Finance & Corporate Services,DEPOEL MANAGED SERVICES LTD,"DAP0387-SERVICE-William Warby, TMS Technical Architect",11/06/2017,2845,L,80111600,Temporary personnel services
Communities and Local Government,Homes and Communities Agency,It - Rda Transition,Finance & Corporate Services,DEPOEL MANAGED SERVICES LTD,"DAP0382-SERVICE-Shaun Fay, IMS Business Analyst",11/06/2017,2019.68,L,80111600,Temporary personnel services
Communities and Local Government,Homes and Communities Agency,It - Rda Transition,Finance & Corporate Services,DEPOEL MANAGED SERVICES LTD,DAP0374-SERVICE-Andrew Hutchinson - TMS .Net Developer,11/06/2017,2272.85,L,80111600,Temporary personnel services
Communities and Local Government,Homes and Communities Agency,It - Rda Transition,Finance & Corporate Services,DEPOEL MANAGED SERVICES LTD,DAP0385-SERVICE-Shalak Deshpande - IMS Test Analyst,11/06/2017,1955.05,L,80111600,Temporary personnel services
Communities and Local Government,Homes and Communities Agency,It - Rda Transition,Finance & Corporate Services,DEPOEL MANAGED SERVICES LTD,"DAP0386-SERVICE-Vijay Maisuria, TMS Test Analyst",11/06/2017,1955.05,L,80111600,Temporary personnel services
Communities and Local Government,Homes and Communities Agency,It - Rda Transition,Finance & Corporate Services,DEPOEL MANAGED SERVICES LTD,DAP0383-SERVICE-Sajad Sayani - TMS .Net Developer,11/06/2017,2743.3,L,80111600,Temporary personnel services
Communities and Local Government,Homes and Communities Agency,It - Rda Transition,Finance & Corporate Services,DEPOEL MANAGED SERVICES LTD,"DAP0380-SERVICE-Gaurav Verma, IMS Net Developer",11/06/2017,2514.4,L,80111600,Temporary personnel services
Communities and Local Government,Homes and Communities Agency,It - Rda Transition,Finance & Corporate Services,DEPOEL MANAGED SERVICES LTD,DAP0378-SERVICE-Dinesh Upreti - TMS Net Developer,11/06/2017,2743.3,L,80111600,Temporary personnel services
Communities and Local Government,Homes and Communities Agency,It - Rda Transition,Finance & Corporate Services,DEPOEL MANAGED SERVICES LTD,DAP0452-SERVICE-Flexible Development Resource - 38 days start,07/05/2017,1934.32,L,80111600,Temporary personnel services
Communities and Local Government,Homes and Communities Agency,It - Rda Transition,Finance & Corporate Services,DEPOEL MANAGED SERVICES LTD,DAP0452-SERVICE-Flexible Development Resource - 38 days start,30/04/2017,2417.9,L,80111600,Temporary personnel services
Communities and Local Government,Homes and Communities Agency,It - Rda Transition,Finance & Corporate Services,DEPOEL MANAGED SERVICES LTD,DAP0452-SERVICE-Flexible Development Resource - 38 days start,14/05/2017,1450.74,L,80111600,Temporary personnel services
Communities and Local Government,Homes and Communities Agency,It - Rda Transition,Finance & Corporate Services,DEPOEL MANAGED SERVICES LTD,DAP0995-SERVICE-Barry Stephenson Contract until 30/06/17,11/06/2017,625.13,L,80111600,Temporary personnel services
Communities and Local Government,Homes and Communities Agency,It - Rda Transition,Finance & Corporate Services,DEPOEL MANAGED SERVICES LTD,DAP0452-SERVICE-Flexible Development Resource - 38 days start,23/04/2017,1944.24,L,80111600,Temporary personnel services
Communities and Local Government,Homes and Communities Agency,It - Rda Transition,Finance & Corporate Services,DEPOEL MANAGED SERVICES LTD,DAP0378-SERVICE-Dinesh Upreti - TMS Net Developer,18/06/2017,2743.3,L,80111600,Temporary personnel services
Communities and Local Government,Homes and Communities Agency,It - Rda Transition,Finance & Corporate Services,DEPOEL MANAGED SERVICES LTD,"DAP0380-SERVICE-Gaurav Verma, IMS Net Developer",18/06/2017,2514.4,L,80111600,Temporary personnel services
Communities and Local Government,Homes and Communities Agency,It - Rda Transition,Finance & Corporate Services,DEPOEL MANAGED SERVICES LTD,DAP0383-SERVICE-Sajad Sayani - TMS .Net Developer,18/06/2017,2743.3,L,80111600,Temporary personnel services
Communities and Local Government,Homes and Communities Agency,It - Rda Transition,Finance & Corporate Services,DEPOEL MANAGED SERVICES LTD,"DAP0386-SERVICE-Vijay Maisuria, TMS Test Analyst",18/06/2017,1955.05,L,80111600,Temporary personnel services
Communities and Local Government,Homes and Communities Agency,It - Rda Transition,Finance & Corporate Services,DEPOEL MANAGED SERVICES LTD,DAP0385-SERVICE-Shalak Deshpande - IMS Test Analyst,18/06/2017,1955.05,L,80111600,Temporary personnel services
Communities and Local Government,Homes and Communities Agency,It - Rda Transition,Finance & Corporate Services,DEPOEL MANAGED SERVICES LTD,DAP0374-SERVICE-Andrew Hutchinson - TMS .Net Developer,18/06/2017,2272.85,L,80111600,Temporary personnel services
Communities and Local Government,Homes and Communities Agency,It - Rda Transition,Finance & Corporate Services,DEPOEL MANAGED SERVICES LTD,"DAP0382-SERVICE-Shaun Fay, IMS Business Analyst",18/06/2017,2019.68,L,80111600,Temporary personnel services
Communities and Local Government,Homes and Communities Agency,It - Rda Transition,Finance & Corporate Services,DEPOEL MANAGED SERVICES LTD,"DAP0387-SERVICE-William Warby, TMS Technical Architect",18/06/2017,1707,L,80111600,Temporary personnel services
Communities and Local Government,Homes and Communities Agency,It - Rda Transition,Finance & Corporate Services,DEPOEL MANAGED SERVICES LTD,DAP0995-SERVICE-Barry Stephenson Contract until 30/06/17,18/06/2017,625.13,L,80111600,Temporary personnel services
Communities and Local Government,Homes and Communities Agency,East And Se Essex And Kent,East And South East,DDS (DEMOLITION) LTD,DEE0076-SERVICE-Demolition of Connaught Barracks buildings,19/06/2017,5431.05,M,72141500,Land preparation services
Communities and Local Government,Homes and Communities Agency,Economic Assets Hub Transition,Economic Assets Hub,DB DEVELOPMENTS STAFFORDSHIRE LIMITED,STF-Edith Beddow-June17,14/06/2017,127199,,N/A ,Loans
Communities and Local Government,Homes and Communities Agency,Economic Assets S&Sw Prog,South West,BEN DADDOW,DAP1364-SERVICE-Attend site and re certify distribution board,26/06/2017,300,S,72101500,Building maintenance and repair services
Communities and Local Government,Homes and Communities Agency,Comms Transition Budget,Finance & Corporate Services,DEPARTMENT OF ENERGY & CLIMATE CHANGE,DAP1224-SERVICE-CRC Forecast Allowances,12/04/2017,7431,G,94101500,Business associations
Communities and Local Government,Homes and Communities Agency,Comms Transition Budget,Finance & Corporate Services,DEPARTMENT OF ENERGY & CLIMATE CHANGE,DAP1224-SERVICE-CRC Forecast Allowances,12/04/2017,35314,G,94101500,Business associations
Communities and Local Government,Homes and Communities Agency,Economic Assets Ne-Y Prog,North East And Yorkshire,DONCASTER EAST INTERNAL DRAINAGE BOARD,DAP1091-SERVICE-Agricultural Drainage rates for land at Lover,28/04/2017,250.99,S,72101500,Building maintenance and repair services
Communities and Local Government,Homes and Communities Agency,Economic Assets Nw Prog,North West,EVERSHEDS LLP,IS08602-SERVICE-Rochdale,25/04/2017,1426.1,L,80121600,Business law services
Communities and Local Government,Homes and Communities Agency,Facilities Allerton Bywater,Finance & Corporate Services,EVERSHEDS LLP,IS10214-SERVICE-General Pensions Advice,31/05/2017,3627.6,L,80121600,Business law services
Communities and Local Government,Homes and Communities Agency,Economic Assets Nw Prog,North West,EVERSHEDS LLP,IS08602-SERVICE-Rochdale,25/04/2017,8120.3,L,80121600,Business law services
Communities and Local Government,Homes and Communities Agency,It - Rda Transition,Finance & Corporate Services,DB GROUP LTD T/A ESUASIVE,DAP1067-SERVICE-Services to support the replacement of CRM v4,31/05/2017,7182.5,L,43231500,Business function specific software
Communities and Local Government,Homes and Communities Agency,Economic Assets S&Sw Prog,South West,ENQUIN ENVIRONMENTAL LIMITED,DAP1406-SERVICE-Bat Survey April & May 2017 - Northern United,21/06/2017,815,S,80131800,Real estate management services
Communities and Local Government,Homes and Communities Agency,Area Dir Mids Leicester-Warks,Midlands,AMEC FOSTER WHEELER & INFASTRUCTURE UK LTD,IT70089-SERVICE-Stretton Hall: High level masterplanning and,30/05/2017,4309.61,L,80131800,Real estate management services
Communities and Local Government,Homes and Communities Agency,Mk Development Control Mk,Midlands,AMEC FOSTER WHEELER & INFASTRUCTURE UK LTD,IT70761-SERVICE-Extension of Time for the Outline Planning Pe,30/05/2017,1000,L,80131800,Real estate management services
Communities and Local Government,Homes and Communities Agency,Estate Management Yorks,North West,AMEC FOSTER WHEELER & INFASTRUCTURE UK LTD,DAM3009-SERVICE-MILTON KEYNES     Arrangement agreed with Chr,28/11/2016,5690,L,80131800,Real estate management services
Communities and Local Government,Homes and Communities Agency,East And Se Essex And Kent,East And South East,AMEC FOSTER WHEELER & INFASTRUCTURE UK LTD,IT72279-SERVICE-Planning Strategy Works - Masterplanning,12/06/2017,11423.49,L,80131800,Real estate management services
Communities and Local Government,Homes and Communities Agency,East And Se Essex And Kent,East And South East,AMEC FOSTER WHEELER & INFASTRUCTURE UK LTD,IT72278-SERVICE-Planning Strategy Works - Town Planning,12/06/2017,25151.19,L,80131800,Real estate management services
Communities and Local Government,Homes and Communities Agency,East And Se Essex And Kent,East And South East,AMEC FOSTER WHEELER & INFASTRUCTURE UK LTD,IT72280-SERVICE-Planning Strategy Works - Highways and Transp,12/06/2017,7231.54,L,80131800,Real estate management services
Communities and Local Government,Homes and Communities Agency,East And Se Essex And Kent,East And South East,AMEC FOSTER WHEELER & INFASTRUCTURE UK LTD,IT72281-SERVICE-Planning Strategy Works - UXO,12/06/2017,1609.83,L,80131800,Real estate management services
Communities and Local Government,Homes and Communities Agency,East And Se Essex And Kent,East And South East,AMEC FOSTER WHEELER & INFASTRUCTURE UK LTD,IT72276-SERVICE-Planning Strategy Works - Lodge Hill / Off Si,12/06/2017,11977.98,L,80131800,Real estate management services
Communities and Local Government,Homes and Communities Agency,Area Dir Mids Worcs-Shrop-Here,Midlands,AMEC FOSTER WHEELER & INFASTRUCTURE UK LTD,IT70169-SERVICE-Lea Castle Outline Planning Application - Lea,20/06/2017,8575,L,80131800,Real estate management services
Communities and Local Government,Homes and Communities Agency,Area Dir Mids Worcs-Shrop-Here,Midlands,AMEC FOSTER WHEELER & INFASTRUCTURE UK LTD,IT71711-SERVICE-Detailed Ground Investigations,20/06/2017,5000,L,80131800,Real estate management services
Communities and Local Government,Homes and Communities Agency,East And Se Essex And Kent,East And South East,AMEC FOSTER WHEELER & INFASTRUCTURE UK LTD,IT72277-SERVICE-Planning Strategy Works - NCL Sites,22/06/2017,41921.67,L,80131800,Real estate management services
Communities and Local Government,Homes and Communities Agency,East And Se Essex And Kent,East And South East,AMEC FOSTER WHEELER & INFASTRUCTURE UK LTD,IT72282-SERVICE-Planning Strategy Works - Meetings,22/06/2017,13098.86,L,80131800,Real estate management services
Communities and Local Government,Homes and Communities Agency,East And South East,East And South East,AMEC FOSTER WHEELER & INFASTRUCTURE UK LTD,IT71833-SERVICE-Interface Land,27/06/2017,16110,L,80131800,Real estate management services
Communities and Local Government,Homes and Communities Agency,Ne-Y North East Washington,North East And Yorkshire,AMEC FOSTER WHEELER & INFASTRUCTURE UK LTD,IT72025-SERVICE-Stage 2 - Planning,30/01/2017,24000,L,80131800,Real estate management services
Communities and Local Government,Homes and Communities Agency,East And South East,East And South East,AMEC FOSTER WHEELER & INFASTRUCTURE UK LTD,IT73379-SERVICE-Towergate A,26/06/2017,4000,L,80131800,Real estate management services
Communities and Local Government,Homes and Communities Agency,Comms Transition Budget,Finance & Corporate Services,EDE'S (UK) LTD.,DAP1380-SERVICE-Bedford office clearance 08/03/17 (waste and,31/05/2017,590,L,72102900,Facility maintenance and repair services
Communities and Local Government,Homes and Communities Agency,Economic Assets Nw Prog,North West,ENTWISTLE GREEN LETTINGS,DAP1242-SERVICE-Managing Agent feees,26/04/2017,1536,G,80131500,Lease and rental of property or building
Communities and Local Government,Homes and Communities Agency,It - Rda Transition,Finance & Corporate Services,EE LTD,DAP0517-SERVICE-Monthly mobile bill x 3 ,01/06/2017,5790.35,L,83101600,Mobile communications services
Communities and Local Government,Homes and Communities Agency,Facilities Allerton Bywater,Finance & Corporate Services,EUKLEIA TRAINGING LIMITED,DAP0969-SERVICE-Provision of course licences - Financial Sanc,26/05/2017,450,S,43231500,Business function specific software
Communities and Local Government,Homes and Communities Agency,Economic Assets Hub Transition,Economic Assets Hub,ESSENTIAL LIVING (3CL) LIMITED,BtR-3CL-June17,31/05/2017,415366.94,,N/A ,Loans
Communities and Local Government,Homes and Communities Agency,Economic Assets Hub Transition,Economic Assets Hub,ESSENTIAL LIVING (3CL) LIMITED,BtR-3CL-June17,21/06/2017,297502,,N/A ,Loans
Communities and Local Government,Homes and Communities Agency,Economic Assets S&Sw Prog,South West,ENERGY ASSETS LIMITED,DAP1291-SERVICE-Disconnect and remove gas meter - 5 Lydalls R,13/01/2017,262.64,M,72101500,Building maintenance and repair services
Communities and Local Government,Homes and Communities Agency,Capital Grant to RPs,South West,THE ENGLISH HERITAGE TRUST,DAP1340-SERVICE-Water Charges for 2017/18 for 12 properties,08/06/2017,3395.55,,83101500,Water and sewer utilities
Communities and Local Government,Homes and Communities Agency,Capital Grant to RPs,South West,E.ON CONNECTION SERVICES,"DAP1263-SERVICE-Electric Meter Standing Charges, VIC Centre,",30/03/2017,320,L,72101500,Building maintenance and repair services
Communities and Local Government,Homes and Communities Agency,Economic Assets Hub Transition,Economic Assets Hub,EARLS COURT PARTNERSHIP LIMITED,LTF - Earls Court Vill - DrawD - June 17,28/06/2017,1519206,,N/A ,Loans
Communities and Local Government,Homes and Communities Agency,Ne-Yh Sheffield And Humb Ne-Y,North East And Yorkshire,FORSHAWS DAVIES RIDGWAY LLP,IS07993-SERVICE-Bentley Colliery,31/05/2017,1400,L,80121600,Business law services
Communities and Local Government,Homes and Communities Agency,LIF LS Loans Private additions,Programmes,AECOM LIMITED,IT71864-SERVICE-Project monitoring of Chilmington Green infra,05/05/2017,2271,L,72101500,Building maintenance and repair services
Communities and Local Government,Homes and Communities Agency,South West Of Eng-Glouc-Oxford,South West,AECOM LIMITED,IT72423-SERVICE-Technical Services,28/04/2017,3704.57,L,72101500,Building maintenance and repair services
Communities and Local Government,Homes and Communities Agency,Public Land and Regeneration,Programmes,AECOM LIMITED,IT71939-SERVICE-SPSL Technical Due Diligence (Bat Surveys) - ,13/06/2017,3397,L,72101500,Building maintenance and repair services
Communities and Local Government,Homes and Communities Agency,South West Hants-Iow-Dorset-Bu,South West,AECOM LIMITED,IT72457-SERVICE-Civic Quarter,14/06/2017,15476.03,L,72101500,Building maintenance and repair services
Communities and Local Government,Homes and Communities Agency,Public Land and Regeneration,Programmes,AECOM LIMITED,IT70650-SERVICE-Louisburg Barracks Employment land delivery,14/06/2017,10000,L,72101500,Building maintenance and repair services
Communities and Local Government,Homes and Communities Agency,Economic Assets S&Sw Prog,South West,AECOM LIMITED,IT73433-SERVICE-Ecology Surveys - Compton,14/06/2017,4941.5,L,72101500,Building maintenance and repair services
Communities and Local Government,Homes and Communities Agency,Budget 2013 - Midlands Wm,Midlands,AECOM LIMITED,IT73471-SERVICE-Edgbaston - Review of Purchasers Costs ,07/06/2017,1625,L,72101500,Building maintenance and repair services
Communities and Local Government,Homes and Communities Agency,Area Dir Cumbria Lancs Skelmer,North West,AECOM LIMITED,IT72821-SERVICE-GCN,09/06/2017,2624.42,L,72101500,Building maintenance and repair services
Communities and Local Government,Homes and Communities Agency,Area Dir Cumbria Lancs Skelmer,North West,AECOM LIMITED,IT70228-SERVICE-Whalleys Skelmersdale,19/06/2017,1096.49,L,72101500,Building maintenance and repair services
Communities and Local Government,Homes and Communities Agency,LIF LS Loans Private additions,Programmes,AECOM LIMITED,IT71864-SERVICE-Project monitoring of Chilmington Green infra,16/06/2017,2271,L,72101500,Building maintenance and repair services
Communities and Local Government,Homes and Communities Agency,Public Land and Regeneration,Programmes,AECOM LIMITED,IT73607-SERVICE-SPSL Due Diligence - DfT (NR) - 7486 - Filton,14/06/2017,7930,L,72101500,Building maintenance and repair services
Communities and Local Government,Homes and Communities Agency,Public Land and Regeneration,Programmes,AECOM LIMITED,IT73611-SERVICE-SPSL Due Diligence - 12365 - Ridge Lea Hospit,19/06/2017,15004.35,L,72101500,Building maintenance and repair services
Communities and Local Government,Homes and Communities Agency,Public Land and Regeneration,Programmes,AECOM LIMITED,IT73613-SERVICE-SPSL Due Diligence - 12367 - Ribbleton Hospit,19/06/2017,11493.7,L,72101500,Building maintenance and repair services
Communities and Local Government,Homes and Communities Agency,Public Land and Regeneration,Programmes,AECOM LIMITED,IT73614-SERVICE-SPSL Due Diligence - 12368 - The Lantern Cent,19/06/2017,11243.7,L,72101500,Building maintenance and repair services
Communities and Local Government,Homes and Communities Agency,Economic Assets Ne-Y Prog,North East And Yorkshire,AECOM LIMITED,IT73445-SERVICE-Carr Lodge - Phases 2 and 3 Technical Support,26/06/2017,1718,L,72101500,Building maintenance and repair services
Communities and Local Government,Homes and Communities Agency,Ne-Yh Sheffield And Humb Ne-Y,North East And Yorkshire,AECOM LIMITED,IT73276-SERVICE-Phase 2 Accelerated Construction ITT - Techni,26/06/2017,859.35,L,72101500,Building maintenance and repair services
Communities and Local Government,Homes and Communities Agency,Budget 2013 - Midlands Wm,Midlands,FROSTS LANDSCAPE CONSTRUCTION LIMITED,DAP0899-SERVICE-Upton Remaining Land Asset Landscape Works -,18/05/2017,2500,L,72101500,Building maintenance and repair services
Communities and Local Government,Homes and Communities Agency,East And Se Essex And Kent,East And South East,FOXLEYS LTD,"DAP0563-SERVICE-Call off order - Sturton Place, Hailsham",16/05/2017,780,S,72101500,Building maintenance and repair services
Communities and Local Government,Homes and Communities Agency,East And Se Essex And Kent,East And South East,FOXLEYS LTD,"DAP0563-SERVICE-Call off order - Sturton Place, Hailsham",07/06/2017,2675,S,72101500,Building maintenance and repair services
Communities and Local Government,Homes and Communities Agency,East And Se Essex And Kent,East And South East,FOXLEYS LTD,"DAP0563-SERVICE-Call off order - Sturton Place, Hailsham",07/06/2017,329.7,S,72101500,Building maintenance and repair services
Communities and Local Government,Homes and Communities Agency,Land And Regeneration Mh,Programmes,SAVILLS UK LIMITED,IT69073-SERVICE-Carlton Developments Ltd - 28149,30/05/2017,4750,L,80131800,Real estate management services
Communities and Local Government,Homes and Communities Agency,Land And Regeneration Mh,Programmes,SAVILLS UK LIMITED,IT73569-SERVICE-Larges Lane ,13/06/2017,1750,L,80131800,Real estate management services
Communities and Local Government,Homes and Communities Agency,Area Dir Mids Worcs-Shrop-Here,Midlands,SAVILLS UK LIMITED,IT72848-SERVICE-Junction Works,31/05/2017,3000,L,80131800,Real estate management services
Communities and Local Government,Homes and Communities Agency,Area Dir Mids Worcs-Shrop-Here,Midlands,SAVILLS UK LIMITED,IT73283-SERVICE-Acquistion Fees,30/04/2017,9750,L,80131800,Real estate management services
Communities and Local Government,Homes and Communities Agency,East And Se Essex And Kent,East And South East,SAVILLS UK LIMITED,IT72217-SERVICE-Land Agent Services - Lodge Hill NCL Sites,15/06/2017,1141.25,L,80131800,Real estate management services
Communities and Local Government,Homes and Communities Agency,Land And Regeneration Mh,Programmes,SAVILLS UK LIMITED,IT72770-SERVICE-Hill View,31/03/2017,2500,L,80131800,Real estate management services
Communities and Local Government,Homes and Communities Agency,East And South East,East And South East,SAVILLS UK LIMITED,IT72001-SERVICE-Advice on Gllcrest Planning Submission Phase,20/06/2017,810,L,80131800,Real estate management services
Communities and Local Government,Homes and Communities Agency,Economic Assets S&Sw Prog,South West,R FOX T/A SOUTHCOAST MAINTENANCE,DAP1012-SERVICE-Call off order for Farnborough Police Station,15/06/2017,1600,S,72101500,Building maintenance and repair services
Communities and Local Government,Homes and Communities Agency,Economic Assets S&Sw Prog,South West,R FOX T/A SOUTHCOAST MAINTENANCE,DAP1370-SERVICE-Colt Havant - Immediate securing of newly acq,23/06/2017,4987,S,72101500,Building maintenance and repair services
Communities and Local Government,Homes and Communities Agency,Economic Assets S&Sw Prog,South West,R FOX T/A SOUTHCOAST MAINTENANCE,DAP1391-SERVICE-Colt International Havant - Installation of H,27/06/2017,3742,S,72101500,Building maintenance and repair services
Communities and Local Government,Homes and Communities Agency,Economic Assets S&Sw Prog,South West,R FOX T/A SOUTHCOAST MAINTENANCE,DAP1390-SERVICE-Colt International Havant - Supply and instal,27/06/2017,2169,S,72101500,Building maintenance and repair services
Communities and Local Government,Homes and Communities Agency,Economic Assets S&Sw Prog,South West,R FOX T/A SOUTHCOAST MAINTENANCE,DAP1390-SERVICE-Materials,27/06/2017,2700,S,72101500,Building maintenance and repair services
Communities and Local Government,Homes and Communities Agency,Capital Grant to RPs,South West,R FOX T/A SOUTHCOAST MAINTENANCE,DAP0743-SERVICE-Daedalus Waterfront - continued maintenance t,27/06/2017,1382,S,72101500,Building maintenance and repair services
Communities and Local Government,Homes and Communities Agency,Economic Assets S&Sw Prog,South West,R FOX T/A SOUTHCOAST MAINTENANCE,DAP0743-SERVICE-Daedalus Waterfront - continued maintenance t,27/06/2017,530,S,72101500,Building maintenance and repair services
Communities and Local Government,Homes and Communities Agency,East And Se Cambs Herts And Bu,East And South East,FALCON SECURITY,DAM3490-SERVICE-HOUGHTON GRANGE     To cover for the remainde,26/05/2017,15456.8,M,92121500,Guard services
Communities and Local Government,Homes and Communities Agency,East And Se Cambs Herts And Bu,East And South East,FALCON SECURITY,DAM3490-SERVICE-HOUGHTON GRANGE     To cover for the remainde,26/05/2017,16054.36,M,92121500,Guard services
Communities and Local Government,Homes and Communities Agency,East And Se Cambs Herts And Bu,East And South East,FALCON SECURITY,DAM2327-SERVICE-OAKINGTON CONTRACT FOR 2016/2017: To undertak,26/05/2017,15244.96,M,92121500,Guard services
Communities and Local Government,Homes and Communities Agency,Budget 2013 - Midlands Wm,Midlands,FALCON SECURITY,DAP1023-SERVICE-Former Royal CCTV monitoring main site and bu,05/04/2017,1280,M,92121500,Guard services
Communities and Local Government,Homes and Communities Agency,Budget 2013 - Midlands Wm,Midlands,FALCON SECURITY,DAP1023-SERVICE-Former Royal CCTV monitoring main site and bu,05/04/2017,1280,M,92121500,Guard services
Communities and Local Government,Homes and Communities Agency,Budget 2013 - Midlands Wm,Midlands,FALCON SECURITY,DAP1023-SERVICE-Former Royal CCTV monitoring main site and bu,25/05/2017,1280,M,92121500,Guard services
Communities and Local Government,Homes and Communities Agency,Budget 2013 - Midlands Wm,Midlands,FALCON SECURITY,DAP1023-SERVICE-Former Royal CCTV monitoring main site and bu,21/05/2017,1600,M,92121500,Guard services
Communities and Local Government,Homes and Communities Agency,East And Se Cambs Herts And Bu,East And South East,FALCON SECURITY,DAM2327-SERVICE-OAKINGTON CONTRACT FOR 2016/2017: To undertak,28/05/2017,19056.2,M,92121500,Guard services
Communities and Local Government,Homes and Communities Agency,Area Dir Mids Notts-Derby-Linc,Midlands,FALCON SECURITY,DWM0861-SERVICE-CCTV Security and Monitoring,06/03/2017,1200,M,92121500,Guard services
Communities and Local Government,Homes and Communities Agency,Public Land and Regeneration,Programmes,FALCON SECURITY,DWM0744-SERVICE-CCTV Installation & Monitoring,06/03/2017,880,M,92121500,Guard services
Communities and Local Government,Homes and Communities Agency,Public Land and Regeneration,Programmes,FALCON SECURITY,DWM0860-SERVICE-CCTV Security and Monitoring,06/03/2017,1120,M,92121500,Guard services
Communities and Local Government,Homes and Communities Agency,Area Dir Mids Notts-Derby-Linc,Midlands,FALCON SECURITY,"DWM0779-SERVICE-CCTV installation, various security works",06/03/2017,590,M,92121500,Guard services
Communities and Local Government,Homes and Communities Agency,Area Dir Mids Notts-Derby-Linc,Midlands,FALCON SECURITY,"DWM0779-SERVICE-CCTV installation, various security works",09/03/2017,470,M,92121500,Guard services
Communities and Local Government,Homes and Communities Agency,Public Land and Regeneration,Programmes,FALCON SECURITY,DWM0744-SERVICE-CCTV Installation & Monitoring,05/04/2017,880,M,92121500,Guard services
Communities and Local Government,Homes and Communities Agency,Area Dir Mids Notts-Derby-Linc,Midlands,FALCON SECURITY,"DWM0779-SERVICE-CCTV installation, various security works",05/04/2017,1200,M,92121500,Guard services
Communities and Local Government,Homes and Communities Agency,Public Land and Regeneration,Programmes,FALCON SECURITY,DWM0860-SERVICE-CCTV Security and Monitoring,05/04/2017,1400,M,92121500,Guard services
Communities and Local Government,Homes and Communities Agency,Budget 2013 - Midlands Wm,Midlands,FALCON SECURITY,DWM0736-SERVICE-Various security works,05/04/2017,850,M,92121500,Guard services
Communities and Local Government,Homes and Communities Agency,Public Land and Regeneration,Programmes,FALCON SECURITY,DWM0844-SERVICE-CCTV monitoring and security,28/05/2017,1500,M,92121500,Guard services
Communities and Local Government,Homes and Communities Agency,Budget 2013 - Midlands Wm,Midlands,FALCON SECURITY,DWM0736-SERVICE-Various security works,28/05/2017,1080,M,92121500,Guard services
Communities and Local Government,Homes and Communities Agency,Budget 2013 - Midlands Wm,Midlands,FALCON SECURITY,"DAP1234-SERVICE-Provision of CCTV and patrols as required, Bi",04/01/2016,1596,M,92121500,Guard services
Communities and Local Government,Homes and Communities Agency,Budget 2013 - Midlands Wm,Midlands,FALCON SECURITY,"DAP1234-SERVICE-Provision of CCTV and patrols as required, Bi",24/01/2017,1260,M,92121500,Guard services
Communities and Local Government,Homes and Communities Agency,Budget 2013 - Midlands Wm,Midlands,FALCON SECURITY,"DAP1234-SERVICE-Provision of CCTV and patrols as required, Bi",26/01/2017,1260,M,92121500,Guard services
Communities and Local Government,Homes and Communities Agency,Budget 2013 - Midlands Wm,Midlands,FALCON SECURITY,"DAP1234-SERVICE-Provision of CCTV and patrols as required, Bi",26/01/2017,1575,M,92121500,Guard services
Communities and Local Government,Homes and Communities Agency,Budget 2013 - Midlands Wm,Midlands,FALCON SECURITY,"DAP1234-SERVICE-Provision of CCTV and patrols as required, Bi",06/03/2017,1260,M,92121500,Guard services
Communities and Local Government,Homes and Communities Agency,Budget 2013 - Midlands Wm,Midlands,FALCON SECURITY,"DAP1234-SERVICE-Provision of CCTV and patrols as required, Bi",05/04/2017,1260,M,92121500,Guard services
Communities and Local Government,Homes and Communities Agency,Budget 2013 - Midlands Wm,Midlands,FALCON SECURITY,"DAP1234-SERVICE-Provision of CCTV and patrols as required, Bi",25/04/2017,1260,M,92121500,Guard services
Communities and Local Government,Homes and Communities Agency,Spatial Intelligence Telford,Programmes,FALCON SECURITY,DAP1361-SERVICE-External CCTV Installation at Sandwell,05/04/2017,5000,M,92121500,Guard services
Communities and Local Government,Homes and Communities Agency,Spatial Intelligence Telford,Programmes,FALCON SECURITY,DAP1353-SERVICE-External CCTV installation for Burton MC,25/04/2017,5000,M,92121500,Guard services
Communities and Local Government,Homes and Communities Agency,Spatial Intelligence Telford,Programmes,FALCON SECURITY,DAP1358-SERVICE-CCTV installation at Hinckley Magistrates,25/04/2017,4500,M,92121500,Guard services
Communities and Local Government,Homes and Communities Agency,Spatial Intelligence Telford,Programmes,FALCON SECURITY,DAP1354-SERVICE-CCTV monitoring at Burton Magistrates,28/05/2017,700,M,92121500,Guard services
Communities and Local Government,Homes and Communities Agency,Spatial Intelligence Telford,Programmes,FALCON SECURITY,DAP1354-SERVICE-CCTV monitoring at Burton Magistrates,28/05/2017,1500,M,92121500,Guard services
Communities and Local Government,Homes and Communities Agency,Spatial Intelligence Telford,Programmes,FALCON SECURITY,DAP1354-SERVICE-CCTV monitoring at Burton Magistrates,28/05/2017,1500,M,92121500,Guard services
Communities and Local Government,Homes and Communities Agency,Spatial Intelligence Telford,Programmes,FALCON SECURITY,DAP1359-SERVICE-CCTV security and Monitoring at Hinckley,28/05/2017,1500,M,92121500,Guard services
Communities and Local Government,Homes and Communities Agency,Spatial Intelligence Telford,Programmes,FALCON SECURITY,DAP1359-SERVICE-CCTV security and Monitoring at Hinckley,28/05/2017,1500,M,92121500,Guard services
Communities and Local Government,Homes and Communities Agency,Spatial Intelligence Telford,Programmes,FALCON SECURITY,DAP1362-SERVICE-CCTV Security/ Monitoring at Sandwell,28/05/2017,700,M,92121500,Guard services
Communities and Local Government,Homes and Communities Agency,Spatial Intelligence Telford,Programmes,FALCON SECURITY,DAP1362-SERVICE-CCTV Security/ Monitoring at Sandwell,28/05/2017,1500,M,92121500,Guard services
Communities and Local Government,Homes and Communities Agency,Spatial Intelligence Telford,Programmes,FALCON SECURITY,DAP1362-SERVICE-CCTV Security/ Monitoring at Sandwell,28/05/2017,1500,M,92121500,Guard services
Communities and Local Government,Homes and Communities Agency,Budget 2013 - Midlands Wm,Midlands,FALCON SECURITY,DAP1346-SERVICE-External CCTV installaton at Melton Mowbray,28/05/2017,4500,M,92121500,Guard services
Communities and Local Government,Homes and Communities Agency,Budget 2013 - Midlands Wm,Midlands,FALCON SECURITY,DAP1347-SERVICE-CCTV Security/Monitoring  at Melton Mowbray,28/05/2017,1500,M,92121500,Guard services
Communities and Local Government,Homes and Communities Agency,Economic Assets S&Sw Prog,South West,FOREST OF DEAN DISTRICT COUNCIL,DAP1286-SERVICE-Business Rates - Vacant 01/04/16 - 31/03/17 -,13/06/2017,786.5,G,80131500,Lease and rental of property or building
Communities and Local Government,Homes and Communities Agency,Economic Assets S&Sw Prog,South West,FOREST OF DEAN DISTRICT COUNCIL,DAP1287-SERVICE-Business Rates - Vacant 01/04/17 - 31/03/18 -,13/06/2017,842.34,G,80131500,Lease and rental of property or building
Communities and Local Government,Homes and Communities Agency,Budget 2013 - Midlands Wm,Midlands,FIRST CHOICE CLEANING & MAINTENANCE LTD,DWM0840-SERVICE-General grounds maintenance/various works,21/06/2017,2665,S,72153501,Building exterior cleaning service  
Communities and Local Government,Homes and Communities Agency,Budget 2013 - Midlands Wm,Midlands,FIRST CHOICE CLEANING & MAINTENANCE LTD,DAP1304-SERVICE-General Grounds Maintenance Washwood Heath,21/06/2017,495,S,72153501,Building exterior cleaning service  
Communities and Local Government,Homes and Communities Agency,Budget 2013 - Midlands Wm,Midlands,FIRST CHOICE CLEANING & MAINTENANCE LTD,DAP1304-SERVICE-Gate Maintenance,21/06/2017,990,S,72153501,Building exterior cleaning service  
Communities and Local Government,Homes and Communities Agency,Budget 2013 - Midlands Wm,Midlands,FIRST CHOICE CLEANING & MAINTENANCE LTD,DAP1304-SERVICE-Washwood Heath Decontamination of Drainage ar,21/06/2017,1135,S,72153501,Building exterior cleaning service  
Communities and Local Government,Homes and Communities Agency,Spatial Intelligence Telford,Programmes,FIRST CHOICE CLEANING & MAINTENANCE LTD,DAP1303-SERVICE-Paladin fencing at Skegness MC,21/06/2017,4720,S,72153501,Building exterior cleaning service  
Communities and Local Government,Homes and Communities Agency,Spatial Intelligence Telford,Programmes,FIRST CHOICE CLEANING & MAINTENANCE LTD,DAP1303-SERVICE-Electrical Investigation at Skegness,21/06/2017,2085,S,72153501,Building exterior cleaning service  
Communities and Local Government,Homes and Communities Agency,Capital Grant to RPs,South West,FIRST CHOICE CLEANING & MAINTENANCE LTD,DAP0836-SERVICE-General Grounds Maintenance/Various works,21/06/2017,2305,S,72153501,Building exterior cleaning service  
Communities and Local Government,Homes and Communities Agency,Capital Grant to RPs,South West,FIRST CHOICE CLEANING & MAINTENANCE LTD,DAP0836-SERVICE-General Grounds Maintenance/Various works,21/06/2017,2590,S,72153501,Building exterior cleaning service  
Communities and Local Government,Homes and Communities Agency,Spatial Intelligence Telford,Programmes,FIRST CHOICE CLEANING & MAINTENANCE LTD,DAP1301-SERVICE-Stourbridge Repair Leak/Roofworks,21/06/2017,1785,S,72153501,Building exterior cleaning service  
Communities and Local Government,Homes and Communities Agency,Spatial Intelligence Telford,Programmes,FIRST CHOICE CLEANING & MAINTENANCE LTD,DAP1301-SERVICE-Stourbridge Repair Leak/Roofworks,21/06/2017,485,S,72153501,Building exterior cleaning service  
Communities and Local Government,Homes and Communities Agency,Spatial Intelligence Telford,Programmes,FIRST CHOICE CLEANING & MAINTENANCE LTD,DAP1379-SERVICE-Heras fencing/Pedestrian Gate at Skegness MC,28/06/2017,4810,S,72153501,Building exterior cleaning service  
Communities and Local Government,Homes and Communities Agency,Spatial Intelligence Telford,Programmes,FIRST CHOICE CLEANING & MAINTENANCE LTD,DAP1355-SERVICE-Health and Safety Roofworks on Listed Buildin,28/06/2017,4725,S,72153501,Building exterior cleaning service  
Communities and Local Government,Homes and Communities Agency,Budget 2013 - Midlands Wm,Midlands,FIRST CHOICE CLEANING & MAINTENANCE LTD,DAP1348-SERVICE-Provide access/change locks/ board windows,28/06/2017,695,S,72153501,Building exterior cleaning service  
Communities and Local Government,Homes and Communities Agency,HCA Investment Credit Risk Man,Programmes,FITCH LEARNING,DAP1297-SERVICE-Corporate Credit Analysis Course,25/05/2017,2476,L,86101800,In service training and manpower development
Communities and Local Government,Homes and Communities Agency,HCA Investment Credit Risk Man,Programmes,FITCH LEARNING,DAP1297-SERVICE-Corporate Credit Analysis Course,25/05/2017,2476,L,86101800,In service training and manpower development
Communities and Local Government,Homes and Communities Agency,HCA Investment Credit Risk Man,Programmes,FITCH LEARNING,DAP1297-SERVICE-Corporate Credit Analysis Course,25/05/2017,2476,L,86101800,In service training and manpower development
Communities and Local Government,Homes and Communities Agency,Economic Assets S&Sw Prog,South West,FRISKA LTD.,DSW0874-SERVICE-BBSP Catering,31/05/2017,4263.03,S,90101600,Banquet and catering services
Communities and Local Government,Homes and Communities Agency,Economic Assets S&Sw Prog,South West,FP MAILING LTD,DSW0885-SERVICE-Franking posting for tenants BBSP,14/06/2017,800,S,78102200,Postal and small parcel and courier services
Communities and Local Government,Homes and Communities Agency,Economic Assets Hub Transition,Economic Assets Hub,FAIRGROVE (NOTTINGHAM) LTD,STF-Kimberley Brewery-June17,22/06/2017,886366,,N/A ,Loans
Communities and Local Government,Homes and Communities Agency,Economic Assets Hub Transition,Economic Assets Hub,FLOUR DEVELOPMENTS LIMITED,BTR - FLOUR - Drawdown - June17,29/06/2017,1298049.55,,N/A ,Loans
Communities and Local Government,Homes and Communities Agency,Estate Management Yorks,North West,F T GEARING L/S LTD,"DAM2397-SERVICE-PARADISE FIELD, HEMEL HEMPSTEAD     12 MONTHS",30/05/2017,395.23,M,72101500,Building maintenance and repair services
Communities and Local Government,Homes and Communities Agency,Ne-Y North East Washington,North East And Yorkshire,GVA GRIMLEY,IT73385-SERVICE-Teesside University site Valuation,31/05/2017,1850,L,80131800,Real estate management services
Communities and Local Government,Homes and Communities Agency,Land And Regeneration National,Programmes,GVA GRIMLEY,IT73158-SERVICE-Clawback review Knowlhill J Milton Keynes,31/05/2017,2750,L,80131800,Real estate management services
Communities and Local Government,Homes and Communities Agency,Liverpool Cheshire Warrington,North West,GVA GRIMLEY,IT71938-SERVICE-Kings Waterfront Disposal 2016,31/05/2017,3250,L,80131800,Real estate management services
Communities and Local Government,Homes and Communities Agency,Public Land and Regeneration,Programmes,GVA GRIMLEY,IT72376-SERVICE-Deerbolt Review,30/05/2017,1500,L,80131800,Real estate management services
Communities and Local Government,Homes and Communities Agency,Affordable National,Programmes,GVA GRIMLEY,IT72417-SERVICE-ATLAS Viability support to large projects,31/05/2017,7080,L,80131800,Real estate management services
Communities and Local Government,Homes and Communities Agency,Ne-Y North East Washington,North East And Yorkshire,GVA GRIMLEY,IT68707-SERVICE-Advice on offer for JV sites from Kier,31/05/2017,1500,L,80131800,Real estate management services
Communities and Local Government,Homes and Communities Agency,East And Se Cambs Herts And Bu,East And South East,GVA GRIMLEY,IT73388-SERVICE-Marchmont Farm - Options Report,31/05/2017,4000,L,80131800,Real estate management services
Communities and Local Government,Homes and Communities Agency,Economic Assets S&Sw Prog,South West,GVA GRIMLEY,IT71705-SERVICE-Direct commisioning and balance of the land,31/05/2017,32343.29,L,80131800,Real estate management services
Communities and Local Government,Homes and Communities Agency,Ne-Yh Sheffield And Humb Ne-Y,North East And Yorkshire,GVA GRIMLEY,IT71819-SERVICE-Marketing of Plot 1 Rockingham,03/04/2017,4200,L,80131800,Real estate management services
Communities and Local Government,Homes and Communities Agency,Economic Assets Ne-Y Prog,North East And Yorkshire,GVA GRIMLEY,DAP1178-SERVICE-Newburn Riverside - Void land management fee,09/03/2017,250,L,80131800,Real estate management services
Communities and Local Government,Homes and Communities Agency,Economic Assets Ne-Y Prog,North East And Yorkshire,GVA GRIMLEY,DAP1178-SERVICE-Simonside Industrial Park - Void land managem,09/03/2017,500,L,80131800,Real estate management services
Communities and Local Government,Homes and Communities Agency,East And Se Cambs Herts And Bu,East And South East,GVA GRIMLEY,IT69788-SERVICE-Paston Reserve Landowner Agreement and Liasio,02/05/2017,3878,L,80131800,Real estate management services
Communities and Local Government,Homes and Communities Agency,Economic Assets Ne-Y Prog,North East And Yorkshire,GVA GRIMLEY,DAP1178-SERVICE-Ashwood Business Park - Void land management,15/06/2017,375,L,80131800,Real estate management services
Communities and Local Government,Homes and Communities Agency,Economic Assets Ne-Y Prog,North East And Yorkshire,GVA GRIMLEY,DAP1178-SERVICE-Kirkleatham Buisness Park - Void land managem,15/06/2017,250,L,80131800,Real estate management services
Communities and Local Government,Homes and Communities Agency,Economic Assets Ne-Y Prog,North East And Yorkshire,GVA GRIMLEY,"DAP1178-SERVICE-Meadowfield Business Park, Durham - Void land",15/06/2017,500,L,80131800,Real estate management services
Communities and Local Government,Homes and Communities Agency,Economic Assets Ne-Y Prog,North East And Yorkshire,GVA GRIMLEY,DAP1178-SERVICE-Nelson Park Industrial Estate - Void land man,15/06/2017,500,L,80131800,Real estate management services
Communities and Local Government,Homes and Communities Agency,Economic Assets Ne-Y Prog,North East And Yorkshire,GVA GRIMLEY,DAP1178-SERVICE-Newburn Riverside - Void land management fee,15/06/2017,250,L,80131800,Real estate management services
Communities and Local Government,Homes and Communities Agency,Economic Assets Ne-Y Prog,North East And Yorkshire,GVA GRIMLEY,DAP1178-SERVICE-Queens Meadow Business Park - Void land manag,15/06/2017,500,L,80131800,Real estate management services
Communities and Local Government,Homes and Communities Agency,Economic Assets Ne-Y Prog,North East And Yorkshire,GVA GRIMLEY,DAP1178-SERVICE-Sedgeletch Industrial Estate - Void land mana,15/06/2017,250,L,80131800,Real estate management services
Communities and Local Government,Homes and Communities Agency,Economic Assets Ne-Y Prog,North East And Yorkshire,GVA GRIMLEY,DAP1178-SERVICE-Simonside Industrial Park - Void land managem,15/06/2017,500,L,80131800,Real estate management services
Communities and Local Government,Homes and Communities Agency,Economic Assets Ne-Y Prog,North East And Yorkshire,GVA GRIMLEY,DAP1178-SERVICE-Villa Real - Void land management fee for 17/,15/06/2017,375,L,80131800,Real estate management services
Communities and Local Government,Homes and Communities Agency,Economic Assets Ne-Y Prog,North East And Yorkshire,GVA GRIMLEY,DAP1178-SERVICE-West Hartford Business Park - Void land manag,15/06/2017,250,L,80131800,Real estate management services
Communities and Local Government,Homes and Communities Agency,Land And Regeneration Mh,Programmes,GVA GRIMLEY,IT71460-SERVICE-To undertake Project Monitoring Services in l,31/05/2017,750,L,80131800,Real estate management services
Communities and Local Government,Homes and Communities Agency,Land And Regeneration Mh,Programmes,GVA GRIMLEY,IT71419-SERVICE-To undertake Project Monitoring Services in l,31/05/2017,750,L,80131800,Real estate management services
Communities and Local Government,Homes and Communities Agency,Land And Regeneration Mh,Programmes,GVA GRIMLEY,IT71994-SERVICE-BFF Monitoring Surveyor Appointment - Mill Mo,26/05/2017,1500,L,80131800,Real estate management services
Communities and Local Government,Homes and Communities Agency,Mk Development Control Mk,Midlands,GVA GRIMLEY,IT73546-SERVICE-Northampton Reactive Management Maintenance W,31/03/2017,700,L,80131800,Real estate management services
Communities and Local Government,Homes and Communities Agency,Mk Development Control Mk,Midlands,GVA GRIMLEY,IT73480-SERVICE-Northampton Brownfield Management - Ransome R,21/06/2017,3500,L,80131800,Real estate management services
Communities and Local Government,Homes and Communities Agency,Mk Development Control Mk,Midlands,GVA GRIMLEY,IT73546-SERVICE-Northampton Reactive Management Maintenance W,21/06/2017,700,L,80131800,Real estate management services
Communities and Local Government,Homes and Communities Agency,East And South East,East And South East,GVA GRIMLEY,IT72456-SERVICE-Cost Consultancy Work Extra Reported Costs by,21/06/2017,1850,L,80131800,Real estate management services
Communities and Local Government,Homes and Communities Agency,Land And Regeneration National,Programmes,GVA GRIMLEY,IT70231-SERVICE-Annual Valuation for Yorkshire & Humber 2016 ,28/04/2017,27000,L,80131800,Real estate management services
Communities and Local Government,Homes and Communities Agency,Budget 2013 - Midlands Wm,Midlands,GVA GRIMLEY,IT71319-SERVICE-02/06/2016 codes changed to SL,07/04/2017,1200,L,80131800,Real estate management services
Communities and Local Government,Homes and Communities Agency,Ad Manchester Trafford,North West,GVA GRIMLEY,IT72750-SERVICE-North Leigh Viability and Land Value Appraisa,14/06/2017,7000,L,80131800,Real estate management services
Communities and Local Government,Homes and Communities Agency,Land And Regeneration Mh,Programmes,GVA GRIMLEY,IT72756-SERVICE-Alderton Chase,28/06/2017,4250,L,80131800,Real estate management services
Communities and Local Government,Homes and Communities Agency,Ne-Y North East Washington,North East And Yorkshire,GREENFINGERS LANDSCAPES LIMITED,DNE0562-SERVICE-Oakesway - please use this line,25/05/2017,742.53,M,72101500,Building maintenance and repair services
Communities and Local Government,Homes and Communities Agency,Economic Assets Ne-Y Prog,North East And Yorkshire,GREENFINGERS LANDSCAPES LIMITED,DAP0224-SERVICE-50% thinning of immature birch trees and cutt,15/05/2017,540,M,72101500,Building maintenance and repair services
Communities and Local Government,Homes and Communities Agency,South West Hants-Iow-Dorset-Bu,South West,GRUNDON WASTE MANAGEMENT LTD,"DAP0652-SERVICE-Call off Order - Compton, Berkshire",31/05/2017,4683.95,L,76121500,Refuse collection and disposal
Communities and Local Government,Homes and Communities Agency,Economic Assets Hub Transition,Economic Assets Hub,THE GROUND GROUP LTD,Scrooby Road  - Loan Drawn - June 17,08/06/2017,110862.77,,N/A ,Loans
Communities and Local Government,Homes and Communities Agency,Economic Assets Hub Transition,Economic Assets Hub,GREGORY ROBINSON DEVELOPMENTS LTD,STF-Eccleshill-June17,01/06/2017,178808.85,,N/A ,Loans
Communities and Local Government,Homes and Communities Agency,Economic Assets Ne-Y Prog,North East And Yorkshire,GVA GRIMLEY LIMITED,DAP1109-SERVICE-Void Service charge for Nelson Park Industria,22/05/2017,313.5,L,80131800,Real estate management services
Communities and Local Government,Homes and Communities Agency,Economic Assets Ne-Y Prog,North East And Yorkshire,GVA GRIMLEY LIMITED,DAP1109-SERVICE-Void Service charge for Nelson Park Industria,22/05/2017,305.75,L,80131800,Real estate management services
Communities and Local Government,Homes and Communities Agency,Economic Assets Ne-Y Prog,North East And Yorkshire,GVA GRIMLEY LIMITED,DAP1109-SERVICE-Void Service charge for Nelson Park Industria,22/05/2017,1207.25,L,80131800,Real estate management services
Communities and Local Government,Homes and Communities Agency,Economic Assets Ne-Y Prog,North East And Yorkshire,GVA GRIMLEY LIMITED,DAP1109-SERVICE-Void Service charge for Ashwood Business Park,22/05/2017,3462,L,80131800,Real estate management services
Communities and Local Government,Homes and Communities Agency,Economic Assets Ne-Y Prog,North East And Yorkshire,GVA GRIMLEY LIMITED,DAP1109-SERVICE-Void Service charge for Kirkleatham for perio,22/05/2017,5449,L,80131800,Real estate management services
Communities and Local Government,Homes and Communities Agency,Economic Assets Ne-Y Prog,North East And Yorkshire,GVA GRIMLEY LIMITED,DAP1109-SERVICE-Void Service charge for Meadowfield Industria,22/05/2017,1549,L,80131800,Real estate management services
Communities and Local Government,Homes and Communities Agency,Economic Assets Ne-Y Prog,North East And Yorkshire,GVA GRIMLEY LIMITED,DAP1109-SERVICE-Void Service charge for Newburn Riverside for,22/05/2017,2089,L,80131800,Real estate management services
Communities and Local Government,Homes and Communities Agency,Economic Assets Ne-Y Prog,North East And Yorkshire,GVA GRIMLEY LIMITED,DAP1109-SERVICE-Void Service charge for Queens Meadow for per,22/05/2017,1385,L,80131800,Real estate management services
Communities and Local Government,Homes and Communities Agency,Economic Assets Ne-Y Prog,North East And Yorkshire,GVA GRIMLEY LIMITED,DAP1109-SERVICE-Void Service charge for Sedgeletch for period,22/05/2017,1136,L,80131800,Real estate management services
Communities and Local Government,Homes and Communities Agency,Economic Assets Ne-Y Prog,North East And Yorkshire,GVA GRIMLEY LIMITED,DAP1109-SERVICE-Void Service charge for West Hartford for per,22/05/2017,958,L,80131800,Real estate management services
Communities and Local Government,Homes and Communities Agency,Economic Assets Hub Transition,Economic Assets Hub,GILBERT HOMES LIMITED,STF-Larges Lane-June17,01/06/2017,624000,,N/A ,Loans
Communities and Local Government,Homes and Communities Agency,Economic Assets Hub Transition,Economic Assets Hub,GILBERT HOMES LIMITED,STF-Larges Lane-June17,15/06/2017,241000,,N/A ,Loans
Communities and Local Government,Homes and Communities Agency,Area Dir Mids Worcs-Shrop-Here,Midlands,GVA GRIMLEY,IT67855-SERVICE-Telford Local Plan Representations,31/05/2017,2000,L,81101500,Civil Engineering
Communities and Local Government,Homes and Communities Agency,Economic Assets Nw Prog,North West,GRC (LEGAL SERVICES) LTD,DAP1142-SERVICE-Removal of x8 Caravans via Common Law for Inc,07/06/2017,2650,S,80121600,Business law services
Communities and Local Government,Homes and Communities Agency,Economic Assets Nw Prog,North West,GRC (LEGAL SERVICES) LTD,DAP1027-SERVICE-Instruction of bailiffs for removal of x7 veh,07/06/2017,2650,S,80121600,Business law services
Communities and Local Government,Homes and Communities Agency,Public Land and Regeneration,Programmes,GREENFIELDS GARDEN SERVICES LTD,DSW1088-SERVICE-Standish Hospital - annual maintainence under,31/05/2017,654.69,S,72101500,Building maintenance and repair services
Communities and Local Government,Homes and Communities Agency,Economic Assets S&Sw Prog,South West,GET LANDSCAPED,DSW0770-SERVICE-ANNUAL LANDSCAPING MARCH 2016 - 17,31/05/2017,337.09,S,72101500,Building maintenance and repair services
Communities and Local Government,Homes and Communities Agency,HCA Investment Credit Risk Man,Programmes,HAYS ACCOUNTANCY & FINANCE,DAP0851-SERVICE-Sabina Ahmed,25/05/2017,931.5,L,80111600,Temporary personnel services
Communities and Local Government,Homes and Communities Agency,Programme Management Mh,Finance & Corporate Services,HAYS ACCOUNTANCY & FINANCE,DGC1256-SERVICE-L DONALDSON TEMP 09/01-31/03/2017,09/06/2017,579.95,L,80111600,Temporary personnel services
Communities and Local Government,Homes and Communities Agency,Programme Management Mh,Finance & Corporate Services,HAYS ACCOUNTANCY & FINANCE,DGC1380-SERVICE-(Carine) Madusa Nzundu (New Starter covering,09/06/2017,2384.58,L,80111600,Temporary personnel services
Communities and Local Government,Homes and Communities Agency,HCA Investment Credit Risk Man,Programmes,HAYS ACCOUNTANCY & FINANCE,DAP0851-SERVICE-Sabina Ahmed & Anna Smith,20/06/2017,2779.59,L,80111600,Temporary personnel services
Communities and Local Government,Homes and Communities Agency,Programme Management Mh,Finance & Corporate Services,HAYS ACCOUNTANCY & FINANCE,DBP0462-SERVICE-Temporary Recruitment Phil Bell,20/06/2017,3498.66,L,80111600,Temporary personnel services
Communities and Local Government,Homes and Communities Agency,Area Dir Cumbria Lancs Skelmer,North West,ARCADIS CONSULTING (UK) LIMITED,IT72265-SERVICE-HCA Clawback Options Appraisal at Cuerden,23/05/2017,9950,L,811001500,Civil Engineering
Communities and Local Government,Homes and Communities Agency,Public Land and Regeneration,Programmes,ARCADIS CONSULTING (UK) LIMITED,IT72796-SERVICE-SPSL Due Diligence - DfT (NR) - 7496 - Leeds,25/05/2017,11862,L,811001500,Civil Engineering
Communities and Local Government,Homes and Communities Agency,Public Land and Regeneration,Programmes,ARCADIS CONSULTING (UK) LIMITED,IT72797-SERVICE-SPSL Due Diligence - DfT (NR) - 7497 - Belle,25/05/2017,11862,L,811001500,Civil Engineering
Communities and Local Government,Homes and Communities Agency,Ftbi South East,East And South East,ARCADIS CONSULTING (UK) LIMITED,IT70838-SERVICE-Engineering Consultant,19/06/2017,20110,L,811001500,Civil Engineering
Communities and Local Government,Homes and Communities Agency,Ftbi South East,East And South East,ARCADIS CONSULTING (UK) LIMITED,IT72521-SERVICE-Geo-Environmental & Geotechnical Site Investi,19/06/2017,17202.28,L,811001500,Civil Engineering
Communities and Local Government,Homes and Communities Agency,South West Of Eng-Glouc-Oxford,South West,ARCADIS CONSULTING (UK) LIMITED,IT72837-SERVICE-Weston Regeneration Programme,21/06/2017,15115,L,811001500,Civil Engineering
Communities and Local Government,Homes and Communities Agency,Area Dir Mids Worcs-Shrop-Here,Midlands,ARCADIS CONSULTING (UK) LIMITED,IT72534-SERVICE-Digbeth Can  Corridor Framework,19/06/2017,32394.7,L,811001500,Civil Engineering
Communities and Local Government,Homes and Communities Agency,South West Of Eng-Glouc-Oxford,South West,ARCADIS CONSULTING (UK) LIMITED,IT72838-SERVICE-Weston Regeneration Programme,21/06/2017,15115,L,811001500,Civil Engineering
Communities and Local Government,Homes and Communities Agency,Economic Assets Hub Transition,Economic Assets Hub,KEEPMOAT HOMES LIMITED,STF-Keepmoat Askern-June17,09/06/2017,876128,,N/A ,Loans
Communities and Local Government,Homes and Communities Agency,Economic Assets Hub Transition,Economic Assets Hub,HEYWOOD DEVELOPMENTS (BROCKHOLES) LTD,STF-Mill Moor Road-June17,05/06/2017,73431,,N/A ,Loans
Communities and Local Government,Homes and Communities Agency,Economic Assets Hub Transition,Economic Assets Hub,HEYWOOD DEVELOPMENTS (BROCKHOLES) LTD,STF - Mill Moor Rd - Loan Draw - June 17,28/06/2017,42869,,N/A ,Loans
Communities and Local Government,Homes and Communities Agency,Economic Assets Ne-Y Prog,North East And Yorkshire,HALCROW GROUP LIMITED,IT71409-SERVICE-SSI Redcar - Development Viability Assessment,27/03/2017,64200.88,L,81121500,Economic analysis
Communities and Local Government,Homes and Communities Agency,Economic Assets Ne-Y Prog,North East And Yorkshire,HALCROW GROUP LIMITED,IT72762-SERVICE-SSI Redcar - Stage 2 Physical investigations,27/03/2017,56385.54,L,81121500,Economic analysis
Communities and Local Government,Homes and Communities Agency,Ne-Y North East Washington,North East And Yorkshire,HALCROW GROUP LIMITED,IT72774-SERVICE-SSI Redcar Stage 1 Consultancy Services,27/03/2017,17540,L,81121500,Economic analysis
Communities and Local Government,Homes and Communities Agency,Estate Management Yorks,North West,THOMAS LISTER LIMITED,IT68304-SERVICE-Release of Restrictive Covenant at Stanton Hi,31/05/2017,1280,S,80131800,Real estate management services
Communities and Local Government,Homes and Communities Agency,Estate Management Yorks,North West,MICHAEL F HARDY LIMITED,DAP0957-SERVICE-Replace 30 metres of water supply pipework be,31/03/2017,1400,M,72101500,Building maintenance and repair services
Communities and Local Government,Homes and Communities Agency,South West Hants-Iow-Dorset-Bu,South West,W J HATT LTD,"DAP0640-SERVICE-Compton, Berkshire - Nitrate Plant Clean",26/05/2017,1895,S,72101500,Building maintenance and repair services
Communities and Local Government,Homes and Communities Agency,Capital Grant to RPs,East And South East,W J HATT LTD,"DAM3511-SERVICE-COMPTON, BERKSHIRE     Isolate boreholes and",26/05/2017,797,S,72101500,Building maintenance and repair services
Communities and Local Government,Homes and Communities Agency,Capital Grant to RPs,East And South East,CENTREPOINT,Daily IMS payment,30/06/2017,35089,,N/A,Grant
Communities and Local Government,Homes and Communities Agency,Economic Assets Hub Transition,Economic Assets Hub,HORNCASTLE GROUP PLC,LTF - Land off Moor Road - Drawdown June,06/06/2017,288998,,N/A ,Loans
Communities and Local Government,Homes and Communities Agency,Economic Assets Hub Transition,Economic Assets Hub,HODSON DEVELOPMENTS (ASHFORD) LTD.,LTF-Chilmington Green-June17,14/06/2017,594659.91,,N/A ,Loans
Communities and Local Government,Homes and Communities Agency,Estate Management Yorks,North West,HULTONS LANDSCAPES,DAM2741-SERVICE-RUNCORN     Delivery of Year 2 of Runcorn sit,20/04/2017,1392.17,M,72101500,Building maintenance and repair services
Communities and Local Government,Homes and Communities Agency,Ad Manchester Trafford,North West,HULTONS LANDSCAPES,DNW0577-SERVICE-East Lancs Paper Mill,20/04/2017,1111.02,M,72101500,Building maintenance and repair services
Communities and Local Government,Homes and Communities Agency,Estate Management Yorks,North West,HULTONS LANDSCAPES,DAM2741-SERVICE-RUNCORN     Delivery of Year 2 of Runcorn sit,22/05/2017,1392.17,M,72101500,Building maintenance and repair services
Communities and Local Government,Homes and Communities Agency,Estate Management Yorks,North West,HULTONS LANDSCAPES,DAM3454-SERVICE-SKELMERSDALE     Footpath repairs (SK9 Northw,28/02/2017,6965,M,72101500,Building maintenance and repair services
Communities and Local Government,Homes and Communities Agency,Estate Management Yorks,North West,HULTONS LANDSCAPES,DAM2882-SERVICE-Year 2  (2015 - 2018) Central Lancashire land,22/05/2017,2161.68,M,72101500,Building maintenance and repair services
Communities and Local Government,Homes and Communities Agency,Budget 2013 - Midlands Wm,Midlands,T HODGSON PLANT HIRE,DAP1040-SERVICE-Removal of waste and cleansing following occu,05/06/2017,6270,S,72102900,Facility maintenance and repair services
Communities and Local Government,Homes and Communities Agency,South West,South West,HEWITSONS SOLICITORS,IS06851-SERVICE-Former CompAir Holman site,31/05/2017,700,S,80121600,Business law services
Communities and Local Government,Homes and Communities Agency,South West Somerset-Dev-Plym-T,South West,HEWITSONS SOLICITORS,IS10982-SERVICE-Vision,31/05/2017,320,S,80121600,Business law services
Communities and Local Government,Homes and Communities Agency,Estate Management Yorks,North West,HEWITSONS SOLICITORS,IS12407-SERVICE-Review HCA's FBT precedents to ensure they re,31/05/2017,1365,S,80121600,Business law services
Communities and Local Government,Homes and Communities Agency,Mk Development Control Mk,Midlands,HEWITSONS SOLICITORS,IS12139-SERVICE-Oakgrove Phase 2C (aka Ph 4),28/04/2017,700,S,80121600,Business law services
Communities and Local Government,Homes and Communities Agency,Ne-Yh Sheffield And Humb Ne-Y,North East And Yorkshire,HEWITSONS SOLICITORS,IS12679-SERVICE-Askern,31/05/2017,320,S,80121600,Business law services
Communities and Local Government,Homes and Communities Agency,Mk Development Control Mk,Midlands,HEWITSONS SOLICITORS,IS11751-SERVICE-Oakgrove Phase 2C,31/05/2017,2480,S,80121600,Business law services
Communities and Local Government,Homes and Communities Agency,East And Se Essex And Kent,East And South East,HEWITSONS SOLICITORS,IS12215-SERVICE-Runwell Hospital - Plot Sales,31/05/2017,1200,S,80121600,Business law services
Communities and Local Government,Homes and Communities Agency,Area Dir Mids Notts-Derby-Linc,Midlands,HEWITSONS SOLICITORS,Cotgrave Colliery,31/05/2017,560,S,80121600,Business law services
Communities and Local Government,Homes and Communities Agency,Public Land and Regeneration,Programmes,HEWITSONS SOLICITORS,IS12423-SERVICE-Louisburg Barracks,31/05/2017,400,S,80121600,Business law services
Communities and Local Government,Homes and Communities Agency,South West Hants-Iow-Dorset-Bu,South West,HEWITSONS SOLICITORS,IS12534-SERVICE-Quebec Barracks,31/05/2017,1120,S,80121600,Business law services
Communities and Local Government,Homes and Communities Agency,Ne-Yh Nrth - West Yorks Ne-Y,North East And Yorkshire,HEWITSONS SOLICITORS,IS11021-SERVICE-Millennium Community,31/05/2017,320,S,80121600,Business law services
Communities and Local Government,Homes and Communities Agency,Ad Manchester Trafford,North West,HEWITSONS SOLICITORS,IS10267-SERVICE-Bickershaw South Scheme,31/05/2017,320,S,80121600,Business law services
Communities and Local Government,Homes and Communities Agency,Area Dir Mids Notts-Derby-Linc,Midlands,HEWITSONS SOLICITORS,IS09771-SERVICE-SITE 1 Manor & Kingsway Hospital - Plot Dispo,31/05/2017,640,S,80121600,Business law services
Communities and Local Government,Homes and Communities Agency,Estate Management Yorks,North West,HEWITSONS SOLICITORS,IS12828-SERVICE-General Contract Advice,07/06/2017,540,S,80121600,Business law services
Communities and Local Government,Homes and Communities Agency,Area Dir Cumbria Lancs Skelmer,North West,HEWITSONS SOLICITORS,IS10444-SERVICE-Lancaster Moor Hospital - New Build Developme,31/05/2017,320,S,80121600,Business law services
Communities and Local Government,Homes and Communities Agency,Area Dir Cumbria Lancs Skelmer,North West,HEWITSONS SOLICITORS,IS10444-SERVICE-Lancaster Moor Hospital - New Build Developme,31/05/2017,640,S,80121600,Business law services
Communities and Local Government,Homes and Communities Agency,East And Se Cambs Herts And Bu,East And South East,HEWITSONS SOLICITORS,IS11900-SERVICE-Spencers Park Phase 1,28/04/2017,400,S,80121600,Business law services
Communities and Local Government,Homes and Communities Agency,Ftbi South East,East And South East,HEWITSONS SOLICITORS,IS12641-SERVICE-Northstowe - FLB - Messrs Jones -  81 acres,20/04/2017,540,S,80121600,Business law services
Communities and Local Government,Homes and Communities Agency,Ftbi South East,East And South East,HEWITSONS SOLICITORS,IS12640-SERVICE-Northstowe - FLB - Unknown - 27.2,20/04/2017,540,S,80121600,Business law services
Communities and Local Government,Homes and Communities Agency,Ftbi South East,East And South East,HEWITSONS SOLICITORS,IS12511-SERVICE-Northstowe - FLB - Margetts 25.01 Acquisition,20/04/2017,540,S,80121600,Business law services
Communities and Local Government,Homes and Communities Agency,Ftbi South East,East And South East,HEWITSONS SOLICITORS,IS12639-SERVICE-Northstowe - FLB - Bankrupt 16.4,20/04/2017,540,S,80121600,Business law services
Communities and Local Government,Homes and Communities Agency,Ftbi South East,East And South East,HEWITSONS SOLICITORS,IS12588-SERVICE-Northstowe - Phase 2 & 3 unlocking infrastruc,06/06/2017,4200,S,80121600,Business law services
Communities and Local Government,Homes and Communities Agency,East And Se Essex And Kent,East And South East,HEWITSONS SOLICITORS,IS12019-SERVICE-Legal Advice for Lodge Hilll,31/05/2017,3809.14,S,80121600,Business law services
Communities and Local Government,Homes and Communities Agency,East And Se Essex And Kent,East And South East,HEWITSONS SOLICITORS,IS12019-SERVICE-Legal Advice for Lodge Hilll,20/06/2017,1850,S,80121600,Business law services
Communities and Local Government,Homes and Communities Agency,Land And Regeneration National,Programmes,HEWITSONS SOLICITORS,IS11570-SERVICE-Upton Phase 1 - Public Open Space - Endowment,27/04/2017,5000,S,80121600,Business law services
Communities and Local Government,Homes and Communities Agency,Area Dir Mids Notts-Derby-Linc,Midlands,HEWITSONS SOLICITORS,COTGRAVE COLLIERY,29/06/2017,2560,S,80121600,Business law services
Communities and Local Government,Homes and Communities Agency,Mk Development Control Mk,Midlands,HEWITSONS SOLICITORS,IS03947-SERVICE-Ashland Phase 2,28/06/2017,440,S,80121600,Business law services
Communities and Local Government,Homes and Communities Agency,South West,South West,HEWITSONS SOLICITORS,IS06851-SERVICE-Former CompAir Holman site,28/06/2017,350,S,80121600,Business law services
Communities and Local Government,Homes and Communities Agency,Ne-Yh Sheffield And Humb Ne-Y,North East And Yorkshire,HEWITSONS SOLICITORS,IS09885-SERVICE-Carr Lodge Phase 1A,28/06/2017,480,S,80121600,Business law services
Communities and Local Government,Homes and Communities Agency,Economic Assets S&Sw Prog,South West,HUGHES & SALVIDGE LIMITED,DSW1101-SERVICE-Daedalus - demolition works as tendered Phase,02/06/2017,58455.5,M,72141500,Land preparation services
Communities and Local Government,Homes and Communities Agency,Economic Assets S&Sw Prog,South West,ISLE OF WIGHT COUNCIL,"DSW0813-SERVICE-Trinity Wharf, East Cowes, IOW - NNDR 2016 20",05/04/2017,492.62,G,80131500,Lease and rental of property or building
Communities and Local Government,Homes and Communities Agency,Comms Transition Budget,Finance & Corporate Services,INDUSTRIAL LANDSCAPES LIMITED,DAP0098-SERVICE-Landsacping Services to HCA SGH Gateshead,31/05/2017,293.84,S,72101500,Building maintenance and repair services
Communities and Local Government,Homes and Communities Agency,Comms Transition Budget,Finance & Corporate Services,INDEPTH MANAGED SERVICES,DAP0550-SERVICE-BIS/SFA %,26/04/2017,1244.3,L,76111500,General building and office cleaining and maintenance services
Communities and Local Government,Homes and Communities Agency,Comms Transition Budget,Finance & Corporate Services,INDEPTH MANAGED SERVICES,DAP0550-SERVICE-Daily office cleaning at HCA Gateshead for pe,26/04/2017,2697.11,L,76111500,General building and office cleaining and maintenance services
Communities and Local Government,Homes and Communities Agency,Ad Manchester Trafford,North West,INNER CITY SOLUTIONS,DAP1295-SERVICE-Econimic modelling and housing market assessm,20/06/2017,4900,S,80131800,Real estate management services
Communities and Local Government,Homes and Communities Agency,It - Rda Transition,Finance & Corporate Services,INCHCAPE FLEET SOLUTIONS LIMITED,DGC1407-SERVICE-XH11MSH 6 MONTHS INFORMAL SERVICE COST,31/05/2017,256.4,L,25101500,Passenger motor vehicles
Communities and Local Government,Homes and Communities Agency,Ne-Yh Sheffield And Humb Ne-Y,North East And Yorkshire,INCHCAPE FLEET SOLUTIONS LIMITED,DGC1228-SERVICE-PY62AWJ 6 MONTHS INFORMAL SERVICE COSTS,31/05/2017,266.1,L,25101500,Passenger motor vehicles
Communities and Local Government,Homes and Communities Agency,Liverpool Cheshire Warrington,North West,INCHCAPE FLEET SOLUTIONS LIMITED,DGC1179-SERVICE-YK62HYM 6 MONTHS INFORMAL SERVICE COST,31/05/2017,257.95,L,25101500,Passenger motor vehicles
Communities and Local Government,Homes and Communities Agency,It - Rda Transition,Finance & Corporate Services,INCHCAPE FLEET SOLUTIONS LIMITED,DGC1495-SERVICE-NL62NJE 6 MONTHS INFORMAL SERVICE COSTS,31/05/2017,266.21,L,25101500,Passenger motor vehicles
Communities and Local Government,Homes and Communities Agency,Economic Assets Ne-Y Prog,North East And Yorkshire,INCHCAPE FLEET SOLUTIONS LIMITED,DGC1493-SERVICE-PY62ASZ 6 MONTHS INFORMAL SERVICE COSTS,31/05/2017,290.76,L,25101500,Passenger motor vehicles
Communities and Local Government,Homes and Communities Agency,Estate Management Yorks,North West,INCHCAPE FLEET SOLUTIONS LIMITED,DGC1622-SERVICE-GY62TXU DAMAGE RECHARGE,14/06/2017,295,L,25101500,Passenger motor vehicles
Communities and Local Government,Homes and Communities Agency,Budget 2013 - Midlands Wm,Midlands,JONES LANG LASALLE,IT72811-SERVICE-Wheels,23/05/2017,9250,L,80131800,Real estate management services
Communities and Local Government,Homes and Communities Agency,Economic Assets S&Sw Prog,South West,JONES LANG LASALLE,IT63245-SERVICE-Development,23/05/2017,4500,L,80131800,Real estate management services
Communities and Local Government,Homes and Communities Agency,Land And Regeneration Mh,Programmes,JONES LANG LASALLE,IT73213-SERVICE-Land off High Street and Swinderby Road,09/06/2017,3000,L,80131800,Real estate management services
Communities and Local Government,Homes and Communities Agency,Economic Assets Nw Prog,North West,JONES LANG LASALLE,IT73478-SERVICE-SH Due Dilligence - Fence Avenue,20/06/2017,1950,L,80131800,Real estate management services
Communities and Local Government,Homes and Communities Agency,Economic Assets Nw Prog,North West,JONES LANG LASALLE,IT73479-SERVICE-SH Due Dilligence - Westminster Road,20/06/2017,1950,L,80131800,Real estate management services
Communities and Local Government,Homes and Communities Agency,Budget 2013 - Midlands Wm,Midlands,JONES LANG LASALLE,IT73524-SERVICE-Walkmill Lane - Local Plan Reps,27/06/2017,500,L,80131800,Real estate management services
Communities and Local Government,Homes and Communities Agency,Liverpool Cheshire Warrington,North West,JONES LANG LASALLE,IT73673-SERVICE-Advice on deal structuring relating to land i,29/06/2017,750,L,80131800,Real estate management services
Communities and Local Government,Homes and Communities Agency,South West Hants-Iow-Dorset-Bu,South West,HS JACKSON & SON FENCING LTD,"DAP0515-SERVICE-Compton, Berkshire - main gate repairs quote",31/05/2017,526.76,S,72101500,Building maintenance and repair services
Communities and Local Government,Homes and Communities Agency,South West Hants-Iow-Dorset-Bu,South West,HS JACKSON & SON FENCING LTD,"DAP0515-SERVICE-Compton, Berkshire - main gate repairs quote",12/06/2017,3858.63,S,72101500,Building maintenance and repair services
Communities and Local Government,Homes and Communities Agency,East And Se Essex And Kent,East And South East,JASCOM ELECTRICAL CONTRACTORS LIMITED,DAP0422-SERVICE-Dockhead Road - Lamp post column 13. As per y,08/05/2017,3414.8,S,72101500,Building maintenance and repair services
Communities and Local Government,Homes and Communities Agency,Economic Assets Nw Prog,North West,JONES LANG LASALLE,DNW0463-SERVICE-Service charge undeveloped land/plots,12/05/2017,19382.5,L,80131800,Real estate management services
Communities and Local Government,Homes and Communities Agency,Executive Off Maple House,Executive Office,JUPITER HOTELS LTD,DAP1396-SERVICE-Payment for use of Conference Room facilities,29/06/2017,829.16,L,90111600,Meeting facilities
Communities and Local Government,Homes and Communities Agency,Economic Assets S&Sw Prog,South West,JAPANESE KNOTWEED SOLUTIONS LTD,"DAP1000-SERVICE-West End Honiton, Japanese knotweed and horse",02/06/2017,850,S,72101500,Building maintenance and repair services
Communities and Local Government,Homes and Communities Agency,Economic Assets S&Sw Prog,South West,KERNOW TREE SURGERY,DAP0603-SERVICE-Annual Landscaping Works - Apr 17 - Mar 18,01/06/2017,1216.66,S,72101500,Building maintenance and repair services
Communities and Local Government,Homes and Communities Agency,Economic Assets S&Sw Prog,South West,KERNOW TREE SURGERY,DAP0996-SERVICE-Maynes site - annual landscaping works to inc,01/06/2017,936.76,S,72101500,Building maintenance and repair services
Communities and Local Government,Homes and Communities Agency,Economic Assets S&Sw Prog,South West,KERNOW TREE SURGERY,DSW0762-SERVICE-LANDSCAPING WORKS FOR CATTLEMARKET ARPIL 2016,01/06/2017,442.5,S,72101500,Building maintenance and repair services
Communities and Local Government,Homes and Communities Agency,Communications Allerton,Executive Office,KINGFISHER GRAPHICS,DAP1330-SERVICE-Wall Graphics - Staff Away Day,20/06/2017,254,S,55121700,Signage
Communities and Local Government,Homes and Communities Agency,Economic Assets Ne-Y Prog,North East And Yorkshire,KELMEC LTD,DAP1105-SERVICE-Blyth Quayside Sites (Burt Street) - drain re,09/06/2017,550,S,72101500,Building maintenance and repair services
Communities and Local Government,Homes and Communities Agency,Area Dir Mids South East Midla,Midlands,LAMBERT SMITH HAMPTON,IT71628-SERVICE-Tattenhoe Park 3&4 advice on Phasing and Viab,11/05/2017,2859.5,L,80131800,Real estate management services
Communities and Local Government,Homes and Communities Agency,Area Dir Mids Worcs-Shrop-Here,Midlands,LAMBERT SMITH HAMPTON,IT73477-SERVICE-re-charge marketing costs for signboard,19/05/2017,1235,L,80131800,Real estate management services
Communities and Local Government,Homes and Communities Agency,Capital Grant to RPs,South West,LAMBERT SMITH HAMPTON,IT73282-SERVICE-Beckham Place,24/05/2017,4975,L,80131800,Real estate management services
Communities and Local Government,Homes and Communities Agency,Capital Grant to RPs,South West,LAMBERT SMITH HAMPTON,IT72416-SERVICE-ATLAS viability support to large projects ,25/05/2017,6400,L,80131800,Real estate management services
Communities and Local Government,Homes and Communities Agency,Area Dir Mids Worcs-Shrop-Here,Midlands,LAMBERT SMITH HAMPTON,IT73181-SERVICE-Desktop Valuation,28/04/2017,250,L,80131800,Real estate management services
Communities and Local Government,Homes and Communities Agency,Economic Assets S&Sw Prog,South West,LAMBERT SMITH HAMPTON,IT73557-SERVICE-Land at Wootton Bassett Road,07/06/2017,1250,L,80131800,Real estate management services
Communities and Local Government,Homes and Communities Agency,Public Land and Regeneration,Programmes,LAMBERT SMITH HAMPTON,IT73155-SERVICE-Franking valuation of Developer's Appraisal,08/06/2017,2750,L,80131800,Real estate management services
Communities and Local Government,Homes and Communities Agency,Economic Assets S&Sw Prog,South West,LAMBERT SMITH HAMPTON,IT73217-SERVICE-Plot 2 Volunteer way Faringdon,09/06/2017,1000,L,80131800,Real estate management services
Communities and Local Government,Homes and Communities Agency,Land And Regeneration Mh,Programmes,LAMBERT SMITH HAMPTON,IT73168-SERVICE-Oaklands,18/05/2017,2500,L,80131800,Real estate management services
Communities and Local Government,Homes and Communities Agency,Land And Regeneration Mh,Programmes,LAMBERT SMITH HAMPTON,IT73043-SERVICE-Aquinna Developments Limited - Manor Road,27/04/2017,2500,L,80131800,Real estate management services
Communities and Local Government,Homes and Communities Agency,Economic Assets S&Sw Prog,South West,LAMBERT SMITH HAMPTON,IT73484-SERVICE-Franking Valuation Plot 3 Dr Surgery Marksbur,15/06/2017,1500,L,80131800,Real estate management services
Communities and Local Government,Homes and Communities Agency,Land And Regeneration National,Programmes,LAMBERT SMITH HAMPTON,IT72157-SERVICE-Midlands Annual Asset Valuations - 16/17 and ,28/04/2017,73358.23,L,80131800,Real estate management services
Communities and Local Government,Homes and Communities Agency,Ad Manchester Trafford,North West,LAMBERT SMITH HAMPTON,IT73288-SERVICE-The purpose of the valuation is to confirm th,28/04/2017,7000,L,80131800,Real estate management services
Communities and Local Government,Homes and Communities Agency,Economic Assets S&Sw Prog,South West,LAMBERT SMITH HAMPTON,IT71725-SERVICE-Bridon Ropes Buiding - rent review,19/06/2017,2500,L,80131800,Real estate management services
Communities and Local Government,Homes and Communities Agency,Land And Regeneration Mh,Programmes,LAMBERT SMITH HAMPTON,IT73585-SERVICE-Updated valuation for the Old Savoy cinema in,09/06/2017,2000,L,80131800,Real estate management services
Communities and Local Government,Homes and Communities Agency,Economic Assets Nw Prog,North West,LAMBERT SMITH HAMPTON,IT68711-SERVICE-Employment Land Disposal,16/06/2017,7000,L,80131800,Real estate management services
Communities and Local Government,Homes and Communities Agency,Affordable National,Programmes,LAMBERT SMITH HAMPTON,IT72416-SERVICE-ATLAS viability support to large projects ,22/06/2017,6400,L,80131800,Real estate management services
Communities and Local Government,Homes and Communities Agency,Capital Grant to RPs,East And South East,BROADLAND HOUSING ASSOCIATION LIMITED,Daily IMS payment,30/06/2017,46000,,N/A,Grant
Communities and Local Government,Homes and Communities Agency,Capital Grant to RPs,North East And Yorkshire,THE RIVERSIDE GROUP,Daily IMS payment,01/06/2017,44000,,N/A,Grant
Communities and Local Government,Homes and Communities Agency,Capital Grant to RPs,North East And Yorkshire,THE RIVERSIDE GROUP,Daily IMS payment,01/06/2017,67550,,N/A,Grant
Communities and Local Government,Homes and Communities Agency,Capital Grant to RPs,North East And Yorkshire,THE RIVERSIDE GROUP,Daily IMS payment,01/06/2017,50000,,N/A,Grant
Communities and Local Government,Homes and Communities Agency,Capital Grant to RPs,North East And Yorkshire,THE RIVERSIDE GROUP,Daily IMS payment,01/06/2017,55265,,N/A,Grant
Communities and Local Government,Homes and Communities Agency,Capital Grant to RPs,North East And Yorkshire,THE RIVERSIDE GROUP,Daily IMS payment,01/06/2017,52760,,N/A,Grant
Communities and Local Government,Homes and Communities Agency,Capital Grant to RPs,North East And Yorkshire,THE RIVERSIDE GROUP,Daily IMS payment,01/06/2017,66400,,N/A,Grant
Communities and Local Government,Homes and Communities Agency,Capital Grant to RPs,North East And Yorkshire,THE RIVERSIDE GROUP,Daily IMS payment,01/06/2017,48000,,N/A,Grant
Communities and Local Government,Homes and Communities Agency,Capital Grant to RPs,North East And Yorkshire,THE RIVERSIDE GROUP,Daily IMS payment,01/06/2017,79900,,N/A,Grant
Communities and Local Government,Homes and Communities Agency,Capital Grant to RPs,North East And Yorkshire,THE RIVERSIDE GROUP,Daily IMS payment,01/06/2017,64100,,N/A,Grant
Communities and Local Government,Homes and Communities Agency,Capital Grant to RPs,North East And Yorkshire,THE RIVERSIDE GROUP,Daily IMS payment,01/06/2017,34400,,N/A,Grant
Communities and Local Government,Homes and Communities Agency,Capital Grant to RPs,North East And Yorkshire,THE RIVERSIDE GROUP,Daily IMS payment,01/06/2017,59600,,N/A,Grant
Communities and Local Government,Homes and Communities Agency,Capital Grant to RPs,North East And Yorkshire,THE RIVERSIDE GROUP,Daily IMS payment,01/06/2017,31140,,N/A,Grant
Communities and Local Government,Homes and Communities Agency,Capital Grant to RPs,North East And Yorkshire,THE RIVERSIDE GROUP,Daily IMS payment,01/06/2017,64100,,N/A,Grant
Communities and Local Government,Homes and Communities Agency,Capital Grant to RPs,North East And Yorkshire,THE RIVERSIDE GROUP,Daily IMS payment,06/06/2017,60800,,N/A,Grant
Communities and Local Government,Homes and Communities Agency,Capital Grant to RPs,North East And Yorkshire,THE RIVERSIDE GROUP,Daily IMS payment,06/06/2017,48500,,N/A,Grant
Communities and Local Government,Homes and Communities Agency,Capital Grant to RPs,North East And Yorkshire,THE RIVERSIDE GROUP,Daily IMS payment,06/06/2017,36450,,N/A,Grant
Communities and Local Government,Homes and Communities Agency,Capital Grant to RPs,North East And Yorkshire,THE RIVERSIDE GROUP,Daily IMS payment,06/06/2017,58400,,N/A,Grant
Communities and Local Government,Homes and Communities Agency,Capital Grant to RPs,North East And Yorkshire,THE RIVERSIDE GROUP,Daily IMS payment,06/06/2017,56450,,N/A,Grant
Communities and Local Government,Homes and Communities Agency,Capital Grant to RPs,North East And Yorkshire,THE RIVERSIDE GROUP,Daily IMS payment,12/06/2017,36000,,N/A,Grant
Communities and Local Government,Homes and Communities Agency,Capital Grant to RPs,North East And Yorkshire,THE RIVERSIDE GROUP,Daily IMS payment,12/06/2017,35982,,N/A,Grant
Communities and Local Government,Homes and Communities Agency,Capital Grant to RPs,North East And Yorkshire,THE RIVERSIDE GROUP,Daily IMS payment,12/06/2017,45550,,N/A,Grant
Communities and Local Government,Homes and Communities Agency,Capital Grant to RPs,North East And Yorkshire,THE RIVERSIDE GROUP,Daily IMS payment,12/06/2017,33292,,N/A,Grant
Communities and Local Government,Homes and Communities Agency,Capital Grant to RPs,North East And Yorkshire,THE RIVERSIDE GROUP,Daily IMS payment,12/06/2017,40500,,N/A,Grant
Communities and Local Government,Homes and Communities Agency,Capital Grant to RPs,North East And Yorkshire,THE RIVERSIDE GROUP,Daily IMS payment,12/06/2017,31040,,N/A,Grant
Communities and Local Government,Homes and Communities Agency,Capital Grant to RPs,North East And Yorkshire,THE RIVERSIDE GROUP,Daily IMS payment,12/06/2017,64370,,N/A,Grant
Communities and Local Government,Homes and Communities Agency,Capital Grant to RPs,North East And Yorkshire,THE RIVERSIDE GROUP,Daily IMS payment,14/06/2017,185000,,N/A,Grant
Communities and Local Government,Homes and Communities Agency,Capital Grant to RPs,North East And Yorkshire,THE RIVERSIDE GROUP,Daily IMS payment,29/06/2017,44000,,N/A,Grant
Communities and Local Government,Homes and Communities Agency,Economic Assets Nw Prog,North West,LOCKTON COMPANIES LLP,REIMBURSEMENT OF CRD FOR PROPERTY PREMIUM RECOVERED,14/06/2017,8657.64,M,84131500,Insurance services for strcutures and property and possessions
Communities and Local Government,Homes and Communities Agency,Capital Grant to RPs,Programmes,SANCTUARY HOUSING ASSOCIATION,Daily IMS payment,01/06/2017,58551,,N/A,Grant
Communities and Local Government,Homes and Communities Agency,Capital Grant to RPs,Programmes,SANCTUARY HOUSING ASSOCIATION,Daily IMS payment,28/06/2017,14000,,N/A,Grant
Communities and Local Government,Homes and Communities Agency,Capital Grant to RPs,Programmes,SANCTUARY HOUSING ASSOCIATION,Daily IMS payment,28/06/2017,196000,,N/A,Grant
Communities and Local Government,Homes and Communities Agency,Capital Grant to RPs,Programmes,SANCTUARY HOUSING ASSOCIATION,Daily IMS payment,28/06/2017,98000,,N/A,Grant
Communities and Local Government,Homes and Communities Agency,Capital Grant to RPs,South West,KNIGHTSTONE HOUSING ASSOCIATION LIMITED,Daily IMS payment,22/06/2017,125198,,N/A,Grant
Communities and Local Government,Homes and Communities Agency,Capital Grant to RPs,South West,KNIGHTSTONE HOUSING ASSOCIATION LIMITED,Daily IMS payment,27/06/2017,82500,,N/A,Grant
Communities and Local Government,Homes and Communities Agency,Help to Buy Additions,North West,HAREWOOD HOUSING SOCIETY LIMITED,Daily IMS payment,14/06/2017,28999,,N/A,Grant
Communities and Local Government,Homes and Communities Agency,Help to Buy Additions,North West,HAREWOOD HOUSING SOCIETY LIMITED,Daily IMS payment,14/06/2017,32399,,N/A,Grant
Communities and Local Government,Homes and Communities Agency,Capital Grant to RPs,East And South East,THAMES VALLEY HOUSING ASSOCIATION LTD,Daily IMS payment,06/06/2017,59999,,N/A,Grant
Communities and Local Government,Homes and Communities Agency,Budget 2013 - Midlands Wm,Midlands,THOMAS LISTER LTD,IT69002-SERVICE-Ansty Park - Negotiations with Rolls-Royce,23/05/2017,1850,S,80131800,Real estate management services
Communities and Local Government,Homes and Communities Agency,Budget 2013 - Midlands Wm,Midlands,THOMAS LISTER LTD,IT73394-SERVICE-P10 - Project Director,01/06/2017,4475,S,80131800,Real estate management services
Communities and Local Government,Homes and Communities Agency,Spatial Intelligence Telford,Programmes,THOMAS LISTER LTD,IT72466-SERVICE-Consultancy Support - Aquisition Manager,04/04/2017,11034.8,S,80131800,Real estate management services
Communities and Local Government,Homes and Communities Agency,Economic Assets S&Sw Prog,South West,THOMAS LISTER LTD,IT72058-SERVICE-Valuation of Remaining Employment Land at Tol,31/05/2017,1000,S,80131800,Real estate management services
Communities and Local Government,Homes and Communities Agency,Economic Assets S&Sw Prog,South West,THOMAS LISTER LTD,IT71613-SERVICE-Overage Calculation White River Place,31/05/2017,3328,S,80131800,Real estate management services
Communities and Local Government,Homes and Communities Agency,South West Somerset-Dev-Plym-T,South West,THOMAS LISTER LTD,IT72002-SERVICE-Initial Due Diligence - Westleigh/ Burlescomb,31/05/2017,1000,S,80131800,Real estate management services
Communities and Local Government,Homes and Communities Agency,Spatial Intelligence Telford,Programmes,THOMAS LISTER LTD,IT72466-SERVICE-Consultancy Support - Aquisition Manager,31/05/2017,3617.2,S,80131800,Real estate management services
Communities and Local Government,Homes and Communities Agency,Budget 2013 - Midlands Wm,Midlands,THOMAS LISTER LTD,IT73639-SERVICE-Meggitt Site,20/06/2017,4182,S,80131800,Real estate management services
Communities and Local Government,Homes and Communities Agency,Area Dir Mids Worcs-Shrop-Here,Midlands,THOMAS LISTER LTD,IT72180-SERVICE-Further to our site inspection on Thursday 20,31/05/2017,5000,S,80131800,Real estate management services
Communities and Local Government,Homes and Communities Agency,Ad Manchester Trafford,North West,THOMAS LISTER LTD,IT73401-SERVICE-Harker Carlisle - acquisition work,22/06/2017,367.5,S,80131800,Real estate management services
Communities and Local Government,Homes and Communities Agency,Capital Grant to RPs,East And South East,PLACES FOR PEOPLE HOMES LIMITED,Daily IMS payment,02/06/2017,83000,,N/A,Grant
Communities and Local Government,Homes and Communities Agency,Capital Grant to RPs,East And South East,PLACES FOR PEOPLE HOMES LIMITED,Daily IMS payment,29/06/2017,84000,,N/A,Grant
Communities and Local Government,Homes and Communities Agency,Help to Buy Additions,South West,SWAYTHLING HOUSING SOCIETY LIMITED,Daily IMS payment,01/06/2017,361,,N/A,Grant
Communities and Local Government,Homes and Communities Agency,Help to Buy Additions,South West,SWAYTHLING HOUSING SOCIETY LIMITED,Daily IMS payment,01/06/2017,361,,N/A,Grant
Communities and Local Government,Homes and Communities Agency,Help to Buy Additions,South West,SWAYTHLING HOUSING SOCIETY LIMITED,Daily IMS payment,01/06/2017,361,,N/A,Grant
Communities and Local Government,Homes and Communities Agency,Help to Buy Additions,South West,SWAYTHLING HOUSING SOCIETY LIMITED,Daily IMS payment,01/06/2017,361,,N/A,Grant
Communities and Local Government,Homes and Communities Agency,Help to Buy Additions,South West,SWAYTHLING HOUSING SOCIETY LIMITED,Daily IMS payment,01/06/2017,361,,N/A,Grant
Communities and Local Government,Homes and Communities Agency,Help to Buy Additions,South West,SWAYTHLING HOUSING SOCIETY LIMITED,Daily IMS payment,01/06/2017,361,,N/A,Grant
Communities and Local Government,Homes and Communities Agency,Help to Buy Additions,South West,SWAYTHLING HOUSING SOCIETY LIMITED,Daily IMS payment,01/06/2017,361,,N/A,Grant
Communities and Local Government,Homes and Communities Agency,Help to Buy Additions,South West,SWAYTHLING HOUSING SOCIETY LIMITED,Daily IMS payment,01/06/2017,361,,N/A,Grant
Communities and Local Government,Homes and Communities Agency,Help to Buy Additions,South West,SWAYTHLING HOUSING SOCIETY LIMITED,Daily IMS payment,01/06/2017,361,,N/A,Grant
Communities and Local Government,Homes and Communities Agency,Help to Buy Additions,South West,SWAYTHLING HOUSING SOCIETY LIMITED,Daily IMS payment,01/06/2017,361,,N/A,Grant
Communities and Local Government,Homes and Communities Agency,Help to Buy Additions,South West,SWAYTHLING HOUSING SOCIETY LIMITED,Daily IMS payment,01/06/2017,361,,N/A,Grant
Communities and Local Government,Homes and Communities Agency,Help to Buy Additions,South West,SWAYTHLING HOUSING SOCIETY LIMITED,Daily IMS payment,01/06/2017,361,,N/A,Grant
Communities and Local Government,Homes and Communities Agency,Help to Buy Additions,South West,SWAYTHLING HOUSING SOCIETY LIMITED,Daily IMS payment,01/06/2017,361,,N/A,Grant
Communities and Local Government,Homes and Communities Agency,Help to Buy Additions,South West,SWAYTHLING HOUSING SOCIETY LIMITED,Daily IMS payment,01/06/2017,361,,N/A,Grant
Communities and Local Government,Homes and Communities Agency,Help to Buy Additions,South West,SWAYTHLING HOUSING SOCIETY LIMITED,Daily IMS payment,01/06/2017,361,,N/A,Grant
Communities and Local Government,Homes and Communities Agency,Help to Buy Additions,South West,SWAYTHLING HOUSING SOCIETY LIMITED,Daily IMS payment,01/06/2017,361,,N/A,Grant
Communities and Local Government,Homes and Communities Agency,Help to Buy Additions,South West,SWAYTHLING HOUSING SOCIETY LIMITED,Daily IMS payment,01/06/2017,361,,N/A,Grant
Communities and Local Government,Homes and Communities Agency,Help to Buy Additions,South West,SWAYTHLING HOUSING SOCIETY LIMITED,Daily IMS payment,01/06/2017,361,,N/A,Grant
Communities and Local Government,Homes and Communities Agency,Help to Buy Additions,South West,SWAYTHLING HOUSING SOCIETY LIMITED,Daily IMS payment,01/06/2017,361,,N/A,Grant
Communities and Local Government,Homes and Communities Agency,Help to Buy Additions,South West,SWAYTHLING HOUSING SOCIETY LIMITED,Daily IMS payment,01/06/2017,361,,N/A,Grant
Communities and Local Government,Homes and Communities Agency,Help to Buy Additions,South West,SWAYTHLING HOUSING SOCIETY LIMITED,Daily IMS payment,01/06/2017,361,,N/A,Grant
Communities and Local Government,Homes and Communities Agency,Help to Buy Additions,South West,SWAYTHLING HOUSING SOCIETY LIMITED,Daily IMS payment,01/06/2017,361,,N/A,Grant
Communities and Local Government,Homes and Communities Agency,Help to Buy Additions,South West,SWAYTHLING HOUSING SOCIETY LIMITED,Daily IMS payment,01/06/2017,361,,N/A,Grant
Communities and Local Government,Homes and Communities Agency,Help to Buy Additions,South West,SWAYTHLING HOUSING SOCIETY LIMITED,Daily IMS payment,01/06/2017,361,,N/A,Grant
Communities and Local Government,Homes and Communities Agency,Help to Buy Additions,South West,SWAYTHLING HOUSING SOCIETY LIMITED,Daily IMS payment,01/06/2017,361,,N/A,Grant
Communities and Local Government,Homes and Communities Agency,Help to Buy Additions,South West,SWAYTHLING HOUSING SOCIETY LIMITED,Daily IMS payment,01/06/2017,361,,N/A,Grant
Communities and Local Government,Homes and Communities Agency,Help to Buy Additions,South West,SWAYTHLING HOUSING SOCIETY LIMITED,Daily IMS payment,01/06/2017,361,,N/A,Grant
Communities and Local Government,Homes and Communities Agency,Help to Buy Additions,South West,SWAYTHLING HOUSING SOCIETY LIMITED,Daily IMS payment,01/06/2017,361,,N/A,Grant
Communities and Local Government,Homes and Communities Agency,Help to Buy Additions,South West,SWAYTHLING HOUSING SOCIETY LIMITED,Daily IMS payment,01/06/2017,361,,N/A,Grant
Communities and Local Government,Homes and Communities Agency,Help to Buy Additions,South West,SWAYTHLING HOUSING SOCIETY LIMITED,Daily IMS payment,01/06/2017,361,,N/A,Grant
Communities and Local Government,Homes and Communities Agency,Help to Buy Additions,South West,SWAYTHLING HOUSING SOCIETY LIMITED,Daily IMS payment,01/06/2017,361,,N/A,Grant
Communities and Local Government,Homes and Communities Agency,Help to Buy Additions,South West,SWAYTHLING HOUSING SOCIETY LIMITED,Daily IMS payment,01/06/2017,361,,N/A,Grant
Communities and Local Government,Homes and Communities Agency,Help to Buy Additions,South West,SWAYTHLING HOUSING SOCIETY LIMITED,Daily IMS payment,02/06/2017,361,,N/A,Grant
Communities and Local Government,Homes and Communities Agency,Help to Buy Additions,South West,SWAYTHLING HOUSING SOCIETY LIMITED,Daily IMS payment,02/06/2017,361,,N/A,Grant
Communities and Local Government,Homes and Communities Agency,Help to Buy Additions,South West,SWAYTHLING HOUSING SOCIETY LIMITED,Daily IMS payment,02/06/2017,361,,N/A,Grant
Communities and Local Government,Homes and Communities Agency,Help to Buy Additions,South West,SWAYTHLING HOUSING SOCIETY LIMITED,Daily IMS payment,02/06/2017,361,,N/A,Grant
Communities and Local Government,Homes and Communities Agency,Help to Buy Additions,South West,SWAYTHLING HOUSING SOCIETY LIMITED,Daily IMS payment,02/06/2017,361,,N/A,Grant
Communities and Local Government,Homes and Communities Agency,Help to Buy Additions,South West,SWAYTHLING HOUSING SOCIETY LIMITED,Daily IMS payment,02/06/2017,361,,N/A,Grant
Communities and Local Government,Homes and Communities Agency,Help to Buy Additions,South West,SWAYTHLING HOUSING SOCIETY LIMITED,Daily IMS payment,02/06/2017,361,,N/A,Grant
Communities and Local Government,Homes and Communities Agency,Help to Buy Additions,South West,SWAYTHLING HOUSING SOCIETY LIMITED,Daily IMS payment,02/06/2017,361,,N/A,Grant
Communities and Local Government,Homes and Communities Agency,Help to Buy Additions,South West,SWAYTHLING HOUSING SOCIETY LIMITED,Daily IMS payment,02/06/2017,361,,N/A,Grant
Communities and Local Government,Homes and Communities Agency,Help to Buy Additions,South West,SWAYTHLING HOUSING SOCIETY LIMITED,Daily IMS payment,02/06/2017,361,,N/A,Grant
Communities and Local Government,Homes and Communities Agency,Help to Buy Additions,South West,SWAYTHLING HOUSING SOCIETY LIMITED,Daily IMS payment,02/06/2017,361,,N/A,Grant
Communities and Local Government,Homes and Communities Agency,Help to Buy Additions,South West,SWAYTHLING HOUSING SOCIETY LIMITED,Daily IMS payment,02/06/2017,361,,N/A,Grant
Communities and Local Government,Homes and Communities Agency,Help to Buy Additions,South West,SWAYTHLING HOUSING SOCIETY LIMITED,Daily IMS payment,02/06/2017,361,,N/A,Grant
Communities and Local Government,Homes and Communities Agency,Help to Buy Additions,South West,SWAYTHLING HOUSING SOCIETY LIMITED,Daily IMS payment,02/06/2017,361,,N/A,Grant
Communities and Local Government,Homes and Communities Agency,Help to Buy Additions,South West,SWAYTHLING HOUSING SOCIETY LIMITED,Daily IMS payment,02/06/2017,361,,N/A,Grant
Communities and Local Government,Homes and Communities Agency,Help to Buy Additions,South West,SWAYTHLING HOUSING SOCIETY LIMITED,Daily IMS payment,02/06/2017,361,,N/A,Grant
Communities and Local Government,Homes and Communities Agency,Help to Buy Additions,South West,SWAYTHLING HOUSING SOCIETY LIMITED,Daily IMS payment,02/06/2017,361,,N/A,Grant
Communities and Local Government,Homes and Communities Agency,Help to Buy Additions,South West,SWAYTHLING HOUSING SOCIETY LIMITED,Daily IMS payment,02/06/2017,361,,N/A,Grant
Communities and Local Government,Homes and Communities Agency,Help to Buy Additions,South West,SWAYTHLING HOUSING SOCIETY LIMITED,Daily IMS payment,02/06/2017,361,,N/A,Grant
Communities and Local Government,Homes and Communities Agency,Help to Buy Additions,South West,SWAYTHLING HOUSING SOCIETY LIMITED,Daily IMS payment,02/06/2017,361,,N/A,Grant
Communities and Local Government,Homes and Communities Agency,Help to Buy Additions,South West,SWAYTHLING HOUSING SOCIETY LIMITED,Daily IMS payment,02/06/2017,361,,N/A,Grant
Communities and Local Government,Homes and Communities Agency,Help to Buy Additions,South West,SWAYTHLING HOUSING SOCIETY LIMITED,Daily IMS payment,02/06/2017,361,,N/A,Grant
Communities and Local Government,Homes and Communities Agency,Help to Buy Additions,South West,SWAYTHLING HOUSING SOCIETY LIMITED,Daily IMS payment,02/06/2017,361,,N/A,Grant
Communities and Local Government,Homes and Communities Agency,Help to Buy Additions,South West,SWAYTHLING HOUSING SOCIETY LIMITED,Daily IMS payment,02/06/2017,361,,N/A,Grant
Communities and Local Government,Homes and Communities Agency,Help to Buy Additions,South West,SWAYTHLING HOUSING SOCIETY LIMITED,Daily IMS payment,02/06/2017,361,,N/A,Grant
Communities and Local Government,Homes and Communities Agency,Help to Buy Additions,South West,SWAYTHLING HOUSING SOCIETY LIMITED,Daily IMS payment,02/06/2017,361,,N/A,Grant
Communities and Local Government,Homes and Communities Agency,Help to Buy Additions,South West,SWAYTHLING HOUSING SOCIETY LIMITED,Daily IMS payment,02/06/2017,361,,N/A,Grant
Communities and Local Government,Homes and Communities Agency,Help to Buy Additions,South West,SWAYTHLING HOUSING SOCIETY LIMITED,Daily IMS payment,02/06/2017,361,,N/A,Grant
Communities and Local Government,Homes and Communities Agency,Help to Buy Additions,South West,SWAYTHLING HOUSING SOCIETY LIMITED,Daily IMS payment,02/06/2017,361,,N/A,Grant
Communities and Local Government,Homes and Communities Agency,Help to Buy Additions,South West,SWAYTHLING HOUSING SOCIETY LIMITED,Daily IMS payment,02/06/2017,361,,N/A,Grant
Communities and Local Government,Homes and Communities Agency,Help to Buy Additions,South West,SWAYTHLING HOUSING SOCIETY LIMITED,Daily IMS payment,02/06/2017,361,,N/A,Grant
Communities and Local Government,Homes and Communities Agency,Help to Buy Additions,South West,SWAYTHLING HOUSING SOCIETY LIMITED,Daily IMS payment,02/06/2017,361,,N/A,Grant
Communities and Local Government,Homes and Communities Agency,Help to Buy Additions,South West,SWAYTHLING HOUSING SOCIETY LIMITED,Daily IMS payment,05/06/2017,361,,N/A,Grant
Communities and Local Government,Homes and Communities Agency,Help to Buy Additions,South West,SWAYTHLING HOUSING SOCIETY LIMITED,Daily IMS payment,05/06/2017,361,,N/A,Grant
Communities and Local Government,Homes and Communities Agency,Help to Buy Additions,South West,SWAYTHLING HOUSING SOCIETY LIMITED,Daily IMS payment,05/06/2017,361,,N/A,Grant
Communities and Local Government,Homes and Communities Agency,Help to Buy Additions,South West,SWAYTHLING HOUSING SOCIETY LIMITED,Daily IMS payment,05/06/2017,361,,N/A,Grant
Communities and Local Government,Homes and Communities Agency,Help to Buy Additions,South West,SWAYTHLING HOUSING SOCIETY LIMITED,Daily IMS payment,05/06/2017,361,,N/A,Grant
Communities and Local Government,Homes and Communities Agency,Help to Buy Additions,South West,SWAYTHLING HOUSING SOCIETY LIMITED,Daily IMS payment,05/06/2017,361,,N/A,Grant
Communities and Local Government,Homes and Communities Agency,Help to Buy Additions,South West,SWAYTHLING HOUSING SOCIETY LIMITED,Daily IMS payment,05/06/2017,361,,N/A,Grant
Communities and Local Government,Homes and Communities Agency,Help to Buy Additions,South West,SWAYTHLING HOUSING SOCIETY LIMITED,Daily IMS payment,05/06/2017,361,,N/A,Grant
Communities and Local Government,Homes and Communities Agency,Help to Buy Additions,South West,SWAYTHLING HOUSING SOCIETY LIMITED,Daily IMS payment,05/06/2017,361,,N/A,Grant
Communities and Local Government,Homes and Communities Agency,Help to Buy Additions,South West,SWAYTHLING HOUSING SOCIETY LIMITED,Daily IMS payment,05/06/2017,361,,N/A,Grant
Communities and Local Government,Homes and Communities Agency,Help to Buy Additions,South West,SWAYTHLING HOUSING SOCIETY LIMITED,Daily IMS payment,05/06/2017,361,,N/A,Grant
Communities and Local Government,Homes and Communities Agency,Help to Buy Additions,South West,SWAYTHLING HOUSING SOCIETY LIMITED,Daily IMS payment,05/06/2017,361,,N/A,Grant
Communities and Local Government,Homes and Communities Agency,Help to Buy Additions,South West,SWAYTHLING HOUSING SOCIETY LIMITED,Daily IMS payment,05/06/2017,361,,N/A,Grant
Communities and Local Government,Homes and Communities Agency,Help to Buy Additions,South West,SWAYTHLING HOUSING SOCIETY LIMITED,Daily IMS payment,05/06/2017,361,,N/A,Grant
Communities and Local Government,Homes and Communities Agency,Help to Buy Additions,South West,SWAYTHLING HOUSING SOCIETY LIMITED,Daily IMS payment,05/06/2017,361,,N/A,Grant
Communities and Local Government,Homes and Communities Agency,Help to Buy Additions,South West,SWAYTHLING HOUSING SOCIETY LIMITED,Daily IMS payment,05/06/2017,361,,N/A,Grant
Communities and Local Government,Homes and Communities Agency,Help to Buy Additions,South West,SWAYTHLING HOUSING SOCIETY LIMITED,Daily IMS payment,05/06/2017,361,,N/A,Grant
Communities and Local Government,Homes and Communities Agency,Help to Buy Additions,South West,SWAYTHLING HOUSING SOCIETY LIMITED,Daily IMS payment,05/06/2017,361,,N/A,Grant
Communities and Local Government,Homes and Communities Agency,Help to Buy Additions,South West,SWAYTHLING HOUSING SOCIETY LIMITED,Daily IMS payment,05/06/2017,361,,N/A,Grant
Communities and Local Government,Homes and Communities Agency,Help to Buy Additions,South West,SWAYTHLING HOUSING SOCIETY LIMITED,Daily IMS payment,05/06/2017,361,,N/A,Grant
Communities and Local Government,Homes and Communities Agency,Help to Buy Additions,South West,SWAYTHLING HOUSING SOCIETY LIMITED,Daily IMS payment,05/06/2017,361,,N/A,Grant
Communities and Local Government,Homes and Communities Agency,Help to Buy Additions,South West,SWAYTHLING HOUSING SOCIETY LIMITED,Daily IMS payment,06/06/2017,361,,N/A,Grant
Communities and Local Government,Homes and Communities Agency,Help to Buy Additions,South West,SWAYTHLING HOUSING SOCIETY LIMITED,Daily IMS payment,06/06/2017,361,,N/A,Grant
Communities and Local Government,Homes and Communities Agency,Help to Buy Additions,South West,SWAYTHLING HOUSING SOCIETY LIMITED,Daily IMS payment,06/06/2017,361,,N/A,Grant
Communities and Local Government,Homes and Communities Agency,Help to Buy Additions,South West,SWAYTHLING HOUSING SOCIETY LIMITED,Daily IMS payment,06/06/2017,361,,N/A,Grant
Communities and Local Government,Homes and Communities Agency,Help to Buy Additions,South West,SWAYTHLING HOUSING SOCIETY LIMITED,Daily IMS payment,06/06/2017,361,,N/A,Grant
Communities and Local Government,Homes and Communities Agency,Help to Buy Additions,South West,SWAYTHLING HOUSING SOCIETY LIMITED,Daily IMS payment,06/06/2017,361,,N/A,Grant
Communities and Local Government,Homes and Communities Agency,Help to Buy Additions,South West,SWAYTHLING HOUSING SOCIETY LIMITED,Daily IMS payment,06/06/2017,361,,N/A,Grant
Communities and Local Government,Homes and Communities Agency,Help to Buy Additions,South West,SWAYTHLING HOUSING SOCIETY LIMITED,Daily IMS payment,06/06/2017,361,,N/A,Grant
Communities and Local Government,Homes and Communities Agency,Help to Buy Additions,South West,SWAYTHLING HOUSING SOCIETY LIMITED,Daily IMS payment,06/06/2017,361,,N/A,Grant
Communities and Local Government,Homes and Communities Agency,Help to Buy Additions,South West,SWAYTHLING HOUSING SOCIETY LIMITED,Daily IMS payment,06/06/2017,361,,N/A,Grant
Communities and Local Government,Homes and Communities Agency,Help to Buy Additions,South West,SWAYTHLING HOUSING SOCIETY LIMITED,Daily IMS payment,06/06/2017,361,,N/A,Grant
Communities and Local Government,Homes and Communities Agency,Help to Buy Additions,South West,SWAYTHLING HOUSING SOCIETY LIMITED,Daily IMS payment,06/06/2017,361,,N/A,Grant
Communities and Local Government,Homes and Communities Agency,Help to Buy Additions,South West,SWAYTHLING HOUSING SOCIETY LIMITED,Daily IMS payment,06/06/2017,361,,N/A,Grant
Communities and Local Government,Homes and Communities Agency,Help to Buy Additions,South West,SWAYTHLING HOUSING SOCIETY LIMITED,Daily IMS payment,06/06/2017,361,,N/A,Grant
Communities and Local Government,Homes and Communities Agency,Help to Buy Additions,South West,SWAYTHLING HOUSING SOCIETY LIMITED,Daily IMS payment,06/06/2017,361,,N/A,Grant
Communities and Local Government,Homes and Communities Agency,Help to Buy Additions,South West,SWAYTHLING HOUSING SOCIETY LIMITED,Daily IMS payment,06/06/2017,361,,N/A,Grant
Communities and Local Government,Homes and Communities Agency,Help to Buy Additions,South West,SWAYTHLING HOUSING SOCIETY LIMITED,Daily IMS payment,06/06/2017,361,,N/A,Grant
Communities and Local Government,Homes and Communities Agency,Help to Buy Additions,South West,SWAYTHLING HOUSING SOCIETY LIMITED,Daily IMS payment,06/06/2017,361,,N/A,Grant
Communities and Local Government,Homes and Communities Agency,Help to Buy Additions,South West,SWAYTHLING HOUSING SOCIETY LIMITED,Daily IMS payment,06/06/2017,361,,N/A,Grant
Communities and Local Government,Homes and Communities Agency,Help to Buy Additions,South West,SWAYTHLING HOUSING SOCIETY LIMITED,Daily IMS payment,06/06/2017,361,,N/A,Grant
Communities and Local Government,Homes and Communities Agency,Help to Buy Additions,South West,SWAYTHLING HOUSING SOCIETY LIMITED,Daily IMS payment,06/06/2017,361,,N/A,Grant
Communities and Local Government,Homes and Communities Agency,Help to Buy Additions,South West,SWAYTHLING HOUSING SOCIETY LIMITED,Daily IMS payment,06/06/2017,361,,N/A,Grant
Communities and Local Government,Homes and Communities Agency,Help to Buy Additions,South West,SWAYTHLING HOUSING SOCIETY LIMITED,Daily IMS payment,06/06/2017,361,,N/A,Grant
Communities and Local Government,Homes and Communities Agency,Help to Buy Additions,South West,SWAYTHLING HOUSING SOCIETY LIMITED,Daily IMS payment,06/06/2017,361,,N/A,Grant
Communities and Local Government,Homes and Communities Agency,Help to Buy Additions,South West,SWAYTHLING HOUSING SOCIETY LIMITED,Daily IMS payment,06/06/2017,361,,N/A,Grant
Communities and Local Government,Homes and Communities Agency,Help to Buy Additions,South West,SWAYTHLING HOUSING SOCIETY LIMITED,Daily IMS payment,06/06/2017,361,,N/A,Grant
Communities and Local Government,Homes and Communities Agency,Help to Buy Additions,South West,SWAYTHLING HOUSING SOCIETY LIMITED,Daily IMS payment,06/06/2017,361,,N/A,Grant
Communities and Local Government,Homes and Communities Agency,Help to Buy Additions,South West,SWAYTHLING HOUSING SOCIETY LIMITED,Daily IMS payment,07/06/2017,361,,N/A,Grant
Communities and Local Government,Homes and Communities Agency,Help to Buy Additions,South West,SWAYTHLING HOUSING SOCIETY LIMITED,Daily IMS payment,07/06/2017,361,,N/A,Grant
Communities and Local Government,Homes and Communities Agency,Help to Buy Additions,South West,SWAYTHLING HOUSING SOCIETY LIMITED,Daily IMS payment,07/06/2017,361,,N/A,Grant
Communities and Local Government,Homes and Communities Agency,Help to Buy Additions,South West,SWAYTHLING HOUSING SOCIETY LIMITED,Daily IMS payment,07/06/2017,361,,N/A,Grant
Communities and Local Government,Homes and Communities Agency,Help to Buy Additions,South West,SWAYTHLING HOUSING SOCIETY LIMITED,Daily IMS payment,07/06/2017,361,,N/A,Grant
Communities and Local Government,Homes and Communities Agency,Help to Buy Additions,South West,SWAYTHLING HOUSING SOCIETY LIMITED,Daily IMS payment,07/06/2017,361,,N/A,Grant
Communities and Local Government,Homes and Communities Agency,Help to Buy Additions,South West,SWAYTHLING HOUSING SOCIETY LIMITED,Daily IMS payment,07/06/2017,361,,N/A,Grant
Communities and Local Government,Homes and Communities Agency,Help to Buy Additions,South West,SWAYTHLING HOUSING SOCIETY LIMITED,Daily IMS payment,07/06/2017,361,,N/A,Grant
Communities and Local Government,Homes and Communities Agency,Help to Buy Additions,South West,SWAYTHLING HOUSING SOCIETY LIMITED,Daily IMS payment,07/06/2017,361,,N/A,Grant
Communities and Local Government,Homes and Communities Agency,Help to Buy Additions,South West,SWAYTHLING HOUSING SOCIETY LIMITED,Daily IMS payment,07/06/2017,361,,N/A,Grant
Communities and Local Government,Homes and Communities Agency,Help to Buy Additions,South West,SWAYTHLING HOUSING SOCIETY LIMITED,Daily IMS payment,07/06/2017,361,,N/A,Grant
Communities and Local Government,Homes and Communities Agency,Help to Buy Additions,South West,SWAYTHLING HOUSING SOCIETY LIMITED,Daily IMS payment,07/06/2017,361,,N/A,Grant
Communities and Local Government,Homes and Communities Agency,Help to Buy Additions,South West,SWAYTHLING HOUSING SOCIETY LIMITED,Daily IMS payment,07/06/2017,361,,N/A,Grant
Communities and Local Government,Homes and Communities Agency,Help to Buy Additions,South West,SWAYTHLING HOUSING SOCIETY LIMITED,Daily IMS payment,07/06/2017,361,,N/A,Grant
Communities and Local Government,Homes and Communities Agency,Help to Buy Additions,South West,SWAYTHLING HOUSING SOCIETY LIMITED,Daily IMS payment,07/06/2017,361,,N/A,Grant
Communities and Local Government,Homes and Communities Agency,Help to Buy Additions,South West,SWAYTHLING HOUSING SOCIETY LIMITED,Daily IMS payment,07/06/2017,361,,N/A,Grant
Communities and Local Government,Homes and Communities Agency,Help to Buy Additions,South West,SWAYTHLING HOUSING SOCIETY LIMITED,Daily IMS payment,07/06/2017,361,,N/A,Grant
Communities and Local Government,Homes and Communities Agency,Help to Buy Additions,South West,SWAYTHLING HOUSING SOCIETY LIMITED,Daily IMS payment,07/06/2017,361,,N/A,Grant
Communities and Local Government,Homes and Communities Agency,Help to Buy Additions,South West,SWAYTHLING HOUSING SOCIETY LIMITED,Daily IMS payment,07/06/2017,361,,N/A,Grant
Communities and Local Government,Homes and Communities Agency,Help to Buy Additions,South West,SWAYTHLING HOUSING SOCIETY LIMITED,Daily IMS payment,07/06/2017,361,,N/A,Grant
Communities and Local Government,Homes and Communities Agency,Help to Buy Additions,South West,SWAYTHLING HOUSING SOCIETY LIMITED,Daily IMS payment,07/06/2017,361,,N/A,Grant
Communities and Local Government,Homes and Communities Agency,Help to Buy Additions,South West,SWAYTHLING HOUSING SOCIETY LIMITED,Daily IMS payment,07/06/2017,361,,N/A,Grant
Communities and Local Government,Homes and Communities Agency,Help to Buy Additions,South West,SWAYTHLING HOUSING SOCIETY LIMITED,Daily IMS payment,07/06/2017,361,,N/A,Grant
Communities and Local Government,Homes and Communities Agency,Help to Buy Additions,South West,SWAYTHLING HOUSING SOCIETY LIMITED,Daily IMS payment,08/06/2017,361,,N/A,Grant
Communities and Local Government,Homes and Communities Agency,Help to Buy Additions,South West,SWAYTHLING HOUSING SOCIETY LIMITED,Daily IMS payment,08/06/2017,361,,N/A,Grant
Communities and Local Government,Homes and Communities Agency,Help to Buy Additions,South West,SWAYTHLING HOUSING SOCIETY LIMITED,Daily IMS payment,08/06/2017,361,,N/A,Grant
Communities and Local Government,Homes and Communities Agency,Help to Buy Additions,South West,SWAYTHLING HOUSING SOCIETY LIMITED,Daily IMS payment,08/06/2017,361,,N/A,Grant
Communities and Local Government,Homes and Communities Agency,Help to Buy Additions,South West,SWAYTHLING HOUSING SOCIETY LIMITED,Daily IMS payment,08/06/2017,361,,N/A,Grant
Communities and Local Government,Homes and Communities Agency,Help to Buy Additions,South West,SWAYTHLING HOUSING SOCIETY LIMITED,Daily IMS payment,08/06/2017,361,,N/A,Grant
Communities and Local Government,Homes and Communities Agency,Help to Buy Additions,South West,SWAYTHLING HOUSING SOCIETY LIMITED,Daily IMS payment,08/06/2017,361,,N/A,Grant
Communities and Local Government,Homes and Communities Agency,Help to Buy Additions,South West,SWAYTHLING HOUSING SOCIETY LIMITED,Daily IMS payment,08/06/2017,361,,N/A,Grant
Communities and Local Government,Homes and Communities Agency,Help to Buy Additions,South West,SWAYTHLING HOUSING SOCIETY LIMITED,Daily IMS payment,08/06/2017,361,,N/A,Grant
Communities and Local Government,Homes and Communities Agency,Help to Buy Additions,South West,SWAYTHLING HOUSING SOCIETY LIMITED,Daily IMS payment,08/06/2017,361,,N/A,Grant
Communities and Local Government,Homes and Communities Agency,Help to Buy Additions,South West,SWAYTHLING HOUSING SOCIETY LIMITED,Daily IMS payment,08/06/2017,361,,N/A,Grant
Communities and Local Government,Homes and Communities Agency,Help to Buy Additions,South West,SWAYTHLING HOUSING SOCIETY LIMITED,Daily IMS payment,08/06/2017,361,,N/A,Grant
Communities and Local Government,Homes and Communities Agency,Help to Buy Additions,South West,SWAYTHLING HOUSING SOCIETY LIMITED,Daily IMS payment,08/06/2017,361,,N/A,Grant
Communities and Local Government,Homes and Communities Agency,Help to Buy Additions,South West,SWAYTHLING HOUSING SOCIETY LIMITED,Daily IMS payment,08/06/2017,361,,N/A,Grant
Communities and Local Government,Homes and Communities Agency,Help to Buy Additions,South West,SWAYTHLING HOUSING SOCIETY LIMITED,Daily IMS payment,08/06/2017,361,,N/A,Grant
Communities and Local Government,Homes and Communities Agency,Help to Buy Additions,South West,SWAYTHLING HOUSING SOCIETY LIMITED,Daily IMS payment,08/06/2017,361,,N/A,Grant
Communities and Local Government,Homes and Communities Agency,Help to Buy Additions,South West,SWAYTHLING HOUSING SOCIETY LIMITED,Daily IMS payment,08/06/2017,361,,N/A,Grant
Communities and Local Government,Homes and Communities Agency,Help to Buy Additions,South West,SWAYTHLING HOUSING SOCIETY LIMITED,Daily IMS payment,08/06/2017,361,,N/A,Grant
Communities and Local Government,Homes and Communities Agency,Help to Buy Additions,South West,SWAYTHLING HOUSING SOCIETY LIMITED,Daily IMS payment,09/06/2017,361,,N/A,Grant
Communities and Local Government,Homes and Communities Agency,Help to Buy Additions,South West,SWAYTHLING HOUSING SOCIETY LIMITED,Daily IMS payment,09/06/2017,361,,N/A,Grant
Communities and Local Government,Homes and Communities Agency,Help to Buy Additions,South West,SWAYTHLING HOUSING SOCIETY LIMITED,Daily IMS payment,09/06/2017,361,,N/A,Grant
Communities and Local Government,Homes and Communities Agency,Help to Buy Additions,South West,SWAYTHLING HOUSING SOCIETY LIMITED,Daily IMS payment,09/06/2017,361,,N/A,Grant
Communities and Local Government,Homes and Communities Agency,Help to Buy Additions,South West,SWAYTHLING HOUSING SOCIETY LIMITED,Daily IMS payment,09/06/2017,361,,N/A,Grant
Communities and Local Government,Homes and Communities Agency,Help to Buy Additions,South West,SWAYTHLING HOUSING SOCIETY LIMITED,Daily IMS payment,09/06/2017,361,,N/A,Grant
Communities and Local Government,Homes and Communities Agency,Help to Buy Additions,South West,SWAYTHLING HOUSING SOCIETY LIMITED,Daily IMS payment,09/06/2017,361,,N/A,Grant
Communities and Local Government,Homes and Communities Agency,Help to Buy Additions,South West,SWAYTHLING HOUSING SOCIETY LIMITED,Daily IMS payment,09/06/2017,361,,N/A,Grant
Communities and Local Government,Homes and Communities Agency,Help to Buy Additions,South West,SWAYTHLING HOUSING SOCIETY LIMITED,Daily IMS payment,09/06/2017,361,,N/A,Grant
Communities and Local Government,Homes and Communities Agency,Help to Buy Additions,South West,SWAYTHLING HOUSING SOCIETY LIMITED,Daily IMS payment,09/06/2017,361,,N/A,Grant
